{"text_format":"1","workbook":"xlsx","n_sheets":7,"sheets":["Directions","CostEstimate","Category - Subcategory","Subcategory - Catalog Item","Catalog Item - Avg Price","Catalog Item","choice_values"],"not_rendered":{"charts":0,"images":0,"macros":1,"external_links":0,"defined_names":1,"comments":0,"pivot_tables":0},"unopened":[],"bounds":{"document_bytes":16777216,"sheet_cells":100000,"rows_first":2000,"rows_last":500,"rows_between":2000,"halvings":0,"cell_chars":16384,"cell_head_chars":4096},"cells_cut":0,"cells_raw":0,"read":"whole","date_system":"1900"}

{"sheet":"Directions","index":0,"n_rows":7,"n_cols":2,"rows_kept":7,"cut":false,"hidden":false,"merged":[[0,0,2,16383],[4,1,5,3],[6,1,7,9]]}
[]
[]
[]
[]
[null,"Welcome to SCRP Excel Upload Cost Estimates Template"]
[]
[null,"Please enable macros when opening this excel document. You will be prompted to enable macros when opening this document."]

{"sheet":"CostEstimate","index":1,"n_rows":1,"n_cols":16,"rows_kept":1,"cut":false,"hidden":false,"merged":[]}
["est_description","location_type","est_location","upgrade_exceeds_replacement","est_category","est_subcategory","cost_catalog_item","not_in_cost_catalog","cost_catalog_avg","est_cost","cost_justification","est_covered_equipment","quantity_of_existing_equipment","replacement_equipment","quantity_of_replacement_equipment","cost_catalog"]

{"sheet":"Category - Subcategory","index":2,"n_rows":50,"n_cols":5,"rows_kept":50,"cut":false,"hidden":true,"merged":[]}
["Access Layer","Distribution Layer","Core Layer","Software","Services"]
["Optical line terminal equipment (OLT)","Routers","EPC","Software","Preplanning"]
["Access WDM (Wavelength Division Multiplexing) & OTN (Optical Transport Network)","Switches","Cloud Core","Licenses","Site Acquisition "]
["End-User Termination Point - FTTH","FTTH (Fiber To The Home) - GPON (Gigabyte Passive Optical Network) / XGS (10-Gigabit-capable symmetric passive optical network)","RAN Core / EMS ",null,"Site Surveys"]
["Ethernet Service Access Node (ESAN) (includes outdoor cabinet & install)","VDSL (Very high-speed Digital Subscriber Line) Access Network","WDM & OTN – Core Equipment\n(Wavelength Division Multiplexing & Optical Transport Network",null,"RF Engineering"]
["LAN MDUs","Cell Edge Aggregation","Core Server Hardware",null,"Interim Facility Requirement"]
["Home network and customer premises equipment (CPE)","Network security equipment","Operation Support Systems (OSS)",null,"Leasing"]
["Customer Outreach to End-User - Public Relations/Notification","Distribution WDM & OTN ","Orchestration",null,"Project Management"]
["Cable coaxial media converters","Microwave PTP (point to point links)","Cloud Computing",null,"Spectrum Planning and Management"]
["WLAN (Wireless Local Area Network)","Microwave PTMP (point to multipoint)","Optical Transmission",null,"Training"]
["Site Cabinets - Optical Network Units (ONU)","Microwave Antennas - Single Pole","Data Transmission",null,"Resident Engineer/Staff"]
[null,"Microwave Antennas - Dual Polarization",null,null,"VoLTE voice coordination with providers"]
[null,"Microwave Antennas - Dual Polarization – Ultra High Performance",null,null,"Structural Engineering / Tower studies"]
[null,"Microwave Antennas - mmWave Flat Panel",null,null,"Negotiating with tower owners"]
[null,"Antenna - LTE (Long Term Evolution) Multi-band, >16dBi",null,null,"Network Engineering Services"]
[null,"Antenna - LTE & CBRS (Citizens Broadband Radio Service), >16dBi",null,null,"Tower/Water Tower/Barn/Rooftop Preparation"]
[null,"Antenna - CBRS only ",null,null,"Antenna/Radio R&R - Tower up to 200', not water tank"]
[null,"Hybrid Cable & Radio/Antenna Jumpers, Tower Ancillary Components",null,null,"Antenna/Radio R&R - Non-penetrating Roof Mounted"]
[null,"LAN MDUs (Local Area Network Multi-Dwelling Units)",null,null,"Shelter Cable Entry Port Additions"]
[null,"Bearer - 5G Transport connects all categories of the mobile network infrastructure, including fronthaul, midhaul, and backhaul",null,null,"Ground Buss Bars"]
[null,"LTE FDD (Frequency Division Duplex)",null,null,"Tower Modifications"]
[null,"LTE TDD (Time Division Duplex)",null,null,"Site Work"]
[null,"LTE BBU (Baseband Units)",null,null,"Cable Sweep & PIM Testing"]
[null,"1 Sector Bundle - 10/20MHz channels - RU (Radio Unit), CDU (Cabinet Distributed Unit), shelf, cables, SFP's, and antennas",null,null,"Connectivity Upgrades or Extensions"]
[null,"1 Sector Bundle - 40MHz channels - RU, CDU, DU shelf, cables, SFP's, and antennas",null,null,"Tower/Installation Crews"]
[null,"1 Sector Bundle - 60MHz channels - RU, CDU, DU shelf, cables, SFP's, and antennas",null,null,"Helicopter Lift\n(e.g., for a rooftop tower, complex tower, tall structure, or terrain constrained location requiring helicopter lift)"]
[null,"Rapid Deployed, Self-contained 5G cell site with attached Core",null,null,"Equipment Rental"]
[null,"Bundled BBU/RRH (Base Band Unit/Remote Radio Head) Fixed Wireless",null,null,"Virtual/Cloud Core Deployment"]
[null,"Bundled BBU/RRH (Base Band Unit/Remote Radio Head) Mobility Wireless - nonMIMO",null,null,"GPON/XGS (FTTH) Deployments"]
[null,"Bundled BBU/RRH (Base Band Unit/Remote Radio Head) Mobility Wireless - mMIMO",null,null,"Location (Facility) Upgrades for New Equipment"]
[null,"Bundled Open-RAN",null,null,"Field Engineering"]
[null,"SAS Integration Costs (per Radio)",null,null,"Off-site Integration & Staging"]
[null,"Open vRAN eNodeB\nModel is based on single band 50 site cluster. It includes RRU (Remote Radio Unit)/CU (Control Unit)/DU (Distributed Unit)/SW (Software)/NFVi (Network Functions Virtualization infrastructure). SW include all features, power licenses, optional features ",null,null,"Lab Testing - Interoperability Testing and Compliance for New Equipment "]
[null,"RAN (Open RAN/ vRAN) Components",null,null,"National Environmental Policy Act (NEPA) & National Historic Preservation Act (NHPA)"]
[null,"DU",null,null,"Attorney"]
[null,"CU (Control Unit)",null,null,"Legal Fees Zoning/Permitting issues"]
[null,"SPF - Small form-factor pluggable transceiver",null,null,"Legal Fees Zoning/Permitting issues - Microwave"]
[null,"GPS",null,null,"Disposal costs/Logistics"]
[null,"GSM&UMTS (Universal Mobile Telecommunications System)",null,null,"Compliant Disposal"]
[null,"Small Cell",null,null,"FCC filing fees"]
[null,"Tower Shelter",null,null,"Tariff Filings"]
[null,"Outdoor Cabinets",null,null,"Accounting"]
[null,"Indoor Cabinets",null,null,"Security - onsite"]
[null,null,null,null,"Snow Cat Usage (8-12 hours day, plus operator expense)"]
[null,null,null,null,"Storage, Warehousing, Material Handling"]
[null,null,null,null,"KPIs Pre & Post Installation Support"]
[null,null,null,null,"Drive Testing - Signal Strength Verification"]
[null,null,null,null,"911 & E911 Services and Drive Test Services (47 CFR § 9.10(i)(2)(i)(B)(4)) (50m x/y)"]
[null,null,null,null,"End-User Location - Truck roll or self-install (per end-user)"]
[null,null,null,null,"Services Specific to: Alaska, American Samoa, Hawaii, Puerto Rico and Virgin Islands Plus 30-50% additional costs for the service items listed in the conterminous (contiguous) United States.  Additional taxes, duties and/or custom fees will be required"]

{"sheet":"Subcategory - Catalog Item","index":3,"n_rows":28,"n_cols":115,"rows_kept":28,"cut":false,"hidden":true,"merged":[]}
["Optical line terminal equipment (OLT)","Access WDM (Wavelength Division Multiplexing) & OTN (Optical Transport Network)","End-User Termination Point - FTTH","Ethernet Service Access Node (ESAN) (includes outdoor cabinet & install)","LAN MDUs","Home network and customer premises equipment (CPE)","Customer Outreach to End-User - Public Relations/Notification","Cable coaxial media converters","WLAN (Wireless Local Area Network)","Site Cabinets - Optical Network Units (ONU)","Routers","Switches","FTTH (Fiber To The Home) - GPON (Gigabyte Passive Optical Network) / XGS (10-Gigabit-capable symmetric passive optical network)","VDSL (Very high-speed Digital Subscriber Line) Access Network","Cell Edge Aggregation","Network security equipment","Distribution WDM & OTN ","Microwave PTP (point to point links)","Microwave PTMP (point to multipoint)","Microwave Antennas - Single Pole","Microwave Antennas - Dual Polarization","Microwave Antennas - Dual Polarization – Ultra High Performance","Microwave Antennas - mmWave Flat Panel","Antenna - LTE (Long Term Evolution) Multi-band, >16dBi","Antenna - LTE & CBRS (Citizens Broadband Radio Service), >16dBi","Antenna - CBRS only ","Hybrid Cable & Radio/Antenna Jumpers, Tower Ancillary Components","LAN MDUs (Local Area Network Multi-Dwelling Units)","Bearer - 5G Transport connects all categories of the mobile network infrastructure, including fronthaul, midhaul, and backhaul","LTE FDD (Frequency Division Duplex)","LTE TDD (Time Division Duplex)","LTE BBU (Baseband Units)","1 Sector Bundle - 10/20MHz channels - RU (Radio Unit), CDU (Cabinet Distributed Unit), shelf, cables, SFP's, and antennas","1 Sector Bundle - 40MHz channels - RU, CDU, DU shelf, cables, SFP's, and antennas","1 Sector Bundle - 60MHz channels - RU, CDU, DU shelf, cables, SFP's, and antennas","Rapid Deployed, Self-contained 5G cell site with attached Core","Bundled BBU/RRH (Base Band Unit/Remote Radio Head) Fixed Wireless","Bundled BBU/RRH (Base Band Unit/Remote Radio Head) Mobility Wireless - nonMIMO","Bundled BBU/RRH (Base Band Unit/Remote Radio Head) Mobility Wireless - mMIMO","Bundled Open-RAN","SAS Integration Costs (per Radio)","Open vRAN eNodeB\nModel is based on single band 50 site cluster. It includes RRU (Remote Radio Unit)/CU (Control Unit)/DU (Distributed Unit)/SW (Software)/NFVi (Network Functions Virtualization infrastructure). SW include all features, power licenses, optional features ","RAN (Open RAN/ vRAN) Components","DU","CU (Control Unit)","SPF - Small form-factor pluggable transceiver","GPS","GSM&UMTS (Universal Mobile Telecommunications System)","Small Cell","Tower Shelter","Outdoor Cabinets","Indoor Cabinets","EPC","Cloud Core","RAN Core / EMS ","WDM & OTN – Core Equipment\n(Wavelength Division Multiplexing & Optical Transport Network","Core Server Hardware","Operation Support Systems (OSS)","Orchestration","Cloud Computing","Optical Transmission","Data Transmission","Software","Licenses","Preplanning","Site Acquisition ","Site Surveys","RF Engineering","Interim Facility Requirement","Leasing","Project Management","Spectrum Planning and Management","Training","Resident Engineer/Staff","VoLTE voice coordination with providers","Structural Engineering / Tower studies","Negotiating with tower owners","Network Engineering Services","Tower/Water Tower/Barn/Rooftop Preparation","Antenna/Radio R&R - Tower up to 200', not water tank","Antenna/Radio R&R - Non-penetrating Roof Mounted","Shelter Cable Entry Port Additions","Ground Buss Bars","Tower Modifications","Site Work","Cable Sweep & PIM Testing","Connectivity Upgrades or Extensions","Tower/Installation Crews","Helicopter Lift\n(e.g., for a rooftop tower, complex tower, tall structure, or terrain constrained location requiring helicopter lift)","Equipment Rental","Virtual/Cloud Core Deployment","GPON/XGS (FTTH) Deployments","Location (Facility) Upgrades for New Equipment","Field Engineering","Off-site Integration & Staging","Lab Testing - Interoperability Testing and Compliance for New Equipment ","National Environmental Policy Act (NEPA) & National Historic Preservation Act (NHPA)","Attorney","Legal Fees Zoning/Permitting issues","Legal Fees Zoning/Permitting issues - Microwave","Disposal costs/Logistics","Compliant Disposal","FCC filing fees","Tariff Filings","Accounting","Security - onsite","Snow Cat Usage (8-12 hours day, plus operator expense)","Storage, Warehousing, Material Handling","KPIs Pre & Post Installation Support","Drive Testing - Signal Strength Verification","911 & E911 Services and Drive Test Services (47 CFR § 9.10(i)(2)(i)(B)(4)) (50m x/y)","End-User Location - Truck roll or self-install (per end-user)","Services Specific to: Alaska, American Samoa, Hawaii, Puerto Rico and Virgin Islands Plus 30-50% additional costs for the service items listed in the conterminous (contiguous) United States.  Additional taxes, duties and/or custom fees will be required",null,{"$f":"IF(ISERROR(MacrosEnabled()&NOW()),\"Macros are disabled\",\"Macros are enabled\")","v":"Macros are disabled"}]
["Optical line terminal equipment (OLT)","Access WDM & OTN equipment, Small network, includes subscription (per node)","Customer ONT - indoor","Ethernet Service Access Node (ESAN) (includes outdoor cabinet & install)","LAN MDUs (Local Area Network Multi-Dwelling Units), Small, includes subscription","CBRS/B48 Category 15 15-19 dBi Gain Outdoor Unit","Legal review of customer notices & communications; public relations - (2-4 hours)","Cable coaxial media converters","WLAN - small","Site Cabinets - Optical Network Units (ONU)","Small Cell Site Router capable of L2/Ethernet and IP/MPLS with a mix of 1GE (8 or fewer) and 10GE interfaces (2 or fewer)","Switches - small business and campus networks, cloud grade","GPON/XGS Element Management System (10k subs)","VDSL - ISP vs. OSP (Inside Plant vs. Outside Plant)","Edge Aggregation - for 8 Cell Sites","Network security equipment - small network","WDM & OTN equipment, Small network, includes subscription (per node)","Microwave Radio pair (5.8 GHz 2+0 500 Mbps basic hop - 11 GHz 4+0 2.8 Gbps hop with switching)","28/39 GHz PTMP Microwave Hub Node (access point), includes 90° sector antenna (LMDS A2/A3 or B Band)","0.3 - 1.2 meter (1 - 4 foot)","0.3 - 1.2 meter (1 - 4 foot)","0.3 - 1.2 meter  (1 - 4 foot)","Flat Panel","2 port - 2T2R through 8 port - 8T8R","8 port - 8T8R through 20 port - 20T20R","2 port - 2T2R through 16 port - 16T16R","Cable breakout interconnect 100', maximum of 12 power conductors & 24 fiber","Small Networks","Bearer - small network","2-port capable, low-mid band radio for 1 sector (5Mhz, FDD, LTE or W-CDMA (Wideband Code Division Multiple Access))","4-port capable, low-mid band radio for 1 sector (20Mhz, TDD)","Rack Mounted or Outdoor Mounted baseband unit (BBU)","Single sector CBRS 4T4R base station and Baseband Unit - 10/20MHz channel","Single sector CBRS 4T4R base station and Baseband Unit - 40MHz channel","Single sector CBRS 4T4R base station and Baseband Unit - 60MHz channel","HIGH - 5G Fully Integrated, EMP Hardened Cellsite with Mobile Edge compute and embedded 5G Core - 600mhz - 6ghz; 30ghz and up + Counter UAS Radar & Video Surveillance","2T2R-8T8R eNodeB with 3 sectors, single spectrum band of up to 20 MHz/sector. Fixed Wireless features. Range due to Low Power radio (20W) vs High Power radio (up to 320W). Price includes Remote Radio Units (RRU), Base Band Unit (BBU), Ancillaries, Software Features, and Capacity Licensing. Price excludes antennas, tower cabling, tower ancillaries and over voltage protection (OVP)","2T2R-8T8R eNodeB with 3 sectors, single spectrum band of up to 20 MHz/sector. Mobility features. Range due to Low Power radio (20W) vs High Power radio (up to 320W). Price includes RRHs, BBU, Ancillaries, Software Features, and Capacity Licensing. Price excludes antennas, tower cabling, tower ancillaries and over voltage protection (OVP)","mMIMO eNodeB 3 Sector Per Band (64T64R 20 MHz 1 Band - 64T64R 60 MHz 1 Band with Advanced Mobility Features)","Macrocell 4G 20MHz Carrier (Bundle - Antennas, RU/RRU, BBU Software, GPS Receiver, STU (Subscriber Terminal Unit), RIU (Radio Interface Unit), Mechanical Mounting, Cables and Connectors, SFPs (Small Form-Factor Pluggable))","SAS Integration Costs (per Radio)","B71 (3 sector site) or B5 (3 sector) One RRU Type","RRU - band 71 - Perpetual license, w/ SW; all-inclusive power, features, carriers etc.","Multi-Access Edge Server (indoor)","Edge Computing vCompute NODE","SFP - 10G","GPS Antenna, Lightning Arrestor, GPS Splitter 1:8, Cable Assembly-Coaxial (35')","3G/UMTS RNC (Radio Network Controller) Small - Medium (50 - 1000 nodes)","Small Cell, LTE B42 B43 B48 integrated antenna eNodeB ","New shelter: Shelter, delivery, crane, labor, pad","Cabinet, Power Distribution Unit, 4 to 8 Rectifiers, 1 to 2 Battery Strings, optional Heat Exchanger","Indoor cabinet (small to large site, optional battery backup included.  ","4G/5G-NSA Evolved Packet Core - Small, SGW, PGW, MME (10K subs to 50K subs, includes deployment)","Cloud - Virtual EPC (SAE-GW, Firewall, Carrier Grade NAT, eCGF, MME, PCRF, Small Network), includes Design, Installation, Commissioning, Integration Services","IMS and RAN Element Management System, Compact EMS with Basic Licensing, includes hardware (10K to 50K subs), includes Design, Installation, Commissioning, Integration Services","Core Equipment for WDM & OTN (per node)","RGS Server","OSS/BSS Design - Process Automation & Network Roll-out (based on 1 million subscribers)","Orchestration Design - Service Design & Creation (based on 1 million subscribers)","Cloud Computing","Small to Medium Network","Small to Medium Network","Active Ethernet (AE) functionality for provisioning and alarming","4G IOT License - Perpetual  - per Subscriber","NTP (Notice to Proceed) Package (per site)","Existing Colocation (per site, flat fee) – (Low) without A&E, permitting and Legal; (High) full scope","Drone - Visual Inspection (per site)","Construction Drawings (per site)","Cost of temporary site (COW) during tower replacement or modification","Negotiation of co-location contracts/leases (2-4 hours per contract)","Project Management - carrier internal (per person per month)","Leasing or purchase of additional spectrum and related negotiations - (8-10 hours per agreement)","Product, Engineering and Operations Training Courses (classroom or web per student/day)","RAN/CORE Engineer - to provide on-site support during and after turn-over for 1 year (per person/per quarter)","VOLTE Optimization (per site)","Structural Analysis - complexity of design (per site)","Executed Agreement (per site)","CIQ creation/review (per site)","Remove RRH/RRU, Antenna and cabling","Rip & Replace - Up to (3) Antenna Replacement (Install/Swap up to (3) new antennas, with associated jumpers, plumbing/re-plumbing etc.)","Rip & Replace - Up to (3) Antenna Replacement (Install/Swap up to (3) new antennas, with associated jumpers, plumbing/re-plumbing etc.)","Up to six (6) entry ports (provide and install)","Tower or Shelter Buss bar addition","Modification Design (per site)","Site Work","PIM Test and Remediate* 0 to 12 Paths","Review of interconnection and colocation agreements - (2-5 hours per contract)","Mobilization Less than or Equal to 250 Miles (2-4 Member Crew)","Max 1000 lbs - 6 hr day rate + hourly","Crane - Ave 8 hour hook time based on tower height, miles, size, hourly rate","Cloud - Virtual EPC (SAE-GW, Firewall, Carrier Grade NAT, eCGF, MME, PCRF, up to 10k subscribers)","Backbone WDM/optical transport networking equipment – (per network)","Research to ensure compliance with tower standards (ANSI/TIA-222-H) due to modifications triggering non-compliant towers to comply - (3-5 hours per site)","Optical Fiber Optic Characterization - 8 Strands","NAIC Integration Add-on for UPS, Router, Switch, Server, Appliance, Storage 10RU+ per Device (from 5 to 15 devices)","Engineering consulting for network planning & scenario analysis (remote per week)","National Environmental Policy Act (NEPA) & National Historic Preservation Act (NHPA)","Negotiate and review vendor contracts - (6-12 hours per contract)","Zoning and Permitting determination (per site)","FCC Licensing - Microwave - (1-2 hours)","Staging, transportation, warehousing and disposal (per site)","Inventory, processing, destruction, disposal, recycling reporting and certification of Recycling - Citing ITAR (per site) - Transport not included","New, Modification (Microwave) - per call sign (with$250 regulatory fee)","Tariff Filing Fee (per transmittal or cover letter)","Review of Depreciation Update Study (single state)","Fence/Compound Work (per site)","Snow Cat Usage (8-12 hours day, plus operator expense)","Contract review & negotiations (2-4 hours)","Pre and post swap cluster KPI monitoring (per site)","Pre and post swap cluster drive testing (per site)","Rehome E911 Drive Cost (per Cell Site) - ensuring call connects to right 911 ","End User Location - Truck roll or self-install (per end user)","Mobilization Costs - Virgin Islands (per site)"]
[null,"Access WDM & OTN equipment, Medium to Large network, includes subscription (per node)","Customer ONT - outdoor",null,"LAN MDUs (Local Area Network Multi-Dwelling Units), Medium, includes subscription","CBRS/B48 Category 15 High Gain Indoor Unit",null,"CMTS (per node)","WLAN - medium to large network","Fiber - FTTP (Fiber To The Premises) - per mile, trenched & buried, rural, flat, rocky - to urban","Medium Cell Site Router capable of L2/Ethernet and IP/MPLS with a mix of 1GE (20 or fewer) and 10GE interfaces (8 or fewer)","Switches - medium business and campus networks, cloud grade","GPON/XGS OLT",null,"Edge Aggregation - for 16 Cell Sites","Network security equipment - medium network","WDM & OTN equipment, Medium to Large network, includes subscription (per node)","Microwave Radio pair (Indoor, split-mount, small varying radio link capacities and capabilities","28/39 GHz PTMP Microwave Remote Node, includes 1' parabolic antenna","1.8 - 3.0 meter (6 - 10 foot)","1.8 - 3.0 meter (6 - 10 foot)","1.8 - 3.0 meter  (6 - 10 foot)","0.3 to 0.6 meter (1-2 foot, single polarization)","10 port - 10T10R through 20 port - 20T20R",null,null,"Cable breakout interconnect 200', maximum of 12 power conductors & 24 fiber","Medium Networks","Bearer - medium to large network","4-port capable, low-mid band radio for 1 sector (5Mhz, FDD, LTE or W-CDMA)","8-port capable, low-mid band radio for 1 sector (20Mhz, TDD)","W-CDMA RNC (Radio Network Controller, small network, <50k subscribers)","Single sector CBRS 64T64R base station and Baseband Unit - 10/20MHz channel","Single sector CBRS 64T64R base station and Baseband Unit - 40MHz channel","Single sector CBRS 64T64R base station and Baseband Unit - 60MHz channel","MEDIUM - 5G Fully Integrated, EMP Hardened Cellsite with Mobile Edge compute and embedded 5G Core - 600mhz - 6ghz; 30ghz and up + Diverse Backhaul (Free space Optic and/or MM wave)","mMIMO eNodeB with 3 sectors, single spectrum band of up to 20 MHz/sector. Fixed Wireless features. Range due to Low Power radio (120W) vs High Power radio (up to 240W). Price includes Radio+Antenna, BBU, Ancillaries, Software Features, and Capacity Licensing. Price excludes tower cabling, tower ancillaries and over voltage protection (OVP)",null,null,"Macrocell - 5G Sub6 100MHz Carrier (Bundle - Antennas, RU/RRU, BBU Software, GPS Receiver, STU, RIU, Mechanical Mounting, Cables and Connectors, SFPs)",null,"B41 (3 sector site) One RRU Type","RRU - band 41 - Perpetual license, w/ SW; all-inclusive power, features, carriers etc.","Multi-Access Edge Server (outdoor)","vCU Server",null,null,"3G/UMTS NodeB HW/SW addition to eNodeB",null,null,"Outdoor Cabinet Install (Provide and Install)","Indoor Power Plants / Rectifiers / Batteries","4G/5G-NSA Evolved Packet Core - Medium, SGW, PGW, MME (50K subs to 200K subs), cost per site, includes deployment","Cloud - Virtual EPC (SAE-GW, Firewall, Carrier Grade NAT, eCGF, MME, PCRF, Medium Network), includes Design, Installation, Commissioning, Integration Services","IMS and RAN Element Management System, Medium EMS with Basic Licensing, includes hardware (50K to 100K subs), includes Design, Installation, Commissioning, Integration Services",null,"RGS-E Server","OSS/BSS Design - Network & Service Assurance (based on 1 million subscribers)","Orchestration Design - Universal Cloud Orchestration (based on 1 million subscribers)",null,"Medium to Large Network","Medium to Large Network","Voice Core","4G Connectivity License - Perpetual - per Subscriber","A&E Walk (per site)",null,"Drone - Infrared Inspection - expenses not included (per site)","MPE Survey RF Emissions (per site)",null,"Lease review (per site)","Review work orders and related purchase orders - (1-4 hour per work order)","Preparation of purchase or lease agreement (3-5 hours per agreement)","Onsite-Knowledge Transfer (per week)","Network Operations - to provide on-site support during and after turn-over – internal labor (per person/per year) ",null,"Mount Analysis - size of tower, complexity of loading scenarios (per site)","Fully Executed Amendment (per site)","SCF Creation / WO for new sites up to 12 carriers (per site)","Remove 3 RRH/RRU, 3 Antenna and 3 cabling","Rip & Replace - Up to (6) Antenna Replacement (Install/Swap up to (6) new antennas, with associated jumpers, plumbing/re-plumbing etc.)","Rip & Replace - Up to (6) Antenna Replacement (Install/Swap up to (6) new antennas, with associated jumpers, plumbing/re-plumbing etc.)",null,null,"Foundation Drawings/Inspection (per site)","Pre-Construction Site Walk - distance to site, size of tower","PIM Test and Remediate* 13 to 24 Paths",null,"Mobilization 251-500 Miles (2-4 Member Crew)","Max lift 3,200 lbs - 6 hr day rate + hourly","Bucket Truck (day rate) - dependent on location","Cloud - Virtual EPC (SAE-GW, Firewall, Carrier Grade NAT, eCGF, MME, PCRF, up to 50k subscribers)","Deployment - Cloud Computing – (per network)","Due diligence review of modifications/upgrades for compliance with FCC NEPA rules, including Section 106 Review, and FAA and ASR rules (3-5 hours per site)","Onsite Sr. Optical Engineer Support (40 hours)","NAIC Integration Add-on for UPS, Router, Switch, Server, Appliance, Storage Up to 9RU per Device (10 - 20 devices)","IoT (Interoperability testing) for RAN & Core compatibility (per network)","Due Diligence Review for compliance with FCC NEPA and Section 106 rules for collocation - (3-5 hours per site)","Legal review of Environmental Consultant Contracts and SOWs for Phase I Environmental Review - (1-3 hours per contract)","Zoning drawing (per site)","New facilities - (1-2 hours)","Decommission - Up to (3) antennas (6) runs of coax, mounts and miscellaneous hardware from tower top to inside the shelter to QWS",null,"Modify facilities - per call sign","Application for Special Permission Filing (request for waiver of any rule in Part 61)","Each Additional State ","Security Guard - Hourly Rate",null,"Logistics and Material Management & Warehousing (per site)",null,"Single site verification drive testing (per site)","Accuracy Testing (50 meter x/y) (Cost per Test Point, Average about 10 test points per County)","Legal review of customer notices & communications; public relations (2-4 hours)"]
[null,null,"Small Business/SOHO - Distribution Node to Multiple End-User (per node)",null,"LAN MDUs (Local Area Network Multi-Dwelling Units), Large, includes subscription","SAS Integration Costs (per Radio)",null,null,null,"Fiber - FTTP (Fiber To The Premises) - per mile, aerial lashed, rural - to urban","Large Cell Site Router capable of L2/Ethernet and IP/MPLS with a mix of 1GE (24 or fewer), 10GE (24 or fewer), and 100GE interfaces (4 or fewer)","Switches - Large business and campus networks, cloud grade","GPON/XGS OLT - Outside Plant",null,"Edge Aggregation - for 32 Cell Sites","Network security equipment - large network",null,"Microwave Radio pair (Indoor, split-mount, small to medium radio link capacities and capabilities","28/39 GHz PTMP Microwave Remote Node, includes 2' parabolic antenna",null,null,null,"0.3 to 0.6 meter (1-2 foot, dual polarization)",null,null,null,"Cable breakout interconnect 300', maximum of 12 power conductors & 24 fiber","Large Networks",null,"Expansion of 2-port low-mid band radio for 1 sector (additional 5Mhz of (FDD), nominal to large amount of power)","Expansion of 2,4,8-port low-mid band radio for 1 sector (additional 20Mhz of (TDD), nominal to large amount of power)","W-CDMA RNC (Radio Network Controller, medium network, <250k subscribers)",null,null,"4T4R CBRS Radio Unit, 4T4R pole mounting bracket, 4T4R 10meter CPRI optical cable","LOW - 5G Fully Integrated, EMP Hardened Cellsite with Mobile Edge compute and embedded 5G Core - 600mhz - 6ghz with Fiber Media Gateway",null,null,null,"Macrocell - 5G mmWave (Bundle - RU/RRU, BBU Software, GPS Receiver, DU (Open RAN Distributed Unit), Mechanical Mounting, Cables and Connectors, SFPs)",null,"B66 or B4(3 sector) One RRU Type","RRU - band 12 - Perpetual license, w/ SW; all-inclusive power, features, carriers etc.","vDU Server",null,null,null,null,null,null,"Relocate CSR to New Cabinet",null,"4G/5G-NSA Evolved Packet Core - Large, Distributed, SGW, PGW, MME (greater than 200K subs - redundant solution, per site, includes deployment)","Cloud - Virtual EPC (SAE-GW, Firewall, Carrier Grade NAT, eCGF, MME, PCRF, Large Network), includes Design, Installation, Commissioning, Integration Services","IMS and RAN Element Management System, Large EMS with Premium Licensing, includes hardware (>250 subs), includes Design, Installation, Commissioning, Integration Services",null,"NFV Server","OSS/BSS Design - Network Testing & Management (based on 1 million subscribers)","Orchestration Yearly License Costs & Fees (based on 1 million subscribers)",null,null,null,"Data (Ran CORE)","4G Communications License - Perpetual - per Subscriber","Utility Coordination",null,"Drone - Additional field work - day rate - expenses not included","Modeling, Site Design, Performance Troubleshooting, Internal Team Optimization (per site)",null,"Attend Scoping Meeting/Coordinate with RF (per site)","Project Management (per person per month)","Preparation and submission of any required FCC filings for permission (2-4 hours)","Subscription (per person 5-11 plus flat fee) ",null,null,"Tower/Mount Mapping (per tower)","Fully Executed Amendment - Non-MLA (per site)","Engineering Services (RAN) (per site)","Remove BBU","Rip & Replace - Up to (3) Radios (RRH/RRU) Replacement (Install/Swap up to (3) new radios, with associated jumpers, plumbing/re-plumbing accordingly etc. No new antennas or hybrid)","Rip & Replace - Up to (3) Radios (RRH/RRU) Replacement (Install/Swap up to (3) new radios, with associated jumpers, plumbing/re-plumbing accordingly etc. No new antennas or hybrid)",null,null,"Foundation Install <200' (Monopole/SS) ","Parallel/New 200A Service","PIM Test and Remediate* 25 to 36 Paths",null,"Mobilization Greater than 500 Miles (2-4 Member Crew)","Mobilization/demobilization is priced by the hourly rate for each helicopter - 6 hours/each","Manlift or Boomlift 45-135' (day rate) - dependent on location","Cloud - Virtual EPC (SAE-GW, Firewall, Carrier Grade NAT, eCGF, MME, PCRF,  >200k subscribers)","Deployment - Optical Transmission – (per network)","Depending on spectrum licenses, preparation and submission of any required FCC applications for modifications for facility upgrades, equipment changes, and preparation of any FAA applications and ASR applications for structure modifications or lighting changes - (2-4 hours)","Remote Sr Optical Engineer Support (40 hours)","Optical 2-Slot to 16 Slot Level 1 Staging","IoT (Interoperability testing) for RAN compatibility (per network)","Legal Review for Environmental Consultant SOWs for NEPA and Section 106. and all work related - (2-3 hours per site)","Preparation of any required FAA and ASR filings - (5-8 hours per application)","Zoning Approval (per site)","Modify facilities - (4-6 hours)","Decommission - Up to (9) antennas (12) runs of coax, mounts and miscellaneous hardware from tower top to inside the shelter to QWS",null,"Extension of Construction Authority (Microwave) - per call sign","Waiver of Part 69 Tariff Rules (per request)","Petition for Waiver (per petition)",null,null,"Kitting (per site) (receive products from multiple OEMs and suppliers and integrate the related items into a single package, pallet or other format as desired)",null,"Troubleshooting (per hour/per man)","PSAP or County level KPI Accuracy Results Reports (Per Report)"]
[null,null,"Large Business/Enterprise - Distribution Node to Multiple End-User (per node)",null,null,null,null,null,null,null,"CellSite Router (1 Gig Port config L2 switch - 10 Gig Port config MPLS (Multiprotocol Label Switching) L3 router)","Switches - small enterprise and service provider, cloud grade",null,null,null,null,null,"Microwave Radio pair (Indoor, split-mount, medium to large radio link capacities and capabilities","28/39 GHz PTMP Microwave Remote Node, includes 3' parabolic antenna",null,null,null,null,null,null,null,"Cable breakout interconnect 400', maximum of 12 power conductors & 24 fiber",null,null,"Expansion of 4-port low-mid band radio for 1 sector (additional 5Mhz of (FDD), nominal to large amount of power)",null,"W-CDMA RNC (Radio Network Controller, large network, <500k subscribers)",null,null,"64T64R CBRS Radio Unit, 64T64R pole mounting bracket, 64T64R CPRI Optical module, 10 meter CPRI cable","Solar Cell Site Power Solution (<24 hour solution) - Green Power Solution",null,null,null,null,null,"B2 or B25 (3 sector) One RRU type","RRU - band 66 - Perpetual license, w/ SW; all-inclusive power, features, carriers etc.",null,null,null,null,null,null,null,"Install batteries and rectifiers",null,"4G/5G-NSA Evolved Packet Core - Large, Distributed, SGW, PGW, MME (greater than 200K subs - distributed, geo-redundant solution, per site, includes deployment)","Cloud - Virtual Stand Alone IMS (CTAS, IMS Core, MRF, AGW, A-SBC, HSS, ePDG, I-SBC, DRA, PCRF, 4G EPC, E-CSCF, LI interface, SMSC, MMSC, VM)","Packet Core Element Management System, Packet Core EMS (50K subs vs 250K subs), includes hardware (50K to 100K subs), includes Design, Installation, Commissioning, Integration Services",null,"Aggregation Router (range is Small 1G ports L2 Switch - Medium 10G/25G ports MPLS L3 Router)","OSS/BSS Yearly License Costs & Fees (based on 1 million subscribers)",null,null,null,null,"Network Management SW","5G SA/NSA IOT License - Perpetual - per Subscriber","Participation in FCC Rulemaking - (8-15 hours per filing)",null,"Site survey - (from ground) distance to site/complexity of site (including ground measurement) (per site)","RF Model Tuning - Propagation Model per morphology (Sub Urban,Urban,Dense Urban or Rural)",null,"Landlord consent and notice to Landlord (per site)","Construction Management (per person per month)",null,"Optical Training Service - 3 to 4 day instruction",null,null,"Review Contracts and Statements of Work - (2-3 hours per contract)","Legal review of tower leases and support of negotiations - (8-10 hours per lease)","Engineering Services (Core) (per core)","Remove BBU and replace with new BBU","Rip & Replace - Up to (6) Radios (RRH/RRU) Replacement (Install/Swap up to (6) new radios, with associated jumpers, plumbing/re-plumbing accordingly etc. No new antennas or hybrid)","Rip & Replace - Up to (6) Radios (RRH/RRU) Replacement (Install/Swap up to (6) new radios, with associated jumpers, plumbing/re-plumbing accordingly etc. No new antennas or hybrid)",null,null,"Foundation Install <200' (Monopole/SS) - Batch Plant","Upgrade to 200A Service","Sweep Test (per line)",null,"Mobilization Ground Crew - (2-4 Member Crew) - day rate",null,"Manlift or Boomlift 45-135' (week rate) - dependent on location","Cloud - Virtual IMS (CTAS, IMS Core, MRF, AGW, A-SBC, HSS, ePDG, I-SBC, DRA, PCRF, 4G EPC, E-CSCF, LI interface, SMSC, MMSC, VM), up to 10k subscribers","Deployment - Data Transmission – (per network)","Preparation and submission of any required post-construction filings including notifications to FAA and FCC of completion of construction, and any required application filings for spectrum applications or licenses - (2-4 hours) ",null,null,"Contract review - (2-4 hours)","Regulatory Management (per site)","Legal fees for research and preparation and filing for any zoning or local permitting requirements - (3-4 hours per site)","Attendance at additional zoning hearings","Requests for Special Temporary Authority - (6-8 hours)","Decommission - Each additional antenna (including) , associated mount, line and miscellaneous hardware.",null,"Duplicate License (Microwave) - per call sign",null,"Part 36 Separation Rules (per request)",null,null,"Storage (monthly)",null,"Pre-Launch Cluster Optimization - Pre and Post Drive Test (Up to 12 Carrier) (per site)","TXT2911 Rehome/Reset (Per Radio Technology, One Time Fee)"]
[null,null,null,null,null,null,null,null,null,null,"10G L2/Ethernet only NID/CellSite Router to IP/MPLS NID/CellSite Router","Switches - medium enterprise and service provider, cloud grade",null,null,null,null,null,"Microwave Radio pair, 2+0, 80MHz Channel, 1.4 Gbps (11GHz or 18GHz)",null,null,null,null,null,null,null,null,"\"Raycap\" Over-voltage Protection / Fiber Management – each",null,null,null,null,null,null,null,null,"Solar Cell Site Power Solution (24 to 48 hour solution) - Green Power Solution",null,null,null,null,null,"B48 One RRU Type","RRU - band 25 - Perpetual license, w/ SW; all-inclusive power, features, carriers etc.",null,null,null,null,null,null,null,"Install Outdoor Mounting Rack H-Frame",null,"HSS Subscriber Data - Small, HSS (up to 50K subs, includes deployment)",null,"Design, Installation, Commissioning, Integration Services, Packet Core EMS Add-ons",null,"Core Routers, small networks",null,null,null,null,null,"SDN-enabled management and control software (per device, 1yr to 3yr sub)","5G SA/NSA Connectivity License - Perpetual - per Subscriber","Consultation with Counsel on Finalized Rules & Regulations - (3-10 hours)",null,null,"Drone - Performance Mapping (RF Measurements) (per site)",null,"Site Plan - (lease exhibit) (per site)","NOC Staff Augments - (per person per month)",null,"Open vRAN Training - 3 to 4 day",null,null,null,null,"Engineering Services (IP Network) (per site)","Antenna Install (with material)","Rip & Replace - Up to (6) New Radios, (3) New Antennas (Install/Swap up to (6) new radios, (3) new antennas with associated jumpers, plumbing/re-plumbing etc.  No new hybrid)","Rip & Replace - Up to (6) New Radios, (3) New Antennas (Install/Swap up to (6) new radios, (3) new antennas with associated jumpers, plumbing/re-plumbing etc.  No new hybrid)",null,null,"Demo Existing Tower","Conduit and Fiber from Cabinet to H Frame",null,null,"Mobilization Tower (2-4 Member Crew) - day rate",null,"Manlift or Boomlift 45-135' (monthly rate) - dependent on location","Cloud - Virtual IMS (CTAS, IMS Core, MRF, AGW, A-SBC, HSS, ePDG, I-SBC, DRA, PCRF, 4G EPC, E-CSCF, LI interface, SMSC, MMSC, VM),  up to 100k subscribers","Deployment - GPON/XGS EMS – FTTH – (per network)",null,null,null,null,null,"Review insurance requirements and OSHA standards for tower climbers - (3-6 hours)","Complex zoning (including attendance at 2 hearings)","Rule Waivers - (4-6 hours)","Decommission - Microwave antenna (including), associated mount, elliptical line and miscellaneous hardware.",null,"Requests for Special Temporary Authority (Microwave) - Fee Exempt (per link)",null,null,null,null,null,null,"Mobility or FWA (non M-MIMO) Ground services base integration, cut over support, call / data test package for site with shelter (per site)","VoWiFi Rehome/Reset (Per Radio Technology, One Time Fee)"]
[null,null,null,null,null,null,null,null,null,null,"100G IP/MPLS Aggregation (non-redundant - redundant controllers)","Switches - large enterprise and service provider, cloud grade",null,null,null,null,null,"Microwave Radio pair, 4+0, 80 MHz Channel, 2.8 Gbps (11GHz or 18GHz)",null,null,null,null,null,null,null,null,"OVP to radio power/fiber jumpers, coax jumpers (each)",null,null,null,null,null,null,null,null,"Generator -based power Cell Site Power Solution - Green Power Solution",null,null,null,null,null,"B71/B25 (3 Sector for each RRU) Two RRU Type (dual band per sector)","RRU - band 2 - Perpetual license, w/ SW; all-inclusive power, features, carriers etc.",null,null,null,null,null,null,null,null,null,"HSS Subscriber Data - Medium, Per site - HSS (50K subs vs 250K subs, includes deployment)",null,"Design, Installation, Commissioning, Integration Services IMS/EMS Add-Ons",null,"Core Routers, medium networks",null,null,null,null,null,"RAN Element Management System (Small EMS with Basic Licensing - Medium EMS with Premium Licensing)","5G SA/NSA Communications License - Perpetual - per Subscriber",null,null,null,null,null,"Co-location application (per site)","Transition Planning for Cutover - complexity of equipment changes (per site)",null,null,null,null,null,null,"Engineering Services (Microwave Backhaul) (per link)","Radio Install - each radio - height of radios on tower; # RF jumper cables per radio/antenna","Rip & Replace - Up to (9) New Radios, (3) New Antennas (Install/Swap up to (9) new radios, (3) new antennas with associated jumpers, plumbing/re-plumbing etc.  No new hybrid)","Rip & Replace - Up to (9) New Radios, (3) New Antennas (Install/Swap up to (9) new radios, (3) new antennas with associated jumpers, plumbing/re-plumbing etc.  No new hybrid)",null,null,"Minor Tower reinforcement/modifications - size of tower, extent of reinforcing","Hand Trenching from Backhaul Cabinet to New Cabinet (25')",null,null,"Troubleshooting – RRU Replacement during the maintenance window on site per hour (Up to four-man crew)",null,"Gin Pole Cost (per job)","Cloud - Virtual IMS (CTAS, IMS Core, MRF, AGW, A-SBC, HSS, ePDG, I-SBC, DRA, PCRF, 4G EPC, E-CSCF, LI interface, SMSC, MMSC, VM),  >200k subscribers","RAN EMS Deployment – (per network)",null,null,null,null,null,"Spectrum acquisition agreement - (4-8 hours per contract)","Completion and submittal of permit (building or electrical) (per site)","Spectrum Leasing (De Facto) - (2-4 hours)","Decommission In Shelter - 2nd eNodeB Rack, diplexers w/mount, RF coax jumpers:",null,"Rule Waivers/Spectrum Leasing for new or sublease, Transfer of Control of a Lessee or a Sublessee or Extend Term of a Lease or Sublease (Microwave/Broadband 2.5GHz) - per call sign -$70 each additional",null,null,null,null,null,null,"Cluster Optimization (Drive based) for FWA or Mobility (Per Technology (LTE or UMTS)), 10-Site Cluster)","Mobilization fee (Charge each time tester is moved to a new state or carrier market area)"]
[null,null,null,null,null,null,null,null,null,null,null,null,null,null,null,null,null,"Microwave Radio pair, 2+0, 50MHz Channel, 850 Mbps (23 GHz)",null,null,null,null,null,null,null,null,null,null,null,null,null,null,null,null,null,"5G RAN & Core Consulting – per hour",null,null,null,null,null,"B71/B12/B41 (3 Sector for each RRU) Three RRU Type (tri-band per sector)","RRU - band 5 - Perpetual license, w/ SW; all-inclusive power, features, carriers etc.",null,null,null,null,null,null,null,null,null,"HSS Subscriber Data - Medium, Per site - HSS (250K subs vs 500K subs, includes deployment)",null,null,null,"Core Routers, large networks",null,null,null,null,null,"Core Element Management System (10K subscriber core - 250K subscribe core)","4G+5G NSA IOT License - Perpetual - per Subscriber",null,null,null,null,null,null,"Transition Planning for Cutover: Optical Network Subscriber and network migration services up to 16 nodes additional for add-on's",null,null,null,null,null,null,"Engineering Services (Microwave Backhaul) FCC PCN Coordination) (per link)","Install new Power Trunk","Rip & Replace - Up to (12) New Radios, (6) New Antennas (Install/Swap up to (12) new radios, (6) new antennas with associated jumpers, plumbing/re-plumbing etc.  No new hybrid)","Rip & Replace - Up to (12) New Radios, (6) New Antennas (Install/Swap up to (12) new radios, (6) new antennas with associated jumpers, plumbing/re-plumbing etc.  No new hybrid)",null,null,"Build new <200' monopole (Erection only including crane)","Trenching and Cabling from New Cabinet to Power Panel (100’ – includes materials)",null,null,"Troubleshooting – RRU Replacement during the non-maintenance window on site per hour (Up to four-man crew)",null,"Matting for Temporary Roads - Grid Mats Cost per 100ft",null,null,null,null,null,null,null,"Review contracts for proper insurance, indemnification, liability and risk management - (2-4 hours)","Permit Pickup (per site)","FCC legal review and application filings - Fixed Wireless Link Replacement (2-4 hours)","Decommission - existing hybrid cable",null,"Major modification for spectrum leasing (Microwave/Broadband 2.5GHz) - per lease ID",null,null,null,null,null,null,"Single site verification stationary testing for FWA (per site)","Stand-by Fee (Per day)"]
[null,null,null,null,null,null,null,null,null,null,null,null,null,null,null,null,null,"Microwave Radio pair, 4+0, 50 MHz Channel, 1.7 Gbps (23 GHz)",null,null,null,null,null,null,null,null,null,null,null,null,null,null,null,null,null,null,null,null,null,null,null,null,"RRU - band 4 - Perpetual license, w/ SW; all-inclusive power, features, carriers etc.",null,null,null,null,null,null,null,null,null,"Mobile Position System (MPS) - Medium (60K subs) - Large (500Ksubs)",null,null,null,"Core Switches, small networks",null,null,null,null,null,"Per Call Measurement Data Server (PCMD)","4G+5G NSA Connectivity License - Perpetual - per Subscriber",null,null,null,null,null,null,"Legal review of customer communications related liability, indemnification and risk management in associated contracts and SOW - (6-8 hours)",null,null,null,null,null,null,"Negotiation & Review of RF engineering, AM Detuning, Interference or Intermodulation analysis, RF Emissions Study, and RF Exposure Measurements contracts - (2-3 hours per contract)","Install new Fiber Trunk","Install/Swap up to (18) new radios, (9) new antennas with associated jumpers, plumbing/re-plumbing accordingly etc. No new hybrid)",null,null,null,"Build new <200' monopole - Materials","Re-cable MW Dish to New Cabinet (100’ – includes materials)",null,null,"General Troubleshooting – Up to 4 hours of onsite troubleshooting (Up to four men crew)",null,"Snow Removal Equipment – per vehicle",null,null,null,null,null,null,null,"Review contracts for disposal to ensure compliance with law and liability related issues - (2-4 hours per contract)","Legal fees for research and preparation and filing for any zoning or local permitting requirements (per site)",null,"Decommission - remove waveguide, fiber, CAT5/6, coaxial cable up to 1 5/8\" (per foot)",null,"New, Modification or Major Modification (Broadband 2.5GHz) - per call sign",null,null,null,null,null,null,null,"Hosted SMLC Location Server License and Set-up- One Time Fee (“OTF”) (per project)"]
[null,null,null,null,null,null,null,null,null,null,null,null,null,null,null,null,null,"Microwave Radio pair, 1+0, 2000 MHz Channel, 10 Gbps (80 GHz)",null,null,null,null,null,null,null,null,null,null,null,null,null,null,null,null,null,null,null,null,null,null,null,null,"RRU - band 48 - Perpetual license, w/ SW; all-inclusive power, features, carriers etc.  SW price is per RRU for B48",null,null,null,null,null,null,null,null,null,"PCRF Server - Small, PCRF (up to 50K subs)",null,null,null,"Core Switches, medium networks",null,null,null,null,null,"Software Licenses (per radio) to include: M2M, Cat-M1, Narrowband IoT, and similar items","4G+5G NSA Communications License - Perpetual - per Subscriber",null,null,null,null,null,null,null,null,null,null,null,null,null,"Open RAN deployment services, CU/DU deployment instantiation support, per man/hour","Install Hybrid Cable (without Material)",null,null,null,null,"Build new <300' SST (Erection only including crane)","Install Ice Bridge (~30')",null,null,"General Troubleshooting – Up to 8 hours of onsite troubleshooting (Up to four men crew)",null,"Prime Mover or Similar for Towing - per vehicle",null,null,null,null,null,null,null,"Review of applicable tax code (2-4 hours per inquiry)","Jurisdictional Fees (per site)",null,"Decommission - one outdoor cabinet",null,"Certification of Completion of Construction (Broadband 2.5GHz) - per call sign",null,null,null,null,null,null,null,"Hosted SMLC Location Server Monthly Recurring Fee per Cell Site (“MRF”)"]
[null,null,null,null,null,null,null,null,null,null,null,null,null,null,null,null,null,"Microwave L2 Processing Shelf",null,null,null,null,null,null,null,null,null,null,null,null,null,null,null,null,null,null,null,null,null,null,null,null,null,null,null,null,null,null,null,null,null,null,"PCRF Server - Small Design, Installation, Commissioning, Integration, Migration Services",null,null,null,"Core Switches, large networks",null,null,null,null,null,null,"LTE Software License, perpetual license, technology LTE TDD/FDD, per cell/carrier",null,null,null,null,null,null,null,null,null,null,null,null,null,"Tier 2 & Tier 3 Operational Support, per man/hour","Fiber Inspection, Cleaning and Light Source & Power Meter Testing * Post Installation (per 24 fibers)",null,null,null,null,"Build new <300' SST - Materials","Cement Pad Install",null,null,"Troubleshooting – Single Antenna replacement during the maintenance window",null,"Straight Truck or Similar for Counterweight - per vehicle",null,null,null,null,null,null,null,null,"Phase 1 ESA (per site)",null,"Decommission - Indoor 19\" Rack with existing legacy BBU",null,"Extension of Construction Authority (Broadband 2.5 GHz) - per call sign",null,null,null,null,null,null,null,"Project Management Set-up - One Time Fee (“OTF”) (per site dependent on complexity)"]
[null,null,null,null,null,null,null,null,null,null,null,null,null,null,null,null,null,null,null,null,null,null,null,null,null,null,null,null,null,null,null,null,null,null,null,null,null,null,null,null,null,null,null,null,null,null,null,null,null,null,null,null,"3G HLR added to HSS - Small, HLR (up to 50K subs, includes deployment)",null,null,null,null,null,null,null,null,null,null,"5G NR (new radio) Software License, perpetual license, technology 5G NR TDD/FDD, per cell/carrier",null,null,null,null,null,null,null,null,null,null,null,null,null,null,"Raycap Install/Upgrade",null,null,null,null,"Major Tower reinforcement/modifications - size of tower; tower design; tower foundations; guy wires","Install BBU (rack or cabinet)",null,null,"Troubleshooting – Antenna replacement during the non-maintenance window ",null,"Forklift of Similar for Component Transport - per vehicle",null,null,null,null,null,null,null,null,"NEPA/SHPO Checklist only (per site)",null,"Decommission - Indoor 19\" Rack with up two battery strings",null,"Special Temporary Authority (Broadband 2.5 GHz) - per call sign or Market/Channel Block",null,null,null,null,null,null,null,"LPM Reporting Tool reset up One Time Fee (“OTF”) Per Radio Technology"]
[null,null,null,null,null,null,null,null,null,null,null,null,null,null,null,null,null,null,null,null,null,null,null,null,null,null,null,null,null,null,null,null,null,null,null,null,null,null,null,null,null,null,null,null,null,null,null,null,null,null,null,null,"3G HLR added to HSS - Medium, Per site - HLR (50K subs vs 250K subs, includes deployment)",null,null,null,null,null,null,null,null,null,null,"5G NR (new radio) mMIMO (massive MIMO) Software License, perpetual license, technology 5G NR TDD/FDD, per cell/carrier",null,null,null,null,null,null,null,null,null,null,null,null,null,null,"Install Sector Frame",null,null,null,null,"Serous Tower reinforcement/modifications - tower foundation mods; tower \"wrap\"","Installation of new 19\" rack in existing shelter",null,null,"Maintenance window work per night/per 3-man crew (per night)",null,null,null,null,null,null,null,null,null,null,"Photo Simulation (per site)",null,"Decommission - Single antenna",null,"New, Additional Facility, Major Modification (Cellular Radiotelephone) - per call sign"]
[null,null,null,null,null,null,null,null,null,null,null,null,null,null,null,null,null,null,null,null,null,null,null,null,null,null,null,null,null,null,null,null,null,null,null,null,null,null,null,null,null,null,null,null,null,null,null,null,null,null,null,null,"3G HLR added to HSS - Medium, Per site - HLR (250K subs vs 500K subs, includes deployment)",null,null,null,null,null,null,null,null,null,null,"LTE Open RAN eNB SW Fee, cost of (1) perpetual license per cell site, technology LTE TDD/FDD",null,null,null,null,null,null,null,null,null,null,null,null,null,null,"Installation of outdoor cabinet with one battery string",null,null,null,null,"Carrier Relocation BOM (per site)","GPS install",null,null,"Microwave Pathing - During Construction (per link)",null,null,null,null,null,null,null,null,null,null,"Negotiation & Review of RF engineering contracts – (2-4 hours per contract)",null,null,null,"Minor Modification (Cellular Radiotelephone) - per call sign"]
[null,null,null,null,null,null,null,null,null,null,null,null,null,null,null,null,null,null,null,null,null,null,null,null,null,null,null,null,null,null,null,null,null,null,null,null,null,null,null,null,null,null,null,null,null,null,null,null,null,null,null,null,"Design, Installation, Commissioning, Integration, Migration Services - Medium solution, 3G HLR added to HSS - Medium",null,null,null,null,null,null,null,null,null,null,"5G NR Open RAN eNB SW Fee, cost of (1) perpetual license per cell site, technology 5G NR TDD/FDD",null,null,null,null,null,null,null,null,null,null,null,null,null,null,"Installation of outdoor battery cabinet with two strings of batteries",null,null,null,null,"Carrier Relocation Civil Work (per site)","Install collar mounts (Tri & Quad) V-Booms, (with materials) – (Per Mount)",null,null,"Microwave Pathing - Post Construction (per link)",null,null,null,null,null,null,null,null,null,null,null,null,null,null,"Special Temporary Authority (Cellular Radiotelephone) - per request"]
[null,null,null,null,null,null,null,null,null,null,null,null,null,null,null,null,null,null,null,null,null,null,null,null,null,null,null,null,null,null,null,null,null,null,null,null,null,null,null,null,null,null,null,null,null,null,null,null,null,null,null,null,"AAA Server - Small, AAA (up to 50K subs)",null,null,null,null,null,null,null,null,null,null,"Open RAN Management System, cost of one perpetual license for 1 cell/carrier, technology LTE/5G NR TDD/FDD",null,null,null,null,null,null,null,null,null,null,null,null,null,null,"Installation of indoor cabinet with one battery string",null,null,null,null,"Carrier Relocation L&A Work (per site)","Install MOVE platform (with Materials) (Per Mount) – ASK CM, MUCH HIGHER THAN ATN ",null,null,"Microwave Commissioning and Integration (per link)",null,null,null,null,null,null,null,null,null,null,null,null,null,null,"Spectrum Leasing for new or sublease / Assignment of authorization or Transfer of Control (Full or Partial) / Transfer of Control of a Lessee or a Sublessee, Extend Term of a Lease or Sublease or Major Modification for Spectrum Leasing (Cellular Radio Telephone) - per call sign/lease"]
[null,null,null,null,null,null,null,null,null,null,null,null,null,null,null,null,null,null,null,null,null,null,null,null,null,null,null,null,null,null,null,null,null,null,null,null,null,null,null,null,null,null,null,null,null,null,null,null,null,null,null,null,"Design, Installation, Commissioning, Integration, Migration Services - Small solution, AAA Server - Small",null,null,null,null,null,null,null,null,null,null,null,null,null,null,null,null,null,null,null,null,null,null,null,null,null,"Installation of indoor battery cabinet with two strings of batteries",null,null,null,null,null,"DC Cable Pull Through Conduit Sizes #16AWG to #2AWG",null,null,"Microwave relocation during construction (per site)",null,null,null,null,null,null,null,null,null,null,null,null,null,null,"Minor modification for spectrum leasing (Cellular Radiotelephone) - per lease ID"]
[null,null,null,null,null,null,null,null,null,null,null,null,null,null,null,null,null,null,null,null,null,null,null,null,null,null,null,null,null,null,null,null,null,null,null,null,null,null,null,null,null,null,null,null,null,null,null,null,null,null,null,null,"AAA Server - Medium, Per site - AAA (50K subs vs 250K subs)",null,null,null,null,null,null,null,null,null,null,null,null,null,null,null,null,null,null,null,null,null,null,null,null,null,"PDU Installation (tower top, providing PDU)",null,null,null,null,null,"Re-use/Re-working existing hybrid (Cabling to new equipment and baseband along with required testing) – up to 12 fibers",null,null,null,null,null,null,null,null,null,null,null,null,null,null,null,null,null,"Domestic 214 Application -$1,155.00"]
[null,null,null,null,null,null,null,null,null,null,null,null,null,null,null,null,null,null,null,null,null,null,null,null,null,null,null,null,null,null,null,null,null,null,null,null,null,null,null,null,null,null,null,null,null,null,null,null,null,null,null,null,"AAA Server - Medium, Per site - AAA (250K subs vs 500K subs)",null,null,null,null,null,null,null,null,null,null,null,null,null,null,null,null,null,null,null,null,null,null,null,null,null,"DC power plant Install",null,null,null,null,null,"Install Hybrid Cable (with Material)"]
[null,null,null,null,null,null,null,null,null,null,null,null,null,null,null,null,null,null,null,null,null,null,null,null,null,null,null,null,null,null,null,null,null,null,null,null,null,null,null,null,null,null,null,null,null,null,null,null,null,null,null,null,"Design, Installation, Commissioning, Integration, Migration Services - Medium solution, AAA Server - Medium",null,null,null,null,null,null,null,null,null,null,null,null,null,null,null,null,null,null,null,null,null,null,null,null,null,null,null,null,null,null,null,"Upgrade Generator (modification reports, labor and modification)"]
[null,null,null,null,null,null,null,null,null,null,null,null,null,null,null,null,null,null,null,null,null,null,null,null,null,null,null,null,null,null,null,null,null,null,null,null,null,null,null,null,null,null,null,null,null,null,null,null,null,null,null,null,"Design, Installation, Commissioning, Integration Services, Mobile Switching Center",null,null,null,null,null,null,null,null,null,null,null,null,null,null,null,null,null,null,null,null,null,null,null,null,null,null,null,null,null,null,null,"Site Inspection - distance to site/complexity of site"]
[null,null,null,null,null,null,null,null,null,null,null,null,null,null,null,null,null,null,null,null,null,null,null,null,null,null,null,null,null,null,null,null,null,null,null,null,null,null,null,null,null,null,null,null,null,null,null,null,null,null,null,null,"IMS Core, Per site - CSCF, TAS, A-SBC, ES, LIG, MRF, DRA/DEA, DNS, ENUM (50K - 250K subs)",null,null,null,null,null,null,null,null,null,null,null,null,null,null,null,null,null,null,null,null,null,null,null,null,null,null,null,null,null,null,null,"Environmental Work (per site)"]
[null,null,null,null,null,null,null,null,null,null,null,null,null,null,null,null,null,null,null,null,null,null,null,null,null,null,null,null,null,null,null,null,null,null,null,null,null,null,null,null,null,null,null,null,null,null,null,null,null,null,null,null,"IMS Core, Per site - CSCF, TAS, A-SBC, ES, LIG, MRF, DRA/DEA, DNS, ENUM (250K - 500K subs)",null,null,null,null,null,null,null,null,null,null,null,null,null,null,null,null,null,null,null,null,null,null,null,null,null,null,null,null,null,null,null,"Solar Design (per site)"]
[null,null,null,null,null,null,null,null,null,null,null,null,null,null,null,null,null,null,null,null,null,null,null,null,null,null,null,null,null,null,null,null,null,null,null,null,null,null,null,null,null,null,null,null,null,null,null,null,null,null,null,null,"3G Packet Core addition to 4G EPC - Small to Medium, SGSN, GGSN (up to 500K subs, includes deployment)",null,null,null,null,null,null,null,null,null,null,null,null,null,null,null,null,null,null,null,null,null,null,null,null,null,null,null,null,null,null,null,"25-50 Amp Solar Upgrade (Install and Material) (per site)"]
[null,null,null,null,null,null,null,null,null,null,null,null,null,null,null,null,null,null,null,null,null,null,null,null,null,null,null,null,null,null,null,null,null,null,null,null,null,null,null,null,null,null,null,null,null,null,null,null,null,null,null,null,"WiFi Packet Data Gateway - ePDG (Small - 10K subs vs 50K subs, includes deployment)",null,null,null,null,null,null,null,null,null,null,null,null,null,null,null,null,null,null,null,null,null,null,null,null,null,null,null,null,null,null,null,"75-100 Amp Solar Upgrade (Install and Material) (per site)"]
[null,null,null,null,null,null,null,null,null,null,null,null,null,null,null,null,null,null,null,null,null,null,null,null,null,null,null,null,null,null,null,null,null,null,null,null,null,null,null,null,null,null,null,null,null,null,null,null,null,null,null,null,"WiFi Packet Data Gateway - ePDG (Medium - 50K subs vs 250K subs, includes deployment)",null,null,null,null,null,null,null,null,null,null,null,null,null,null,null,null,null,null,null,null,null,null,null,null,null,null,null,null,null,null,null,"Commissioning and Integration of single technology – per site"]
[null,null,null,null,null,null,null,null,null,null,null,null,null,null,null,null,null,null,null,null,null,null,null,null,null,null,null,null,null,null,null,null,null,null,null,null,null,null,null,null,null,null,null,null,null,null,null,null,null,null,null,null,null,null,null,null,null,null,null,null,null,null,null,null,null,null,null,null,null,null,null,null,null,null,null,null,null,null,null,null,null,null,null,null,"Closeout Package – Microwave (per link)"]
[null,null,null,null,null,null,null,null,null,null,null,null,null,null,null,null,null,null,null,null,null,null,null,null,null,null,null,null,null,null,null,null,null,null,null,null,null,null,null,null,null,null,null,null,null,null,null,null,null,null,null,null,null,null,null,null,null,null,null,null,null,null,null,null,null,null,null,null,null,null,null,null,null,null,null,null,null,null,null,null,null,null,null,null,"Closeout Package – (per site)"]

{"sheet":"Catalog Item - Avg Price","index":4,"n_rows":1071,"n_cols":530,"rows_kept":1071,"cut":false,"hidden":true,"merged":[]}
["Optical line terminal equipment (OLT)","Access WDM & OTN equipment, Small network, includes subscription (per node)","Access WDM & OTN equipment, Medium to Large network, includes subscription (per node)","Customer ONT - indoor","Customer ONT - outdoor","Small Business/SOHO - Distribution Node to Multiple End-User (per node)","Large Business/Enterprise - Distribution Node to Multiple End-User (per node)","Ethernet Service Access Node (ESAN) (includes outdoor cabinet & install)","LAN MDUs (Local Area Network Multi-Dwelling Units), Small, includes subscription","LAN MDUs (Local Area Network Multi-Dwelling Units), Medium, includes subscription","LAN MDUs (Local Area Network Multi-Dwelling Units), Large, includes subscription","CBRS/B48 Category 15 15-19 dBi Gain Outdoor Unit","CBRS/B48 Category 15 High Gain Indoor Unit","SAS Integration Costs (per Radio)","Legal review of customer notices & communications; public relations - (2-4 hours)","Cable coaxial media converters","CMTS (per node)","WLAN - small","WLAN - medium to large network","Site Cabinets - Optical Network Units (ONU)","Fiber - FTTP (Fiber To The Premises) - per mile, trenched & buried, rural, flat, rocky - to urban","Fiber - FTTP (Fiber To The Premises) - per mile, aerial lashed, rural - to urban","Small Cell Site Router capable of L2/Ethernet and IP/MPLS with a mix of 1GE (8 or fewer) and 10GE interfaces (2 or fewer)","Medium Cell Site Router capable of L2/Ethernet and IP/MPLS with a mix of 1GE (20 or fewer) and 10GE interfaces (8 or fewer)","Large Cell Site Router capable of L2/Ethernet and IP/MPLS with a mix of 1GE (24 or fewer), 10GE (24 or fewer), and 100GE interfaces (4 or fewer)","CellSite Router (1 Gig Port config L2 switch - 10 Gig Port config MPLS (Multiprotocol Label Switching) L3 router)","10G L2/Ethernet only NID/CellSite Router to IP/MPLS NID/CellSite Router","100G IP/MPLS Aggregation (non-redundant - redundant controllers)","Switches - small business and campus networks, cloud grade","Switches - medium business and campus networks, cloud grade","Switches - Large business and campus networks, cloud grade","Switches - small enterprise and service provider, cloud grade","Switches - medium enterprise and service provider, cloud grade","Switches - large enterprise and service provider, cloud grade","GPON/XGS Element Management System (10k subs)","GPON/XGS OLT","GPON/XGS OLT - Outside Plant","VDSL - ISP vs. OSP (Inside Plant vs. Outside Plant)","Edge Aggregation - for 8 Cell Sites","Edge Aggregation - for 16 Cell Sites","Edge Aggregation - for 32 Cell Sites","Network security equipment - small network","Network security equipment - medium network","Network security equipment - large network","WDM & OTN equipment, Small network, includes subscription (per node)","WDM & OTN equipment, Medium to Large network, includes subscription (per node)","Microwave Radio pair (5.8 GHz 2+0 500 Mbps basic hop - 11 GHz 4+0 2.8 Gbps hop with switching)","Microwave Radio pair (Indoor, split-mount, small varying radio link capacities and capabilities","Microwave Radio pair (Indoor, split-mount, small to medium radio link capacities and capabilities","Microwave Radio pair (Indoor, split-mount, medium to large radio link capacities and capabilities","Microwave Radio pair, 2+0, 80MHz Channel, 1.4 Gbps (11GHz or 18GHz)","Microwave Radio pair, 4+0, 80 MHz Channel, 2.8 Gbps (11GHz or 18GHz)","Microwave Radio pair, 2+0, 50MHz Channel, 850 Mbps (23 GHz)","Microwave Radio pair, 4+0, 50 MHz Channel, 1.7 Gbps (23 GHz)","Microwave Radio pair, 1+0, 2000 MHz Channel, 10 Gbps (80 GHz)","Microwave L2 Processing Shelf","28/39 GHz PTMP Microwave Hub Node (access point), includes 90° sector antenna (LMDS A2/A3 or B Band)","28/39 GHz PTMP Microwave Remote Node, includes 1' parabolic antenna","28/39 GHz PTMP Microwave Remote Node, includes 2' parabolic antenna","28/39 GHz PTMP Microwave Remote Node, includes 3' parabolic antenna","0.3 - 1.2 meter (1 - 4 foot)","1.8 - 3.0 meter (6 - 10 foot)","0.3 - 1.2 meter (1 - 4 foot)","1.8 - 3.0 meter (6 - 10 foot)","0.3 - 1.2 meter  (1 - 4 foot)","1.8 - 3.0 meter  (6 - 10 foot)","Flat Panel","0.3 to 0.6 meter (1-2 foot, single polarization)","0.3 to 0.6 meter (1-2 foot, dual polarization)","2 port - 2T2R through 8 port - 8T8R","10 port - 10T10R through 20 port - 20T20R","8 port - 8T8R through 20 port - 20T20R","2 port - 2T2R through 16 port - 16T16R","Cable breakout interconnect 100', maximum of 12 power conductors & 24 fiber","Cable breakout interconnect 200', maximum of 12 power conductors & 24 fiber","Cable breakout interconnect 300', maximum of 12 power conductors & 24 fiber","Cable breakout interconnect 400', maximum of 12 power conductors & 24 fiber","\"Raycap\" Over-voltage Protection / Fiber Management – each","OVP to radio power/fiber jumpers, coax jumpers (each)","Small Networks","Medium Networks","Large Networks","Bearer - small network","Bearer - medium to large network","2-port capable, low-mid band radio for 1 sector (5Mhz, FDD, LTE or W-CDMA (Wideband Code Division Multiple Access))","4-port capable, low-mid band radio for 1 sector (5Mhz, FDD, LTE or W-CDMA)","Expansion of 2-port low-mid band radio for 1 sector (additional 5Mhz of (FDD), nominal to large amount of power)","Expansion of 4-port low-mid band radio for 1 sector (additional 5Mhz of (FDD), nominal to large amount of power)","4-port capable, low-mid band radio for 1 sector (20Mhz, TDD)","8-port capable, low-mid band radio for 1 sector (20Mhz, TDD)","Expansion of 2,4,8-port low-mid band radio for 1 sector (additional 20Mhz of (TDD), nominal to large amount of power)","Rack Mounted or Outdoor Mounted baseband unit (BBU)","W-CDMA RNC (Radio Network Controller, small network, <50k subscribers)","W-CDMA RNC (Radio Network Controller, medium network, <250k subscribers)","W-CDMA RNC (Radio Network Controller, large network, <500k subscribers)","Single sector CBRS 4T4R base station and Baseband Unit - 10/20MHz channel","Single sector CBRS 64T64R base station and Baseband Unit - 10/20MHz channel","Single sector CBRS 4T4R base station and Baseband Unit - 40MHz channel","Single sector CBRS 64T64R base station and Baseband Unit - 40MHz channel","Single sector CBRS 4T4R base station and Baseband Unit - 60MHz channel","Single sector CBRS 64T64R base station and Baseband Unit - 60MHz channel","4T4R CBRS Radio Unit, 4T4R pole mounting bracket, 4T4R 10meter CPRI optical cable","64T64R CBRS Radio Unit, 64T64R pole mounting bracket, 64T64R CPRI Optical module, 10 meter CPRI cable","HIGH - 5G Fully Integrated, EMP Hardened Cellsite with Mobile Edge compute and embedded 5G Core - 600mhz - 6ghz; 30ghz and up + Counter UAS Radar & Video Surveillance","MEDIUM - 5G Fully Integrated, EMP Hardened Cellsite with Mobile Edge compute and embedded 5G Core - 600mhz - 6ghz; 30ghz and up + Diverse Backhaul (Free space Optic and/or MM wave)","LOW - 5G Fully Integrated, EMP Hardened Cellsite with Mobile Edge compute and embedded 5G Core - 600mhz - 6ghz with Fiber Media Gateway","Solar Cell Site Power Solution (<24 hour solution) - Green Power Solution","Solar Cell Site Power Solution (24 to 48 hour solution) - Green Power Solution","Generator -based power Cell Site Power Solution - Green Power Solution","5G RAN & Core Consulting – per hour","2T2R-8T8R eNodeB with 3 sectors, single spectrum band of up to 20 MHz/sector. Fixed Wireless features. Range due to Low Power radio (20W) vs High Power radio (up to 320W). Price includes Remote Radio Units (RRU), Base Band Unit (BBU), Ancillaries, Software Features, and Capacity Licensing. Price excludes antennas, tower cabling, tower ancillaries and over voltage protection (OVP)","mMIMO eNodeB with 3 sectors, single spectrum band of up to 20 MHz/sector. Fixed Wireless features. Range due to Low Power radio (120W) vs High Power radio (up to 240W). Price includes Radio+Antenna, BBU, Ancillaries, Software Features, and Capacity Licensing. Price excludes tower cabling, tower ancillaries and over voltage protection (OVP)","2T2R-8T8R eNodeB with 3 sectors, single spectrum band of up to 20 MHz/sector. Mobility features. Range due to Low Power radio (20W) vs High Power radio (up to 320W). Price includes RRHs, BBU, Ancillaries, Software Features, and Capacity Licensing. Price excludes antennas, tower cabling, tower ancillaries and over voltage protection (OVP)","mMIMO eNodeB 3 Sector Per Band (64T64R 20 MHz 1 Band - 64T64R 60 MHz 1 Band with Advanced Mobility Features)","Macrocell 4G 20MHz Carrier (Bundle - Antennas, RU/RRU, BBU Software, GPS Receiver, STU (Subscriber Terminal Unit), RIU (Radio Interface Unit), Mechanical Mounting, Cables and Connectors, SFPs (Small Form-Factor Pluggable))","Macrocell - 5G Sub6 100MHz Carrier (Bundle - Antennas, RU/RRU, BBU Software, GPS Receiver, STU, RIU, Mechanical Mounting, Cables and Connectors, SFPs)","Macrocell - 5G mmWave (Bundle - RU/RRU, BBU Software, GPS Receiver, DU (Open RAN Distributed Unit), Mechanical Mounting, Cables and Connectors, SFPs)","SAS Integration Costs (per Radio)","B71 (3 sector site) or B5 (3 sector) One RRU Type","B41 (3 sector site) One RRU Type","B66 or B4(3 sector) One RRU Type","B2 or B25 (3 sector) One RRU type","B48 One RRU Type","B71/B25 (3 Sector for each RRU) Two RRU Type (dual band per sector)","B71/B12/B41 (3 Sector for each RRU) Three RRU Type (tri-band per sector)","RRU - band 71 - Perpetual license, w/ SW; all-inclusive power, features, carriers etc.","RRU - band 41 - Perpetual license, w/ SW; all-inclusive power, features, carriers etc.","RRU - band 12 - Perpetual license, w/ SW; all-inclusive power, features, carriers etc.","RRU - band 66 - Perpetual license, w/ SW; all-inclusive power, features, carriers etc.","RRU - band 25 - Perpetual license, w/ SW; all-inclusive power, features, carriers etc.","RRU - band 2 - Perpetual license, w/ SW; all-inclusive power, features, carriers etc.","RRU - band 5 - Perpetual license, w/ SW; all-inclusive power, features, carriers etc.","RRU - band 4 - Perpetual license, w/ SW; all-inclusive power, features, carriers etc.","RRU - band 48 - Perpetual license, w/ SW; all-inclusive power, features, carriers etc.  SW price is per RRU for B48","Multi-Access Edge Server (indoor)","Multi-Access Edge Server (outdoor)","vDU Server","Edge Computing vCompute NODE","vCU Server","SFP - 10G","GPS Antenna, Lightning Arrestor, GPS Splitter 1:8, Cable Assembly-Coaxial (35')","3G/UMTS RNC (Radio Network Controller) Small - Medium (50 - 1000 nodes)","3G/UMTS NodeB HW/SW addition to eNodeB","Small Cell, LTE B42 B43 B48 integrated antenna eNodeB ","New shelter: Shelter, delivery, crane, labor, pad","Cabinet, Power Distribution Unit, 4 to 8 Rectifiers, 1 to 2 Battery Strings, optional Heat Exchanger","Outdoor Cabinet Install (Provide and Install)","Relocate CSR to New Cabinet","Install batteries and rectifiers","Install Outdoor Mounting Rack H-Frame","Indoor cabinet (small to large site, optional battery backup included.  ","Indoor Power Plants / Rectifiers / Batteries","4G/5G-NSA Evolved Packet Core - Small, SGW, PGW, MME (10K subs to 50K subs, includes deployment)","4G/5G-NSA Evolved Packet Core - Medium, SGW, PGW, MME (50K subs to 200K subs), cost per site, includes deployment","4G/5G-NSA Evolved Packet Core - Large, Distributed, SGW, PGW, MME (greater than 200K subs - redundant solution, per site, includes deployment)","4G/5G-NSA Evolved Packet Core - Large, Distributed, SGW, PGW, MME (greater than 200K subs - distributed, geo-redundant solution, per site, includes deployment)","HSS Subscriber Data - Small, HSS (up to 50K subs, includes deployment)","HSS Subscriber Data - Medium, Per site - HSS (50K subs vs 250K subs, includes deployment)","HSS Subscriber Data - Medium, Per site - HSS (250K subs vs 500K subs, includes deployment)","Mobile Position System (MPS) - Medium (60K subs) - Large (500Ksubs)","PCRF Server - Small, PCRF (up to 50K subs)","PCRF Server - Small Design, Installation, Commissioning, Integration, Migration Services","3G HLR added to HSS - Small, HLR (up to 50K subs, includes deployment)","3G HLR added to HSS - Medium, Per site - HLR (50K subs vs 250K subs, includes deployment)","3G HLR added to HSS - Medium, Per site - HLR (250K subs vs 500K subs, includes deployment)","Design, Installation, Commissioning, Integration, Migration Services - Medium solution, 3G HLR added to HSS - Medium","AAA Server - Small, AAA (up to 50K subs)","Design, Installation, Commissioning, Integration, Migration Services - Small solution, AAA Server - Small","AAA Server - Medium, Per site - AAA (50K subs vs 250K subs)","AAA Server - Medium, Per site - AAA (250K subs vs 500K subs)","Design, Installation, Commissioning, Integration, Migration Services - Medium solution, AAA Server - Medium","Design, Installation, Commissioning, Integration Services, Mobile Switching Center","IMS Core, Per site - CSCF, TAS, A-SBC, ES, LIG, MRF, DRA/DEA, DNS, ENUM (50K - 250K subs)","IMS Core, Per site - CSCF, TAS, A-SBC, ES, LIG, MRF, DRA/DEA, DNS, ENUM (250K - 500K subs)","3G Packet Core addition to 4G EPC - Small to Medium, SGSN, GGSN (up to 500K subs, includes deployment)","WiFi Packet Data Gateway - ePDG (Small - 10K subs vs 50K subs, includes deployment)","WiFi Packet Data Gateway - ePDG (Medium - 50K subs vs 250K subs, includes deployment)","Cloud - Virtual EPC (SAE-GW, Firewall, Carrier Grade NAT, eCGF, MME, PCRF, Small Network), includes Design, Installation, Commissioning, Integration Services","Cloud - Virtual EPC (SAE-GW, Firewall, Carrier Grade NAT, eCGF, MME, PCRF, Medium Network), includes Design, Installation, Commissioning, Integration Services","Cloud - Virtual EPC (SAE-GW, Firewall, Carrier Grade NAT, eCGF, MME, PCRF, Large Network), includes Design, Installation, Commissioning, Integration Services","Cloud - Virtual Stand Alone IMS (CTAS, IMS Core, MRF, AGW, A-SBC, HSS, ePDG, I-SBC, DRA, PCRF, 4G EPC, E-CSCF, LI interface, SMSC, MMSC, VM)","IMS and RAN Element Management System, Compact EMS with Basic Licensing, includes hardware (10K to 50K subs), includes Design, Installation, Commissioning, Integration Services","IMS and RAN Element Management System, Medium EMS with Basic Licensing, includes hardware (50K to 100K subs), includes Design, Installation, Commissioning, Integration Services","IMS and RAN Element Management System, Large EMS with Premium Licensing, includes hardware (>250 subs), includes Design, Installation, Commissioning, Integration Services","Packet Core Element Management System, Packet Core EMS (50K subs vs 250K subs), includes hardware (50K to 100K subs), includes Design, Installation, Commissioning, Integration Services","Design, Installation, Commissioning, Integration Services, Packet Core EMS Add-ons","Design, Installation, Commissioning, Integration Services IMS/EMS Add-Ons","Core Equipment for WDM & OTN (per node)","RGS Server","RGS-E Server","NFV Server","Aggregation Router (range is Small 1G ports L2 Switch - Medium 10G/25G ports MPLS L3 Router)","Core Routers, small networks","Core Routers, medium networks","Core Routers, large networks","Core Switches, small networks","Core Switches, medium networks","Core Switches, large networks","OSS/BSS Design - Process Automation & Network Roll-out (based on 1 million subscribers)","OSS/BSS Design - Network & Service Assurance (based on 1 million subscribers)","OSS/BSS Design - Network Testing & Management (based on 1 million subscribers)","OSS/BSS Yearly License Costs & Fees (based on 1 million subscribers)","Orchestration Design - Service Design & Creation (based on 1 million subscribers)","Orchestration Design - Universal Cloud Orchestration (based on 1 million subscribers)","Orchestration Yearly License Costs & Fees (based on 1 million subscribers)","Cloud Computing","Small to Medium Network","Medium to Large Network","Small to Medium Network","Medium to Large Network","Active Ethernet (AE) functionality for provisioning and alarming","Voice Core","Data (Ran CORE)","Network Management SW","SDN-enabled management and control software (per device, 1yr to 3yr sub)","RAN Element Management System (Small EMS with Basic Licensing - Medium EMS with Premium Licensing)","Core Element Management System (10K subscriber core - 250K subscribe core)","Per Call Measurement Data Server (PCMD)","Software Licenses (per radio) to include: M2M, Cat-M1, Narrowband IoT, and similar items","4G IOT License - Perpetual  - per Subscriber","4G Connectivity License - Perpetual - per Subscriber","4G Communications License - Perpetual - per Subscriber","5G SA/NSA IOT License - Perpetual - per Subscriber","5G SA/NSA Connectivity License - Perpetual - per Subscriber","5G SA/NSA Communications License - Perpetual - per Subscriber","4G+5G NSA IOT License - Perpetual - per Subscriber","4G+5G NSA Connectivity License - Perpetual - per Subscriber","4G+5G NSA Communications License - Perpetual - per Subscriber","LTE Software License, perpetual license, technology LTE TDD/FDD, per cell/carrier","5G NR (new radio) Software License, perpetual license, technology 5G NR TDD/FDD, per cell/carrier","5G NR (new radio) mMIMO (massive MIMO) Software License, perpetual license, technology 5G NR TDD/FDD, per cell/carrier","LTE Open RAN eNB SW Fee, cost of (1) perpetual license per cell site, technology LTE TDD/FDD","5G NR Open RAN eNB SW Fee, cost of (1) perpetual license per cell site, technology 5G NR TDD/FDD","Open RAN Management System, cost of one perpetual license for 1 cell/carrier, technology LTE/5G NR TDD/FDD","NTP (Notice to Proceed) Package (per site)","A&E Walk (per site)","Utility Coordination","Participation in FCC Rulemaking - (8-15 hours per filing)","Consultation with Counsel on Finalized Rules & Regulations - (3-10 hours)","Existing Colocation (per site, flat fee) – (Low) without A&E, permitting and Legal; (High) full scope","Drone - Visual Inspection (per site)","Drone - Infrared Inspection - expenses not included (per site)","Drone - Additional field work - day rate - expenses not included","Site survey - (from ground) distance to site/complexity of site (including ground measurement) (per site)","Construction Drawings (per site)","MPE Survey RF Emissions (per site)","Modeling, Site Design, Performance Troubleshooting, Internal Team Optimization (per site)","RF Model Tuning - Propagation Model per morphology (Sub Urban,Urban,Dense Urban or Rural)","Drone - Performance Mapping (RF Measurements) (per site)","Cost of temporary site (COW) during tower replacement or modification","Negotiation of co-location contracts/leases (2-4 hours per contract)","Lease review (per site)","Attend Scoping Meeting/Coordinate with RF (per site)","Landlord consent and notice to Landlord (per site)","Site Plan - (lease exhibit) (per site)","Co-location application (per site)","Project Management - carrier internal (per person per month)","Review work orders and related purchase orders - (1-4 hour per work order)","Project Management (per person per month)","Construction Management (per person per month)","NOC Staff Augments - (per person per month)","Transition Planning for Cutover - complexity of equipment changes (per site)","Transition Planning for Cutover: Optical Network Subscriber and network migration services up to 16 nodes additional for add-on's","Legal review of customer communications related liability, indemnification and risk management in associated contracts and SOW - (6-8 hours)","Leasing or purchase of additional spectrum and related negotiations - (8-10 hours per agreement)","Preparation of purchase or lease agreement (3-5 hours per agreement)","Preparation and submission of any required FCC filings for permission (2-4 hours)","Product, Engineering and Operations Training Courses (classroom or web per student/day)","Onsite-Knowledge Transfer (per week)","Subscription (per person 5-11 plus flat fee) ","Optical Training Service - 3 to 4 day instruction","Open vRAN Training - 3 to 4 day","RAN/CORE Engineer - to provide on-site support during and after turn-over for 1 year (per person/per quarter)","Network Operations - to provide on-site support during and after turn-over – internal labor (per person/per year) ","VOLTE Optimization (per site)","Structural Analysis - complexity of design (per site)","Mount Analysis - size of tower, complexity of loading scenarios (per site)","Tower/Mount Mapping (per tower)","Review Contracts and Statements of Work - (2-3 hours per contract)","Executed Agreement (per site)","Fully Executed Amendment (per site)","Fully Executed Amendment - Non-MLA (per site)","Legal review of tower leases and support of negotiations - (8-10 hours per lease)","CIQ creation/review (per site)","SCF Creation / WO for new sites up to 12 carriers (per site)","Engineering Services (RAN) (per site)","Engineering Services (Core) (per core)","Engineering Services (IP Network) (per site)","Engineering Services (Microwave Backhaul) (per link)","Engineering Services (Microwave Backhaul) FCC PCN Coordination) (per link)","Negotiation & Review of RF engineering, AM Detuning, Interference or Intermodulation analysis, RF Emissions Study, and RF Exposure Measurements contracts - (2-3 hours per contract)","Open RAN deployment services, CU/DU deployment instantiation support, per man/hour","Tier 2 & Tier 3 Operational Support, per man/hour","Remove RRH/RRU, Antenna and cabling","Remove 3 RRH/RRU, 3 Antenna and 3 cabling","Remove BBU","Remove BBU and replace with new BBU","Antenna Install (with material)","Radio Install - each radio - height of radios on tower; # RF jumper cables per radio/antenna","Install new Power Trunk","Install new Fiber Trunk","Install Hybrid Cable (without Material)","Fiber Inspection, Cleaning and Light Source & Power Meter Testing * Post Installation (per 24 fibers)","Raycap Install/Upgrade","Install Sector Frame","Installation of outdoor cabinet with one battery string","Installation of outdoor battery cabinet with two strings of batteries","Installation of indoor cabinet with one battery string","Installation of indoor battery cabinet with two strings of batteries","PDU Installation (tower top, providing PDU)","DC power plant Install","Rip & Replace - Up to (3) Antenna Replacement (Install/Swap up to (3) new antennas, with associated jumpers, plumbing/re-plumbing etc.)","Rip & Replace - Up to (6) Antenna Replacement (Install/Swap up to (6) new antennas, with associated jumpers, plumbing/re-plumbing etc.)","Rip & Replace - Up to (3) Radios (RRH/RRU) Replacement (Install/Swap up to (3) new radios, with associated jumpers, plumbing/re-plumbing accordingly etc. No new antennas or hybrid)","Rip & Replace - Up to (6) Radios (RRH/RRU) Replacement (Install/Swap up to (6) new radios, with associated jumpers, plumbing/re-plumbing accordingly etc. No new antennas or hybrid)","Rip & Replace - Up to (6) New Radios, (3) New Antennas (Install/Swap up to (6) new radios, (3) new antennas with associated jumpers, plumbing/re-plumbing etc.  No new hybrid)","Rip & Replace - Up to (9) New Radios, (3) New Antennas (Install/Swap up to (9) new radios, (3) new antennas with associated jumpers, plumbing/re-plumbing etc.  No new hybrid)","Rip & Replace - Up to (12) New Radios, (6) New Antennas (Install/Swap up to (12) new radios, (6) new antennas with associated jumpers, plumbing/re-plumbing etc.  No new hybrid)","Install/Swap up to (18) new radios, (9) new antennas with associated jumpers, plumbing/re-plumbing accordingly etc. No new hybrid)","Rip & Replace - Up to (3) Antenna Replacement (Install/Swap up to (3) new antennas, with associated jumpers, plumbing/re-plumbing etc.)","Rip & Replace - Up to (6) Antenna Replacement (Install/Swap up to (6) new antennas, with associated jumpers, plumbing/re-plumbing etc.)","Rip & Replace - Up to (3) Radios (RRH/RRU) Replacement (Install/Swap up to (3) new radios, with associated jumpers, plumbing/re-plumbing accordingly etc. No new antennas or hybrid)","Rip & Replace - Up to (6) Radios (RRH/RRU) Replacement (Install/Swap up to (6) new radios, with associated jumpers, plumbing/re-plumbing accordingly etc. No new antennas or hybrid)","Rip & Replace - Up to (6) New Radios, (3) New Antennas (Install/Swap up to (6) new radios, (3) new antennas with associated jumpers, plumbing/re-plumbing etc.  No new hybrid)","Rip & Replace - Up to (9) New Radios, (3) New Antennas (Install/Swap up to (9) new radios, (3) new antennas with associated jumpers, plumbing/re-plumbing etc.  No new hybrid)","Rip & Replace - Up to (12) New Radios, (6) New Antennas (Install/Swap up to (12) new radios, (6) new antennas with associated jumpers, plumbing/re-plumbing etc.  No new hybrid)","Up to six (6) entry ports (provide and install)","Tower or Shelter Buss bar addition","Modification Design (per site)","Foundation Drawings/Inspection (per site)","Foundation Install <200' (Monopole/SS) ","Foundation Install <200' (Monopole/SS) - Batch Plant","Demo Existing Tower","Minor Tower reinforcement/modifications - size of tower, extent of reinforcing","Build new <200' monopole (Erection only including crane)","Build new <200' monopole - Materials","Build new <300' SST (Erection only including crane)","Build new <300' SST - Materials","Major Tower reinforcement/modifications - size of tower; tower design; tower foundations; guy wires","Serous Tower reinforcement/modifications - tower foundation mods; tower \"wrap\"","Carrier Relocation BOM (per site)","Carrier Relocation Civil Work (per site)","Carrier Relocation L&A Work (per site)","Site Work","Pre-Construction Site Walk - distance to site, size of tower","Parallel/New 200A Service","Upgrade to 200A Service","Conduit and Fiber from Cabinet to H Frame","Hand Trenching from Backhaul Cabinet to New Cabinet (25')","Trenching and Cabling from New Cabinet to Power Panel (100’ – includes materials)","Re-cable MW Dish to New Cabinet (100’ – includes materials)","Install Ice Bridge (~30')","Cement Pad Install","Install BBU (rack or cabinet)","Installation of new 19\" rack in existing shelter","GPS install","Install collar mounts (Tri & Quad) V-Booms, (with materials) – (Per Mount)","Install MOVE platform (with Materials) (Per Mount) – ASK CM, MUCH HIGHER THAN ATN ","DC Cable Pull Through Conduit Sizes #16AWG to #2AWG","Re-use/Re-working existing hybrid (Cabling to new equipment and baseband along with required testing) – up to 12 fibers","Install Hybrid Cable (with Material)","Upgrade Generator (modification reports, labor and modification)","Site Inspection - distance to site/complexity of site","Environmental Work (per site)","Solar Design (per site)","25-50 Amp Solar Upgrade (Install and Material) (per site)","75-100 Amp Solar Upgrade (Install and Material) (per site)","Commissioning and Integration of single technology – per site","Closeout Package – Microwave (per link)","Closeout Package – (per site)","PIM Test and Remediate* 0 to 12 Paths","PIM Test and Remediate* 13 to 24 Paths","PIM Test and Remediate* 25 to 36 Paths","Sweep Test (per line)","Review of interconnection and colocation agreements - (2-5 hours per contract)","Mobilization Less than or Equal to 250 Miles (2-4 Member Crew)","Mobilization 251-500 Miles (2-4 Member Crew)","Mobilization Greater than 500 Miles (2-4 Member Crew)","Mobilization Ground Crew - (2-4 Member Crew) - day rate","Mobilization Tower (2-4 Member Crew) - day rate","Troubleshooting – RRU Replacement during the maintenance window on site per hour (Up to four-man crew)","Troubleshooting – RRU Replacement during the non-maintenance window on site per hour (Up to four-man crew)","General Troubleshooting – Up to 4 hours of onsite troubleshooting (Up to four men crew)","General Troubleshooting – Up to 8 hours of onsite troubleshooting (Up to four men crew)","Troubleshooting – Single Antenna replacement during the maintenance window","Troubleshooting – Antenna replacement during the non-maintenance window ","Maintenance window work per night/per 3-man crew (per night)","Microwave Pathing - During Construction (per link)","Microwave Pathing - Post Construction (per link)","Microwave Commissioning and Integration (per link)","Microwave relocation during construction (per site)","Max 1000 lbs - 6 hr day rate + hourly","Max lift 3,200 lbs - 6 hr day rate + hourly","Mobilization/demobilization is priced by the hourly rate for each helicopter - 6 hours/each","Crane - Ave 8 hour hook time based on tower height, miles, size, hourly rate","Bucket Truck (day rate) - dependent on location","Manlift or Boomlift 45-135' (day rate) - dependent on location","Manlift or Boomlift 45-135' (week rate) - dependent on location","Manlift or Boomlift 45-135' (monthly rate) - dependent on location","Gin Pole Cost (per job)","Matting for Temporary Roads - Grid Mats Cost per 100ft","Snow Removal Equipment – per vehicle","Prime Mover or Similar for Towing - per vehicle","Straight Truck or Similar for Counterweight - per vehicle","Forklift of Similar for Component Transport - per vehicle","Cloud - Virtual EPC (SAE-GW, Firewall, Carrier Grade NAT, eCGF, MME, PCRF, up to 10k subscribers)","Cloud - Virtual EPC (SAE-GW, Firewall, Carrier Grade NAT, eCGF, MME, PCRF, up to 50k subscribers)","Cloud - Virtual EPC (SAE-GW, Firewall, Carrier Grade NAT, eCGF, MME, PCRF,  >200k subscribers)","Cloud - Virtual IMS (CTAS, IMS Core, MRF, AGW, A-SBC, HSS, ePDG, I-SBC, DRA, PCRF, 4G EPC, E-CSCF, LI interface, SMSC, MMSC, VM), up to 10k subscribers","Cloud - Virtual IMS (CTAS, IMS Core, MRF, AGW, A-SBC, HSS, ePDG, I-SBC, DRA, PCRF, 4G EPC, E-CSCF, LI interface, SMSC, MMSC, VM),  up to 100k subscribers","Cloud - Virtual IMS (CTAS, IMS Core, MRF, AGW, A-SBC, HSS, ePDG, I-SBC, DRA, PCRF, 4G EPC, E-CSCF, LI interface, SMSC, MMSC, VM),  >200k subscribers","Backbone WDM/optical transport networking equipment – (per network)","Deployment - Cloud Computing – (per network)","Deployment - Optical Transmission – (per network)","Deployment - Data Transmission – (per network)","Deployment - GPON/XGS EMS – FTTH – (per network)","RAN EMS Deployment – (per network)","Research to ensure compliance with tower standards (ANSI/TIA-222-H) due to modifications triggering non-compliant towers to comply - (3-5 hours per site)","Due diligence review of modifications/upgrades for compliance with FCC NEPA rules, including Section 106 Review, and FAA and ASR rules (3-5 hours per site)","Depending on spectrum licenses, preparation and submission of any required FCC applications for modifications for facility upgrades, equipment changes, and preparation of any FAA applications and ASR applications for structure modifications or lighting changes - (2-4 hours)","Preparation and submission of any required post-construction filings including notifications to FAA and FCC of completion of construction, and any required application filings for spectrum applications or licenses - (2-4 hours) ","Optical Fiber Optic Characterization - 8 Strands","Onsite Sr. Optical Engineer Support (40 hours)","Remote Sr Optical Engineer Support (40 hours)","NAIC Integration Add-on for UPS, Router, Switch, Server, Appliance, Storage 10RU+ per Device (from 5 to 15 devices)","NAIC Integration Add-on for UPS, Router, Switch, Server, Appliance, Storage Up to 9RU per Device (10 - 20 devices)","Optical 2-Slot to 16 Slot Level 1 Staging","Engineering consulting for network planning & scenario analysis (remote per week)","IoT (Interoperability testing) for RAN & Core compatibility (per network)","IoT (Interoperability testing) for RAN compatibility (per network)","Contract review - (2-4 hours)","National Environmental Policy Act (NEPA) & National Historic Preservation Act (NHPA)","Due Diligence Review for compliance with FCC NEPA and Section 106 rules for collocation - (3-5 hours per site)","Legal Review for Environmental Consultant SOWs for NEPA and Section 106. and all work related - (2-3 hours per site)","Regulatory Management (per site)","Negotiate and review vendor contracts - (6-12 hours per contract)","Legal review of Environmental Consultant Contracts and SOWs for Phase I Environmental Review - (1-3 hours per contract)","Preparation of any required FAA and ASR filings - (5-8 hours per application)","Legal fees for research and preparation and filing for any zoning or local permitting requirements - (3-4 hours per site)","Review insurance requirements and OSHA standards for tower climbers - (3-6 hours)","Spectrum acquisition agreement - (4-8 hours per contract)","Review contracts for proper insurance, indemnification, liability and risk management - (2-4 hours)","Review contracts for disposal to ensure compliance with law and liability related issues - (2-4 hours per contract)","Review of applicable tax code (2-4 hours per inquiry)","Zoning and Permitting determination (per site)","Zoning drawing (per site)","Zoning Approval (per site)","Attendance at additional zoning hearings","Complex zoning (including attendance at 2 hearings)","Completion and submittal of permit (building or electrical) (per site)","Permit Pickup (per site)","Legal fees for research and preparation and filing for any zoning or local permitting requirements (per site)","Jurisdictional Fees (per site)","Phase 1 ESA (per site)","NEPA/SHPO Checklist only (per site)","Photo Simulation (per site)","Negotiation & Review of RF engineering contracts – (2-4 hours per contract)","FCC Licensing - Microwave - (1-2 hours)","New facilities - (1-2 hours)","Modify facilities - (4-6 hours)","Requests for Special Temporary Authority - (6-8 hours)","Rule Waivers - (4-6 hours)","Spectrum Leasing (De Facto) - (2-4 hours)","FCC legal review and application filings - Fixed Wireless Link Replacement (2-4 hours)","Staging, transportation, warehousing and disposal (per site)","Decommission - Up to (3) antennas (6) runs of coax, mounts and miscellaneous hardware from tower top to inside the shelter to QWS","Decommission - Up to (9) antennas (12) runs of coax, mounts and miscellaneous hardware from tower top to inside the shelter to QWS","Decommission - Each additional antenna (including) , associated mount, line and miscellaneous hardware.","Decommission - Microwave antenna (including), associated mount, elliptical line and miscellaneous hardware.","Decommission In Shelter - 2nd eNodeB Rack, diplexers w/mount, RF coax jumpers:","Decommission - existing hybrid cable","Decommission - remove waveguide, fiber, CAT5/6, coaxial cable up to 1 5/8\" (per foot)","Decommission - one outdoor cabinet","Decommission - Indoor 19\" Rack with existing legacy BBU","Decommission - Indoor 19\" Rack with up two battery strings","Decommission - Single antenna","Inventory, processing, destruction, disposal, recycling reporting and certification of Recycling - Citing ITAR (per site) - Transport not included","New, Modification (Microwave) - per call sign (with$250 regulatory fee)","Modify facilities - per call sign","Extension of Construction Authority (Microwave) - per call sign","Duplicate License (Microwave) - per call sign","Requests for Special Temporary Authority (Microwave) - Fee Exempt (per link)","Rule Waivers/Spectrum Leasing for new or sublease, Transfer of Control of a Lessee or a Sublessee or Extend Term of a Lease or Sublease (Microwave/Broadband 2.5GHz) - per call sign -$70 each additional","Major modification for spectrum leasing (Microwave/Broadband 2.5GHz) - per lease ID","New, Modification or Major Modification (Broadband 2.5GHz) - per call sign","Certification of Completion of Construction (Broadband 2.5GHz) - per call sign","Extension of Construction Authority (Broadband 2.5 GHz) - per call sign","Special Temporary Authority (Broadband 2.5 GHz) - per call sign or Market/Channel Block","New, Additional Facility, Major Modification (Cellular Radiotelephone) - per call sign","Minor Modification (Cellular Radiotelephone) - per call sign","Special Temporary Authority (Cellular Radiotelephone) - per request","Spectrum Leasing for new or sublease / Assignment of authorization or Transfer of Control (Full or Partial) / Transfer of Control of a Lessee or a Sublessee, Extend Term of a Lease or Sublease or Major Modification for Spectrum Leasing (Cellular Radio Telephone) - per call sign/lease","Minor modification for spectrum leasing (Cellular Radiotelephone) - per lease ID","Domestic 214 Application -$1,155.00","Tariff Filing Fee (per transmittal or cover letter)","Application for Special Permission Filing (request for waiver of any rule in Part 61)","Waiver of Part 69 Tariff Rules (per request)","Review of Depreciation Update Study (single state)","Each Additional State ","Petition for Waiver (per petition)","Part 36 Separation Rules (per request)","Fence/Compound Work (per site)","Security Guard - Hourly Rate","Snow Cat Usage (8-12 hours day, plus operator expense)","Contract review & negotiations (2-4 hours)","Logistics and Material Management & Warehousing (per site)","Kitting (per site) (receive products from multiple OEMs and suppliers and integrate the related items into a single package, pallet or other format as desired)","Storage (monthly)","Pre and post swap cluster KPI monitoring (per site)","Pre and post swap cluster drive testing (per site)","Single site verification drive testing (per site)","Troubleshooting (per hour/per man)","Pre-Launch Cluster Optimization - Pre and Post Drive Test (Up to 12 Carrier) (per site)","Mobility or FWA (non M-MIMO) Ground services base integration, cut over support, call / data test package for site with shelter (per site)","Cluster Optimization (Drive based) for FWA or Mobility (Per Technology (LTE or UMTS)), 10-Site Cluster)","Single site verification stationary testing for FWA (per site)","Rehome E911 Drive Cost (per Cell Site) - ensuring call connects to right 911 ","Accuracy Testing (50 meter x/y) (Cost per Test Point, Average about 10 test points per County)","PSAP or County level KPI Accuracy Results Reports (Per Report)","TXT2911 Rehome/Reset (Per Radio Technology, One Time Fee)","VoWiFi Rehome/Reset (Per Radio Technology, One Time Fee)","Mobilization fee (Charge each time tester is moved to a new state or carrier market area)","Stand-by Fee (Per day)","Hosted SMLC Location Server License and Set-up- One Time Fee (“OTF”) (per project)","Hosted SMLC Location Server Monthly Recurring Fee per Cell Site (“MRF”)","Project Management Set-up - One Time Fee (“OTF”) (per site dependent on complexity)","LPM Reporting Tool reset up One Time Fee (“OTF”) Per Radio Technology","End User Location - Truck roll or self-install (per end user)","Legal review of customer notices & communications; public relations (2-4 hours)","Mobilization Costs - Virgin Islands (per site)"]
[20100,61727,197500,262.5,402.5,15297.5,15700,8146.56,40750,78500,177500,287.5,230,93,1500,189,12250,1547.5,3112.5,6502.5,41808,26250,5772.5,10558,8033,6591,12247.5,93750,120732.5,358903.5,599268.5,154400,405900,695600,102550,50427.5,33842.5,23140,363500,525000,731500,17333.5,91833.5,283666.5,92500,247500,21380,30500.5,33492,39216.5,13350,30250,13350,30250,12000,7000,7450,2807,2900.5,2769.5,1137.5,3071.75,1200.8499999999999,3484,4370,18625,4280,1040,1725,3497,6236.75,7125.25,3060.25,2043.5,2246.5,4556.5,7349.5,2750,570,38450,109683,194850,18500,28500,9436,17010.5,3726.5,4789.5,12921,24917.5,8000,31117,616098,955582,1672552.5,17021,29602,17021,35340,17297.5,41078.5,4989.5,16432.5,1100000,649500,375000,75000,200500,112500,350,41500,100000,57000,226586,45500,108000,52500,93,45927,47933,51248,51248,47550.5,73365,107489,9231,9673,10778,10778,10778,10778,10778,10778,6426,4600,12053,9000,14969,11000,175,1627,525000,12000,12000,80000,21906.5,5775,2150,1675,825,19663.5,22000,725000,1325000,2750000,6361199,525000,1750000,4250000,816000,325000,160000,375000,750000,1750000,500000,150000,75000,325000,600000,400000,500000,6250000,10000000,1079973.5,600000,825000,760000,4910344,13190844,949230,776712.5,4910344,15438575,360000,225000,325000,1118000,17750,19750,14000,130000,208333.5,587500,991666.5,175000,487500,825000,525000,725000,225000,725000,575000,1250000,925000,192500,115000,205000,22500,32000,5900,750000,1125000,107500,53500,725000,345000,300000,7991.5,0.53,2.415,2.9350000000000001,0.64500000000000002,3.37,3.0900000000000003,0.88,4.0949999999999998,3.6349999999999998,5500,5500,5500,11000,11000,2550,925,4325,1497.085,5750,3250,16450,1491.5650000000001,7500,1750,12972.5,3682.165,1459.62,4319.1000000000004,109961.5,22500,48855.264999999999,1500,636.625,343,762.5,1700,639.63499999999999,10380,1250,38925,23808,16002.5,10000,7250,3500,4500,2000,1500,1187.5,9500,25100,14367,12500,75000,124800,4301.5,3405.5699999999997,4625,12402.445,1250,4444.38,3820.34,3969.7550000000001,4500,612.30999999999995,1900,375,27500,625,450,2500,1250,300,300,2425,3475,600,2850,6250,2250,4250,4650,4412.1750000000002,3211.8249999999998,783.33500000000004,6711.13,5005.5450000000001,7159.335,632.81500000000005,2969.125,1419.6399999999999,2112.5,10445.195,17485.71,13150.56,16494.195,23231.629999999997,25875,39407.479999999996,43474.514999999999,7939.5149999999994,14548.895,11055.15,15506.514999999999,19345.744999999999,21074.215,37568.43,1219.405,375.98500000000001,3129.52,8186.2350000000006,85362.955000000002,184351.935,19054.5,5500,21577,76857.024999999994,29416,63257.49,55000,175000,7719.9949999999999,17071.43,44361.864999999998,6500,1560.595,18256.895,6500,1950,2237.23,16750,1600,5565,5967.9850000000006,2896.73,3059,1222.7349999999999,5835,31100,625,3760.5,18900,49250,12900,6500,17500,112500,256250,2207.7550000000001,2000,1500,5032.125,4200,5375,535.5,1750,3900,2835,5077.25,6467.3050000000003,14285.5,989.31500000000005,989.31500000000005,3957.2699999999995,7914.5349999999999,3229.0699999999997,3229.0699999999997,6977.41,2625,4083.335,2546.5,21717.424999999999,22000,56000,34500,15950,1093.75,1377.2349999999999,4196.7700000000004,6305,20086.28,5000,1000,6250,1250,1250,737446.5,1588571.5,2126709,998615,1839815,2575000,187500,10025000,10025000,5007500,55000,475000,2000,2000,1500,1500,6634,19049,12536,4593,4173.5,5275,19051.5,208000,208000,1500,1425,2000,1250,1100,4500,1000,3250,1750,2250,3000,1500,1500,1500,661.625,2303.48,2340.69,1275,5091.8050000000003,1490.04,782.52,1750,3875,3232.5450000000001,466.33,1500,1500,750,750,2500,3500,2500,1500,1500,3496,6147.36,13437.264999999999,531.72500000000002,3872.81,2865.74,3036.5550000000003,3.895,2755.4849999999997,5202.665,5515.5049999999992,359.55500000000001,1950,555,222.5,110,70,140,110,305,305,895,305,140,450,120,395,450,120,1155,925,925,925,37500,1285,8500,8500,12501.6,35,1950,1500,10964.5,662.5,5000,2326,3970.5,2213,246,4156,9000,74900,6000,471.5,287.5,325,2500,5000,1000,1200,40000,25,7500,5000,7500,1500,15800]
["e6b4c1111b7ab8d006242062f54bcb96","aab4c1111b7ab8d006242062f54bcb97","22b4c1111b7ab8d006242062f54bcb98","26b4c1111b7ab8d006242062f54bcb98","2ab4c1111b7ab8d006242062f54bcb98","2eb4c1111b7ab8d006242062f54bcb98","22b4c1111b7ab8d006242062f54bcb99","a6b4c1111b7ab8d006242062f54bcb99","aab4c1111b7ab8d006242062f54bcb99","26b405111b7ab8d006242062f54bcb16","2ab405111b7ab8d006242062f54bcb16","aeb405111b7ab8d006242062f54bcb16","26b405111b7ab8d006242062f54bcb17","aab405111b7ab8d006242062f54bcb17","22b405111b7ab8d006242062f54bcb18","26b405111b7ab8d006242062f54bcb18","2ab405111b7ab8d006242062f54bcb18","2eb405111b7ab8d006242062f54bcb18","22b405111b7ab8d006242062f54bcb19","a6b405111b7ab8d006242062f54bcb19","2eb405111b7ab8d006242062f54bcb19","a2b405111b7ab8d006242062f54bcb1a","a6b405111b7ab8d006242062f54bcb1a","aab405111b7ab8d006242062f54bcb1a","aeb405111b7ab8d006242062f54bcb1a","a2b405111b7ab8d006242062f54bcb1b","a6b405111b7ab8d006242062f54bcb1b","aab405111b7ab8d006242062f54bcb1b","aeb405111b7ab8d006242062f54bcb1b","a2b405111b7ab8d006242062f54bcb1c","a6b405111b7ab8d006242062f54bcb1c","aab405111b7ab8d006242062f54bcb1c","aeb405111b7ab8d006242062f54bcb1c","a2b405111b7ab8d006242062f54bcb1d","2ab405111b7ab8d006242062f54bcb1d","aeb405111b7ab8d006242062f54bcb1d","26b405111b7ab8d006242062f54bcb1e","aab405111b7ab8d006242062f54bcb1e","aeb405111b7ab8d006242062f54bcb1e","a2b405111b7ab8d006242062f54bcb1f","a6b405111b7ab8d006242062f54bcb1f","aab405111b7ab8d006242062f54bcb1f","aeb405111b7ab8d006242062f54bcb1f","a2b405111b7ab8d006242062f54bcb20","a6b405111b7ab8d006242062f54bcb20","aab405111b7ab8d006242062f54bcb20","aeb405111b7ab8d006242062f54bcb20","a2b405111b7ab8d006242062f54bcb21","a6b405111b7ab8d006242062f54bcb21","aab405111b7ab8d006242062f54bcb21","aeb405111b7ab8d006242062f54bcb21","a2b405111b7ab8d006242062f54bcb22","a6b405111b7ab8d006242062f54bcb22","aab405111b7ab8d006242062f54bcb22","aeb405111b7ab8d006242062f54bcb22","a2b405111b7ab8d006242062f54bcb23","a6b405111b7ab8d006242062f54bcb23","aab405111b7ab8d006242062f54bcb23","aeb405111b7ab8d006242062f54bcb23","a2b405111b7ab8d006242062f54bcb24","a6b405111b7ab8d006242062f54bcb24","aab405111b7ab8d006242062f54bcb24","aeb405111b7ab8d006242062f54bcb24","a2b405111b7ab8d006242062f54bcb25","2ab405111b7ab8d006242062f54bcb25","aeb405111b7ab8d006242062f54bcb25","a2b405111b7ab8d006242062f54bcb26","a6b405111b7ab8d006242062f54bcb26","aab405111b7ab8d006242062f54bcb26","22b405111b7ab8d006242062f54bcb27","a6b405111b7ab8d006242062f54bcb27","2eb405111b7ab8d006242062f54bcb27","22b405111b7ab8d006242062f54bcb28","a6b405111b7ab8d006242062f54bcb28","2eb405111b7ab8d006242062f54bcb28","a2b405111b7ab8d006242062f54bcb29","2ab405111b7ab8d006242062f54bcb29","aeb405111b7ab8d006242062f54bcb29","26b405111b7ab8d006242062f54bcb2a","aab405111b7ab8d006242062f54bcb2a","22b405111b7ab8d006242062f54bcb2b","a6b405111b7ab8d006242062f54bcb2b","2eb405111b7ab8d006242062f54bcb2b","a2b405111b7ab8d006242062f54bcb2c","a6b405111b7ab8d006242062f54bcb2c","aab405111b7ab8d006242062f54bcb2c","aeb405111b7ab8d006242062f54bcb2c","a2b405111b7ab8d006242062f54bcb2d","a6b405111b7ab8d006242062f54bcb2d","aab405111b7ab8d006242062f54bcb2d","aeb405111b7ab8d006242062f54bcb2d","a2b405111b7ab8d006242062f54bcb2e","a6b405111b7ab8d006242062f54bcb2e","aab405111b7ab8d006242062f54bcb2e","aeb405111b7ab8d006242062f54bcb2e","26b405111b7ab8d006242062f54bcb2f","aab405111b7ab8d006242062f54bcb2f","22b405111b7ab8d006242062f54bcb30","a6b405111b7ab8d006242062f54bcb30","22b405111b7ab8d006242062f54bcb31","a6b405111b7ab8d006242062f54bcb32","2eb405111b7ab8d006242062f54bcb32","a2b405111b7ab8d006242062f54bcb33","2ab405111b7ab8d006242062f54bcb33","aeb405111b7ab8d006242062f54bcb33","26b405111b7ab8d006242062f54bcb34","aab405111b7ab8d006242062f54bcb34","22b405111b7ab8d006242062f54bcb35","a6b405111b7ab8d006242062f54bcb35","2eb405111b7ab8d006242062f54bcb35","a2b405111b7ab8d006242062f54bcb36","2ab405111b7ab8d006242062f54bcb36","aeb405111b7ab8d006242062f54bcb36","26b405111b7ab8d006242062f54bcb37","2ab405111b7ab8d006242062f54bcb37","2eb405111b7ab8d006242062f54bcb37","22b405111b7ab8d006242062f54bcb38","26b405111b7ab8d006242062f54bcb38","aab405111b7ab8d006242062f54bcb38","22b405111b7ab8d006242062f54bcb39","a6b405111b7ab8d006242062f54bcb39","2eb405111b7ab8d006242062f54bcb39","a2b405111b7ab8d006242062f54bcb3a","2ab405111b7ab8d006242062f54bcb3a","aeb405111b7ab8d006242062f54bcb3a","a2b405111b7ab8d006242062f54bcb3b","a6b405111b7ab8d006242062f54bcb3b","aab405111b7ab8d006242062f54bcb3b","aeb405111b7ab8d006242062f54bcb3b","a2b405111b7ab8d006242062f54bcb3c","a6b405111b7ab8d006242062f54bcb3c","aab405111b7ab8d006242062f54bcb3c","aeb405111b7ab8d006242062f54bcb3c","a2b405111b7ab8d006242062f54bcb3d","a6b405111b7ab8d006242062f54bcb3d","aab405111b7ab8d006242062f54bcb3d","aeb405111b7ab8d006242062f54bcb3d","a2b405111b7ab8d006242062f54bcb3e","a6b405111b7ab8d006242062f54bcb3e","2eb405111b7ab8d006242062f54bcb3e","22b405111b7ab8d006242062f54bcb3f","a6b405111b7ab8d006242062f54bcb3f","2eb405111b7ab8d006242062f54bcb3f","22b405111b7ab8d006242062f54bcb40","26b405111b7ab8d006242062f54bcb40","2ab405111b7ab8d006242062f54bcb40","2eb405111b7ab8d006242062f54bcb40","22b405111b7ab8d006242062f54bcb41","26b405111b7ab8d006242062f54bcb41","2ab405111b7ab8d006242062f54bcb41","2eb405111b7ab8d006242062f54bcb41","22b405111b7ab8d006242062f54bcb42","26b405111b7ab8d006242062f54bcb42","2ab405111b7ab8d006242062f54bcb42","2eb405111b7ab8d006242062f54bcb42","22b405111b7ab8d006242062f54bcb43","26b405111b7ab8d006242062f54bcb43","2ab405111b7ab8d006242062f54bcb43","2eb405111b7ab8d006242062f54bcb43","22b405111b7ab8d006242062f54bcb44","26b405111b7ab8d006242062f54bcb44","2ab405111b7ab8d006242062f54bcb44","2eb405111b7ab8d006242062f54bcb44","22b405111b7ab8d006242062f54bcb45","26b405111b7ab8d006242062f54bcb45","2ab405111b7ab8d006242062f54bcb45","2eb405111b7ab8d006242062f54bcb45","22b405111b7ab8d006242062f54bcb46","26b405111b7ab8d006242062f54bcb46","2ab405111b7ab8d006242062f54bcb46","2eb405111b7ab8d006242062f54bcb46","22b405111b7ab8d006242062f54bcb47","26b405111b7ab8d006242062f54bcb47","2ab405111b7ab8d006242062f54bcb47","2eb405111b7ab8d006242062f54bcb47","22b405111b7ab8d006242062f54bcb48","26b405111b7ab8d006242062f54bcb48","3ab405111b7ab8d006242062f54bcb48","3eb405111b7ab8d006242062f54bcb48","32b405111b7ab8d006242062f54bcb49","36b405111b7ab8d006242062f54bcb49","3ab405111b7ab8d006242062f54bcb49","3eb405111b7ab8d006242062f54bcb49","32b405111b7ab8d006242062f54bcb4a","36b405111b7ab8d006242062f54bcb4a","3ab405111b7ab8d006242062f54bcb4a","3eb405111b7ab8d006242062f54bcb4a","b2b405111b7ab8d006242062f54bcb4b","b6b405111b7ab8d006242062f54bcb4b","bab405111b7ab8d006242062f54bcb4b","beb405111b7ab8d006242062f54bcb4b","b2b405111b7ab8d006242062f54bcb4c","b6b405111b7ab8d006242062f54bcb4c","bab405111b7ab8d006242062f54bcb4c","beb405111b7ab8d006242062f54bcb4c","b2b405111b7ab8d006242062f54bcb4d","b6b405111b7ab8d006242062f54bcb4d","bab405111b7ab8d006242062f54bcb4d","beb405111b7ab8d006242062f54bcb4d","76b405111b7ab8d006242062f54bcb4e","72b405111b7ab8d006242062f54bcb4f","76b405111b7ab8d006242062f54bcb4f","7ab405111b7ab8d006242062f54bcb4f","7eb405111b7ab8d006242062f54bcb4f","72b405111b7ab8d006242062f54bcb50","76b405111b7ab8d006242062f54bcb50","7ab405111b7ab8d006242062f54bcb50","7eb405111b7ab8d006242062f54bcb50","72b405111b7ab8d006242062f54bcb51","76b405111b7ab8d006242062f54bcb51","7ab405111b7ab8d006242062f54bcb51","7eb405111b7ab8d006242062f54bcb51","72b405111b7ab8d006242062f54bcb52","76b405111b7ab8d006242062f54bcb52","7ab405111b7ab8d006242062f54bcb52","7eb405111b7ab8d006242062f54bcb52","72b405111b7ab8d006242062f54bcb53","76b405111b7ab8d006242062f54bcb53","7ab405111b7ab8d006242062f54bcb53","7eb405111b7ab8d006242062f54bcb53","72b405111b7ab8d006242062f54bcb54","76b405111b7ab8d006242062f54bcb54","32b405111b7ab8d006242062f54bcb61","36b405111b7ab8d006242062f54bcb61","3ab405111b7ab8d006242062f54bcb61","3eb405111b7ab8d006242062f54bcb61","32b405111b7ab8d006242062f54bcb62","36b405111b7ab8d006242062f54bcb62","3ab405111b7ab8d006242062f54bcb62","3eb405111b7ab8d006242062f54bcb62","32b405111b7ab8d006242062f54bcb63","36b405111b7ab8d006242062f54bcb63","3ab405111b7ab8d006242062f54bcb63","3eb405111b7ab8d006242062f54bcb63","32b405111b7ab8d006242062f54bcb64","36b405111b7ab8d006242062f54bcb64","3ab405111b7ab8d006242062f54bcb64","3eb405111b7ab8d006242062f54bcb64","32b405111b7ab8d006242062f54bcb65","36b405111b7ab8d006242062f54bcb65","3ab405111b7ab8d006242062f54bcb65","3eb405111b7ab8d006242062f54bcb65","32b405111b7ab8d006242062f54bcb66","36b405111b7ab8d006242062f54bcb66","3ab405111b7ab8d006242062f54bcb66","3eb405111b7ab8d006242062f54bcb66","32b405111b7ab8d006242062f54bcb67","36b405111b7ab8d006242062f54bcb67","3ab405111b7ab8d006242062f54bcb67","3eb405111b7ab8d006242062f54bcb67","32b405111b7ab8d006242062f54bcb68","36b405111b7ab8d006242062f54bcb68","3ab405111b7ab8d006242062f54bcb68","3eb405111b7ab8d006242062f54bcb68","32b405111b7ab8d006242062f54bcb69","36b405111b7ab8d006242062f54bcb69","3ab405111b7ab8d006242062f54bcb69","3eb405111b7ab8d006242062f54bcb69","32b405111b7ab8d006242062f54bcb6a","36b405111b7ab8d006242062f54bcb6a","3ab405111b7ab8d006242062f54bcb6a","3eb405111b7ab8d006242062f54bcb6a","32b405111b7ab8d006242062f54bcb6b","36b405111b7ab8d006242062f54bcb6b","3ab405111b7ab8d006242062f54bcb6b","3eb405111b7ab8d006242062f54bcb6b","32b405111b7ab8d006242062f54bcb6c","36b405111b7ab8d006242062f54bcb6c","3ab405111b7ab8d006242062f54bcb6c","3eb405111b7ab8d006242062f54bcb6c","32b405111b7ab8d006242062f54bcb6d","36b405111b7ab8d006242062f54bcb6d","3ab405111b7ab8d006242062f54bcb6d","3eb405111b7ab8d006242062f54bcb6d","32b405111b7ab8d006242062f54bcb6e","36b405111b7ab8d006242062f54bcb6e","3ab405111b7ab8d006242062f54bcb6e","3eb405111b7ab8d006242062f54bcb6e","32b405111b7ab8d006242062f54bcb6f","36b405111b7ab8d006242062f54bcb6f","3ab405111b7ab8d006242062f54bcb6f","3eb405111b7ab8d006242062f54bcb6f","32b405111b7ab8d006242062f54bcb70","36b405111b7ab8d006242062f54bcb70","3ab405111b7ab8d006242062f54bcb70","3eb405111b7ab8d006242062f54bcb70","32b405111b7ab8d006242062f54bcb71","36b405111b7ab8d006242062f54bcb71","3ab405111b7ab8d006242062f54bcb71","3eb405111b7ab8d006242062f54bcb71","32b405111b7ab8d006242062f54bcb72","36b405111b7ab8d006242062f54bcb72","3ab405111b7ab8d006242062f54bcb72","beb405111b7ab8d006242062f54bcb72","36b405111b7ab8d006242062f54bcb73","bab405111b7ab8d006242062f54bcb73","32b405111b7ab8d006242062f54bcb74","b6b405111b7ab8d006242062f54bcb74","3eb405111b7ab8d006242062f54bcb74","76b405111b7ab8d006242062f54bcb75","f2b405111b7ab8d006242062f54bcb76","7ab405111b7ab8d006242062f54bcb76","feb405111b7ab8d006242062f54bcb76","76b405111b7ab8d006242062f54bcb77","fab405111b7ab8d006242062f54bcb77","72b405111b7ab8d006242062f54bcb78","f6b405111b7ab8d006242062f54bcb78","7eb405111b7ab8d006242062f54bcb78","f2b405111b7ab8d006242062f54bcb79","7ab405111b7ab8d006242062f54bcb79","feb405111b7ab8d006242062f54bcb79","76b405111b7ab8d006242062f54bcb7a","fab405111b7ab8d006242062f54bcb7a","72b405111b7ab8d006242062f54bcb7b","f6b405111b7ab8d006242062f54bcb7b","7eb405111b7ab8d006242062f54bcb7b","f2b405111b7ab8d006242062f54bcb7c","7ab405111b7ab8d006242062f54bcb7c","feb405111b7ab8d006242062f54bcb7c","76b405111b7ab8d006242062f54bcb7d","fab405111b7ab8d006242062f54bcb7d","72b405111b7ab8d006242062f54bcb7e","f6b405111b7ab8d006242062f54bcb7e","7eb405111b7ab8d006242062f54bcb7e","f2b405111b7ab8d006242062f54bcb7f","7ab405111b7ab8d006242062f54bcb7f","7eb405111b7ab8d006242062f54bcb7f","72b405111b7ab8d006242062f54bcb80","76b405111b7ab8d006242062f54bcb80","7ab405111b7ab8d006242062f54bcb80","7eb405111b7ab8d006242062f54bcb80","72b405111b7ab8d006242062f54bcb81","76b405111b7ab8d006242062f54bcb81","7ab405111b7ab8d006242062f54bcb81","7eb405111b7ab8d006242062f54bcb81","72b405111b7ab8d006242062f54bcb82","76b405111b7ab8d006242062f54bcb82","7ab405111b7ab8d006242062f54bcb82","7eb405111b7ab8d006242062f54bcb82","72b405111b7ab8d006242062f54bcb83","76b405111b7ab8d006242062f54bcb83","7ab405111b7ab8d006242062f54bcb83","7eb405111b7ab8d006242062f54bcb83","72b405111b7ab8d006242062f54bcb84","76b405111b7ab8d006242062f54bcb84","7ab405111b7ab8d006242062f54bcb84","7eb405111b7ab8d006242062f54bcb84","72b405111b7ab8d006242062f54bcb85","76b405111b7ab8d006242062f54bcb85","7ab405111b7ab8d006242062f54bcb85","7eb405111b7ab8d006242062f54bcb85","72b405111b7ab8d006242062f54bcb86","76b405111b7ab8d006242062f54bcb86","7ab405111b7ab8d006242062f54bcb86","7eb405111b7ab8d006242062f54bcb86","72b405111b7ab8d006242062f54bcb87","76b405111b7ab8d006242062f54bcb87","7ab405111b7ab8d006242062f54bcb87","7eb405111b7ab8d006242062f54bcb87","72b405111b7ab8d006242062f54bcb88","76b405111b7ab8d006242062f54bcb88","7ab405111b7ab8d006242062f54bcb88","7eb405111b7ab8d006242062f54bcb88","72b405111b7ab8d006242062f54bcb89","76b405111b7ab8d006242062f54bcb89","7ab405111b7ab8d006242062f54bcb89","7eb405111b7ab8d006242062f54bcb89","72b405111b7ab8d006242062f54bcb8a","76b405111b7ab8d006242062f54bcb8a","7ab405111b7ab8d006242062f54bcb8a","7eb405111b7ab8d006242062f54bcb8a","72b405111b7ab8d006242062f54bcb8b","76b405111b7ab8d006242062f54bcb8b","7ab405111b7ab8d006242062f54bcb8b","7eb405111b7ab8d006242062f54bcb8b","72b405111b7ab8d006242062f54bcb8c","76b405111b7ab8d006242062f54bcb8c","7ab405111b7ab8d006242062f54bcb8c","7eb405111b7ab8d006242062f54bcb8c","72b405111b7ab8d006242062f54bcb8d","76b405111b7ab8d006242062f54bcb8d","7ab405111b7ab8d006242062f54bcb8d","7eb405111b7ab8d006242062f54bcb8d","72b405111b7ab8d006242062f54bcb8e","76b405111b7ab8d006242062f54bcb8e","7ab405111b7ab8d006242062f54bcb8e","7eb405111b7ab8d006242062f54bcb8e","72b405111b7ab8d006242062f54bcb8f","76b405111b7ab8d006242062f54bcb8f","7ab405111b7ab8d006242062f54bcb8f","7eb405111b7ab8d006242062f54bcb8f","f2b405111b7ab8d006242062f54bcb90","7ab405111b7ab8d006242062f54bcb90","feb405111b7ab8d006242062f54bcb90","f2b405111b7ab8d006242062f54bcb91","f6b405111b7ab8d006242062f54bcb91","fab405111b7ab8d006242062f54bcb91","feb405111b7ab8d006242062f54bcb91","f2b405111b7ab8d006242062f54bcb92","bab405111b7ab8d006242062f54bcb92","b6b405111b7ab8d006242062f54bcb93","bab405111b7ab8d006242062f54bcb93","beb405111b7ab8d006242062f54bcb93","b2b405111b7ab8d006242062f54bcb94","b6b405111b7ab8d006242062f54bcb94","bab405111b7ab8d006242062f54bcb94","beb405111b7ab8d006242062f54bcb94","b2b405111b7ab8d006242062f54bcb95","b6b405111b7ab8d006242062f54bcb95","bab405111b7ab8d006242062f54bcb95","beb405111b7ab8d006242062f54bcb95","b2b405111b7ab8d006242062f54bcb96","b6b405111b7ab8d006242062f54bcb96","bab405111b7ab8d006242062f54bcb96","beb405111b7ab8d006242062f54bcb96","83b405111b7ab8d006242062f54bcb97","87b405111b7ab8d006242062f54bcb97","0fb405111b7ab8d006242062f54bcb97","83b405111b7ab8d006242062f54bcb98","0bb405111b7ab8d006242062f54bcb98","8fb405111b7ab8d006242062f54bcb98","83b405111b7ab8d006242062f54bcb99","87b405111b7ab8d006242062f54bcb99","8bb405111b7ab8d006242062f54bcb99","8fb405111b7ab8d006242062f54bcb99","83b405111b7ab8d006242062f54bcb9a","87b405111b7ab8d006242062f54bcb9a","0fb405111b7ab8d006242062f54bcb9a","83b405111b7ab8d006242062f54bcb9b","0bb405111b7ab8d006242062f54bcb9b","8fb405111b7ab8d006242062f54bcb9b","07b405111b7ab8d006242062f54bcb9c","8bb405111b7ab8d006242062f54bcb9c","03b405111b7ab8d006242062f54bcb9d","87b405111b7ab8d006242062f54bcb9d","8bb405111b7ab8d006242062f54bcb9d","8fb405111b7ab8d006242062f54bcb9d","83b405111b7ab8d006242062f54bcb9e","87b405111b7ab8d006242062f54bcb9e","8bb405111b7ab8d006242062f54bcb9e","8fb405111b7ab8d006242062f54bcb9e","83b405111b7ab8d006242062f54bcb9f","87b405111b7ab8d006242062f54bcb9f","8bb405111b7ab8d006242062f54bcb9f","8fb405111b7ab8d006242062f54bcb9f","83b405111b7ab8d006242062f54bcba0","87b405111b7ab8d006242062f54bcba0","8bb405111b7ab8d006242062f54bcba0","8fb405111b7ab8d006242062f54bcba0","83b405111b7ab8d006242062f54bcba1","87b405111b7ab8d006242062f54bcba1","8bb405111b7ab8d006242062f54bcba1","8fb405111b7ab8d006242062f54bcba1","83b405111b7ab8d006242062f54bcba2","87b405111b7ab8d006242062f54bcba2","8bb405111b7ab8d006242062f54bcba2","8fb405111b7ab8d006242062f54bcba2","07b405111b7ab8d006242062f54bcba3","8bb405111b7ab8d006242062f54bcba3","03b405111b7ab8d006242062f54bcba4","87b405111b7ab8d006242062f54bcba4","0fb405111b7ab8d006242062f54bcba4","83b405111b7ab8d006242062f54bcba5","0bb405111b7ab8d006242062f54bcba5","0fb405111b7ab8d006242062f54bcba5","03b405111b7ab8d006242062f54bcba6","07b405111b7ab8d006242062f54bcba6","0bb405111b7ab8d006242062f54bcba6","0fb405111b7ab8d006242062f54bcba6","03b405111b7ab8d006242062f54bcba7","07b405111b7ab8d006242062f54bcba7","0bb405111b7ab8d006242062f54bcba7","0fb405111b7ab8d006242062f54bcba7","03b405111b7ab8d006242062f54bcba8","07b405111b7ab8d006242062f54bcba8","0bb405111b7ab8d006242062f54bcba8","0fb405111b7ab8d006242062f54bcba8","03b405111b7ab8d006242062f54bcba9","07b405111b7ab8d006242062f54bcba9","0bb405111b7ab8d006242062f54bcba9","0fb405111b7ab8d006242062f54bcba9","03b405111b7ab8d006242062f54bcbaa","07b405111b7ab8d006242062f54bcbaa","0bb405111b7ab8d006242062f54bcbaa","0fb405111b7ab8d006242062f54bcbaa","03b405111b7ab8d006242062f54bcbab","07b405111b7ab8d006242062f54bcbab","0bb405111b7ab8d006242062f54bcbab","0fb405111b7ab8d006242062f54bcbab","03b405111b7ab8d006242062f54bcbac","07b405111b7ab8d006242062f54bcbac","0bb405111b7ab8d006242062f54bcbac","0fb405111b7ab8d006242062f54bcbac","03b405111b7ab8d006242062f54bcbad","07b405111b7ab8d006242062f54bcbad","0bb405111b7ab8d006242062f54bcbad","0fb405111b7ab8d006242062f54bcbad","03b405111b7ab8d006242062f54bcbae","07b405111b7ab8d006242062f54bcbae","cbb405111b7ab8d006242062f54bcbae","c7b405111b7ab8d006242062f54bcbaf","cbb405111b7ab8d006242062f54bcbaf","cfb405111b7ab8d006242062f54bcbaf","47b405111b7ab8d006242062f54bcbb0","4bb405111b7ab8d006242062f54bcbb0","4fb405111b7ab8d006242062f54bcbb0","43b405111b7ab8d006242062f54bcbb1","47b405111b7ab8d006242062f54bcbb1","4bb405111b7ab8d006242062f54bcbb1","cfb405111b7ab8d006242062f54bcbb1","47b405111b7ab8d006242062f54bcbb2","cbb405111b7ab8d006242062f54bcbb2","43b405111b7ab8d006242062f54bcbb3","c7b405111b7ab8d006242062f54bcbb3","4fb405111b7ab8d006242062f54bcbb3","c3b405111b7ab8d006242062f54bcbb4","4bb405111b7ab8d006242062f54bcbb4","cfb405111b7ab8d006242062f54bcbb4","47b405111b7ab8d006242062f54bcbb5","cbb405111b7ab8d006242062f54bcbb5","43b405111b7ab8d006242062f54bcbb6","c7b405111b7ab8d006242062f54bcbb6","4fb405111b7ab8d006242062f54bcbb6","c3b405111b7ab8d006242062f54bcbb7","4bb405111b7ab8d006242062f54bcbb7","cfb405111b7ab8d006242062f54bcbb7","47b405111b7ab8d006242062f54bcbb8","cbb405111b7ab8d006242062f54bcbb8","43b405111b7ab8d006242062f54bcbb9","c7b405111b7ab8d006242062f54bcbb9"]
[]
[]
[]
[]
[]
[]
[]
[]
[]
[]
[]
[]
[]
[]
[]
[]
[]
[]
[]
[]
[]
[]
[]
[]
[]
[]
[]
[]
[]
[]
[]
[]
[]
[]
[]
[]
[]
[]
[]
[]
[]
[]
[]
[]
[]
[]
[]
[]
[]
[]
[]
[]
[]
[]
[]
[]
[]
[]
[]
[]
[]
[]
[]
[]
[]
[]
[]
[]
[]
[]
[]
[]
[]
[]
[]
[]
[]
[]
[]
[]
[]
[]
[]
[]
[]
[]
[]
[]
[]
[]
[]
[]
[]
[]
[]
[]
[]
[]
[]
[]
[]
[]
[]
[]
[]
[]
[]
[]
[]
[]
[]
[]
[]
[]
[]
[]
[]
[]
[]
[]
[]
[]
[]
[]
[]
[]
[]
[]
[]
[]
[]
[]
[]
[]
[]
[]
[]
[]
[]
[]
[]
[]
[]
[]
[]
[]
[]
[]
[]
[]
[]
[]
[]
[]
[]
[]
[]
[]
[]
[]
[]
[]
[]
[]
[]
[]
[]
[]
[]
[]
[]
[]
[]
[]
[]
[]
[]
[]
[]
[]
[]
[]
[]
[]
[]
[]
[]
[]
[]
[]
[]
[]
[]
[]
[]
[]
[]
[]
[]
[]
[]
[]
[]
[]
[]
[]
[]
[]
[]
[]
[]
[]
[]
[]
[]
[]
[]
[]
[]
[]
[]
[]
[]
[]
[]
[]
[]
[]
[]
[]
[]
[]
[]
[]
[]
[]
[]
[]
[]
[]
[]
[]
[]
[]
[]
[]
[]
[]
[]
[]
[]
[]
[]
[]
[]
[]
[]
[]
[]
[]
[]
[]
[]
[]
[]
[]
[]
[]
[]
[]
[]
[]
[]
[]
[]
[]
[]
[]
[]
[]
[]
[]
[]
[]
[]
[]
[]
[]
[]
[]
[]
[]
[]
[]
[]
[]
[]
[]
[]
[]
[]
[]
[]
[]
[]
[]
[]
[]
[]
[]
[]
[]
[]
[]
[]
[]
[]
[]
[]
[]
[]
[]
[]
[]
[]
[]
[]
[]
[]
[]
[]
[]
[]
[]
[]
[]
[]
[]
[]
[]
[]
[]
[]
[]
[]
[]
[]
[]
[]
[]
[]
[]
[]
[]
[]
[]
[]
[]
[]
[]
[]
[]
[]
[]
[]
[]
[]
[]
[]
[]
[]
[]
[]
[]
[]
[]
[]
[]
[]
[]
[]
[]
[]
[]
[]
[]
[]
[]
[]
[]
[]
[]
[]
[]
[]
[]
[]
[]
[]
[]
[]
[]
[]
[]
[]
[]
[]
[]
[]
[]
[]
[]
[]
[]
[]
[]
[]
[]
[]
[]
[]
[]
[]
[]
[]
[]
[]
[]
[]
[]
[]
[]
[]
[]
[]
[]
[]
[]
[]
[]
[]
[]
[]
[]
[]
[]
[]
[]
[]
[]
[]
[]
[]
[]
[]
[]
[]
[]
[]
[]
[]
[]
[]
[]
[]
[]
[]
[]
[]
[]
[]
[]
[]
[]
[]
[]
[]
[]
[]
[]
[]
[]
[]
[]
[]
[]
[]
[]
[]
[]
[]
[]
[]
[]
[]
[]
[]
[]
[]
[]
[]
[]
[]
[]
[]
[]
[]
[]
[]
[]
[]
[]
[]
[]
[]
[]
[]
[]
[]
[]
[]
[]
[]
[]
[]
[]
[]
[]
[]
[]
[]
[]
[]
[]
[]
[]
[]
[]
[]
[]
[]
[]
[]
[]
[]
[]
[]
[]
[]
[]
[]
[]
[]
[]
[]
[]
[]
[]
[]
[]
[]
[]
[]
[]
[]
[]
[]
[]
[]
[]
[]
[]
[]
[]
[]
[]
[]
[]
[]
[]
[]
[]
[]
[]
[]
[]
[]
[]
[]
[]
[]
[]
[]
[]
[]
[]
[]
[]
[]
[]
[]
[]
[]
[]
[]
[]
[]
[]
[]
[]
[]
[]
[]
[]
[]
[]
[]
[]
[]
[]
[]
[]
[]
[]
[]
[]
[]
[]
[]
[]
[]
[]
[]
[]
[]
[]
[]
[]
[]
[]
[]
[]
[]
[]
[]
[]
[]
[]
[]
[]
[]
[]
[]
[]
[]
[]
[]
[]
[]
[]
[]
[]
[]
[]
[]
[]
[]
[]
[]
[]
[]
[]
[]
[]
[]
[]
[]
[]
[]
[]
[]
[]
[]
[]
[]
[]
[]
[]
[]
[]
[]
[]
[]
[]
[]
[]
[]
[]
[]
[]
[]
[]
[]
[]
[]
[]
[]
[]
[]
[]
[]
[]
[]
[]
[]
[]
[]
[]
[]
[]
[]
[]
[]
[]
[]
[]
[]
[]
[]
[]
[]
[]
[]
[]
[]
[]
[]
[]
[]
[]
[]
[]
[]
[]
[]
[]
[]
[]
[]
[]
[]
[]
[]
[]
[]
[]
[]
[]
[]
[]
[]
[]
[]
[]
[]
[]
[]
[]
[]
[]
[]
[]
[]
[]
[]
[]
[]
[]
[]
[]
[]
[]
[]
[]
[]
[]
[]
[]
[]
[]
[]
[]
[]
[]
[]
[]
[]
[]
[]
[]
[]
[]
[]
[]
[]
[]
[]
[]
[]
[]
[]
[]
[]
[]
[]
[]
[]
[]
[]
[]
[]
[]
[]
[]
[]
[]
[]
[]
[]
[]
[]
[]
[]
[]
[]
[]
[]
[]
[]
[]
[]
[]
[]
[]
[]
[]
[]
[]
[]
[]
[]
[]
[]
[]
[]
[]
[]
[]
[]
[]
[]
[]
[]
[]
[]
[]
[]
[]
[]
[]
[]
[]
[]
[]
[]
[]
[]
[]
[]
[]
[]
[]
[]
[]
[]
[]
[]
[]
[]
[]
[]
[]
[]
[]
[]
[]
[]
[]
[]
[]
[]
[]
[]
[]
[]
[]
[]
[]
[]
[]
[]
[]
[]
[]
[]
[]
[]
[]
[]
[]
[]
[]
[]
[]
[]
[]
[]
[]
[]
[]
[]
[]
[]
[]
[]
[]
[]
[]
[]
[]
[]
[]
[]
[]
[]
[]
[]
[]
[]
[]
[]
[]
[]
[]
[]
[]
[]
[]
[]
[]
[]
[]
[]
[]
[]
[]
[]
[]
[]
[]
[]
[]
[]
[]
[]
[]
[]
[]
[]
[]
[]
[]
[]
[]
[]
[]
[]
[]
[]
[]
[]
[]
[]
[]
[]
[]
[]
[]
[]
[]
[]
[]
[]
[]
[]
[]
[]
[]
[]
[]
[]
[]
[]
[]
[]
[]
[]
[]
[]
[]
[]
[]
[]
[]
[]
[]
[]
[]
[]
[]
[]
[]
[]
[]
[]
[]
[]
[]
[]
[]
[]
[]
[]
[]
[]
[]
[]
[]
[]
[]
[]
[]
[]
[]
[]
[]
[]
[]
[]
[]
[]
[]
[]
[]
[]
[]
[]
[null,{"$f":"(#REF!+#REF!)/2","v":{"$error":"#REF!"}}]

{"sheet":"Catalog Item","index":5,"n_rows":531,"n_cols":8,"rows_kept":531,"cut":false,"hidden":true,"merged":[]}
["Average Estimate Cost","Cost Category","Cost Subcategory","Description","High Range Estimate Cost","Index","Low Range Estimate Cost","sys_id"]
[{"$f":"(E2+G2)/2","v":20100},"Access Layer","Optical line terminal equipment (OLT)",null,39000,"1.1.0",1200,"e6b4c1111b7ab8d006242062f54bcb96"]
[{"$f":"(E3+G3)/2","v":61727},"Access Layer","Access WDM (Wavelength Division Multiplexing) & OTN (Optical Transport Network)",null,120000,"1.2.1",3454,"aab4c1111b7ab8d006242062f54bcb97"]
[197500,"Access Layer","Access WDM (Wavelength Division Multiplexing) & OTN (Optical Transport Network)",null,330000,"1.2.2",65000,"22b4c1111b7ab8d006242062f54bcb98"]
[262.5,"Access Layer","End-User Termination Point - FTTH",null,425,"1.3.1",100,"26b4c1111b7ab8d006242062f54bcb98"]
[402.5,"Access Layer","End-User Termination Point - FTTH",null,535,"1.3.2",270,"2ab4c1111b7ab8d006242062f54bcb98"]
[15297.5,"Access Layer","End-User Termination Point - FTTH",null,30000,"1.3.3",595,"2eb4c1111b7ab8d006242062f54bcb98"]
[15700,"Access Layer","End-User Termination Point - FTTH",null,25000,"1.3.4",6400,"22b4c1111b7ab8d006242062f54bcb99"]
[8146.56,"Access Layer","Ethernet Service Access Node (ESAN) (includes outdoor cabinet & install)",null,8146.56,"1.5.0",8146.56,"a6b4c1111b7ab8d006242062f54bcb99"]
[40750,"Access Layer","LAN MDUs",null,79000,"1.6.1",2500,"aab4c1111b7ab8d006242062f54bcb99"]
[78500,"Access Layer","LAN MDUs",null,117000,"1.6.2",40000,"26b405111b7ab8d006242062f54bcb16"]
[177500,"Access Layer","LAN MDUs",null,240000,"1.6.3",115000,"2ab405111b7ab8d006242062f54bcb16"]
[287.5,"Access Layer","Home network and customer premises equipment (CPE)",null,375,"1.7.1",200,"aeb405111b7ab8d006242062f54bcb16"]
[230,"Access Layer","Home network and customer premises equipment (CPE)",null,260,"1.7.2",200,"26b405111b7ab8d006242062f54bcb17"]
[93,"Access Layer","Home network and customer premises equipment (CPE)",null,124,"1.7.3",62,"aab405111b7ab8d006242062f54bcb17"]
[1500,"Access Layer","Customer Outreach to End-User - Public Relations/Notification",null,2000,"1.8.1",1000,"22b405111b7ab8d006242062f54bcb18"]
[189,"Access Layer","Cable coaxial media converters",null,289,"1.9.0",89,"26b405111b7ab8d006242062f54bcb18"]
[12250,"Access Layer","Cable coaxial media converters",null,16000,"1.9.1",8500,"2ab405111b7ab8d006242062f54bcb18"]
[1547.5,"Access Layer","WLAN (Wireless Local Area Network)",null,2300,"1.10.1",795,"2eb405111b7ab8d006242062f54bcb18"]
[3112.5,"Access Layer","WLAN (Wireless Local Area Network)",null,3825,"1.10.2",2400,"22b405111b7ab8d006242062f54bcb19"]
[6502.5,"Access Layer","Site Cabinets - Optical Network Units (ONU)",null,7225,"1.11.0",5780,"a6b405111b7ab8d006242062f54bcb19"]
[41808,"Access Layer","Site Cabinets - Optical Network Units (ONU)",null,61116,"1.11.1",22500,"2eb405111b7ab8d006242062f54bcb19"]
[26250,"Access Layer","Site Cabinets - Optical Network Units (ONU)",null,34000,"1.11.2",18500,"a2b405111b7ab8d006242062f54bcb1a"]
[5772.5,"Distribution Layer","Routers",null,10750,"2.1.1",795,"a6b405111b7ab8d006242062f54bcb1a"]
[10558,"Distribution Layer","Routers",null,19500,"2.1.2",1616,"aab405111b7ab8d006242062f54bcb1a"]
[8033,"Distribution Layer","Routers",null,13068,"2.1.3",2998,"aeb405111b7ab8d006242062f54bcb1a"]
[6591,"Distribution Layer","Routers",null,12000,"2.1.4",1182,"a2b405111b7ab8d006242062f54bcb1b"]
[12247.5,"Distribution Layer","Routers",null,19995,"2.1.5",4500,"a6b405111b7ab8d006242062f54bcb1b"]
[93750,"Distribution Layer","Routers",null,170000,"2.1.6",17500,"aab405111b7ab8d006242062f54bcb1b"]
[120732.5,"Distribution Layer","Switches",null,239270,"2.2.1",2195,"aeb405111b7ab8d006242062f54bcb1b"]
[358903.5,"Distribution Layer","Switches",null,478537,"2.2.2",239270,"a2b405111b7ab8d006242062f54bcb1c"]
[599268.5,"Distribution Layer","Switches",null,720000,"2.2.3",478537,"a6b405111b7ab8d006242062f54bcb1c"]
[154400,"Distribution Layer","Switches",null,270600,"2.2.4",38200,"aab405111b7ab8d006242062f54bcb1c"]
[405900,"Distribution Layer","Switches",null,541200,"2.2.5",270600,"aeb405111b7ab8d006242062f54bcb1c"]
[695600,"Distribution Layer","Switches",null,850000,"2.2.6",541200,"a2b405111b7ab8d006242062f54bcb1d"]
[102550,"Distribution Layer","FTTH (Fiber To The Home) - GPON (Gigabyte Passive Optical Network) / XGS (10-Gigabit-capable symmetric passive optical network)",null,190100,"2.3.1",15000,"2ab405111b7ab8d006242062f54bcb1d"]
[50427.5,"Distribution Layer","FTTH (Fiber To The Home) - GPON (Gigabyte Passive Optical Network) / XGS (10-Gigabit-capable symmetric passive optical network)",null,80855,"2.3.2",20000,"aeb405111b7ab8d006242062f54bcb1d"]
[33842.5,"Distribution Layer","FTTH (Fiber To The Home) - GPON (Gigabyte Passive Optical Network) / XGS (10-Gigabit-capable symmetric passive optical network)",null,39635,"2.3.3",28050,"26b405111b7ab8d006242062f54bcb1e"]
[23140,"Distribution Layer","VDSL (Very high-speed Digital Subscriber Line) Access Network",null,26475,"2.4.1",19805,"aab405111b7ab8d006242062f54bcb1e"]
[363500,"Distribution Layer","Cell Edge Aggregation",null,415000,"2.5.1",312000,"aeb405111b7ab8d006242062f54bcb1e"]
[525000,"Distribution Layer","Cell Edge Aggregation",null,600000,"2.5.2",450000,"a2b405111b7ab8d006242062f54bcb1f"]
[731500,"Distribution Layer","Cell Edge Aggregation",null,835000,"2.5.3",628000,"a6b405111b7ab8d006242062f54bcb1f"]
[17333.5,"Distribution Layer","Network security equipment",null,33667,"2.6.1",1000,"aab405111b7ab8d006242062f54bcb1f"]
[91833.5,"Distribution Layer","Network security equipment",null,150000,"2.6.2",33667,"aeb405111b7ab8d006242062f54bcb1f"]
[283666.5,"Distribution Layer","Network security equipment",null,500000,"2.6.3",67333,"a2b405111b7ab8d006242062f54bcb20"]
[92500,"Distribution Layer","Distribution WDM & OTN ",null,102000,"2.7.1",83000,"a6b405111b7ab8d006242062f54bcb20"]
[247500,"Distribution Layer","Distribution WDM & OTN ",null,330000,"2.7.2",165000,"aab405111b7ab8d006242062f54bcb20"]
[21380,"Distribution Layer","Microwave PTP (point to point links)",null,36200,"2.8.1",6560,"aeb405111b7ab8d006242062f54bcb20"]
[30500.5,"Distribution Layer","Microwave PTP (point to point links)",null,53674,"2.8.2",7327,"a2b405111b7ab8d006242062f54bcb21"]
[33492,"Distribution Layer","Microwave PTP (point to point links)",null,56666,"2.8.3",10318,"a6b405111b7ab8d006242062f54bcb21"]
[39216.5,"Distribution Layer","Microwave PTP (point to point links)",null,62390,"2.8.4",16043,"aab405111b7ab8d006242062f54bcb21"]
[13350,"Distribution Layer","Microwave PTP (point to point links)",null,16000,"2.8.5",10700,"aeb405111b7ab8d006242062f54bcb21"]
[30250,"Distribution Layer","Microwave PTP (point to point links)",null,36300,"2.8.6",24200,"a2b405111b7ab8d006242062f54bcb22"]
[13350,"Distribution Layer","Microwave PTP (point to point links)",null,16000,"2.8.7",10700,"a6b405111b7ab8d006242062f54bcb22"]
[30250,"Distribution Layer","Microwave PTP (point to point links)",null,36300,"2.8.8",24200,"aab405111b7ab8d006242062f54bcb22"]
[12000,"Distribution Layer","Microwave PTP (point to point links)",null,14400,"2.8.9",9600,"aeb405111b7ab8d006242062f54bcb22"]
[7000,"Distribution Layer","Microwave PTP (point to point links)",null,8500,"2.8.10",5500,"a2b405111b7ab8d006242062f54bcb23"]
[7450,"Distribution Layer","Microwave PTMP (point to multipoint)",null,11500,"2.9.1",3400,"a6b405111b7ab8d006242062f54bcb23"]
[2807,"Distribution Layer","Microwave PTMP (point to multipoint)",null,4000,"2.9.2",1614,"aab405111b7ab8d006242062f54bcb23"]
[2900.5,"Distribution Layer","Microwave PTMP (point to multipoint)",null,4100,"2.9.3",1701,"aeb405111b7ab8d006242062f54bcb23"]
[2769.5,"Distribution Layer","Microwave PTMP (point to multipoint)",null,4100,"2.9.4",1439,"a2b405111b7ab8d006242062f54bcb24"]
[1137.5,"Distribution Layer","Microwave Antennas - Single Pole",null,1850,"2.10.1",425,"a6b405111b7ab8d006242062f54bcb24"]
[3071.75,"Distribution Layer","Microwave Antennas - Single Pole",null,3668.5,"2.10.2",2475,"aab405111b7ab8d006242062f54bcb24"]
[1200.8499999999999,"Distribution Layer","Microwave Antennas - Dual Polarization",null,1976.7,"2.11.1",425,"aeb405111b7ab8d006242062f54bcb24"]
[3484,"Distribution Layer","Microwave Antennas - Dual Polarization",null,4268,"2.11.2",2700,"a2b405111b7ab8d006242062f54bcb25"]
[4370,"Distribution Layer","Microwave Antennas - Dual Polarization – Ultra High Performance",null,5250,"2.12.1",3490,"2ab405111b7ab8d006242062f54bcb25"]
[{"$f":"(E67+G67)/2","v":18625},"Distribution Layer","Microwave Antennas - Dual Polarization – Ultra High Performance",null,30000,"2.12.2",7250,"aeb405111b7ab8d006242062f54bcb25"]
[4280,"Distribution Layer","Microwave Antennas - mmWave Flat Panel",null,4708,"2.13.1",3852,"a2b405111b7ab8d006242062f54bcb26"]
[1040,"Distribution Layer","Microwave Antennas - mmWave Flat Panel",null,1650,"2.13.2",430,"a6b405111b7ab8d006242062f54bcb26"]
[1725,"Distribution Layer","Microwave Antennas - mmWave Flat Panel",null,2050,"2.13.3",1400,"aab405111b7ab8d006242062f54bcb26"]
[3497,"Distribution Layer","Antenna - LTE (Long Term Evolution) Multi-band, >16dBi",null,6450,"2.14.1",544,"22b405111b7ab8d006242062f54bcb27"]
[6236.75,"Distribution Layer","Antenna - LTE (Long Term Evolution) Multi-band, >16dBi",null,10994.5,"2.14.2",1479,"a6b405111b7ab8d006242062f54bcb27"]
[7125.25,"Distribution Layer","Antenna - LTE & CBRS (Citizens Broadband Radio Service), >16dBi",null,9795.5,"2.15.1",4455,"2eb405111b7ab8d006242062f54bcb27"]
[3060.25,"Distribution Layer","Antenna - CBRS only ",null,5225,"2.16.1",895.5,"22b405111b7ab8d006242062f54bcb28"]
[2043.5,"Distribution Layer","Hybrid Cable & Radio/Antenna Jumpers, Tower Ancillary Components",null,2560,"2.17.1",1527,"a6b405111b7ab8d006242062f54bcb28"]
[2246.5,"Distribution Layer","Hybrid Cable & Radio/Antenna Jumpers, Tower Ancillary Components",null,2800,"2.17.2",1693,"2eb405111b7ab8d006242062f54bcb28"]
[4556.5,"Distribution Layer","Hybrid Cable & Radio/Antenna Jumpers, Tower Ancillary Components",null,7200,"2.17.3",1913,"a2b405111b7ab8d006242062f54bcb29"]
[7349.5,"Distribution Layer","Hybrid Cable & Radio/Antenna Jumpers, Tower Ancillary Components",null,10000,"2.17.4",4699,"2ab405111b7ab8d006242062f54bcb29"]
[2750,"Distribution Layer","Hybrid Cable & Radio/Antenna Jumpers, Tower Ancillary Components",null,4000,"2.17.5",1500,"aeb405111b7ab8d006242062f54bcb29"]
[570,"Distribution Layer","Hybrid Cable & Radio/Antenna Jumpers, Tower Ancillary Components",null,950,"2.17.6",190,"26b405111b7ab8d006242062f54bcb2a"]
[38450,"Distribution Layer","LAN MDUs (Local Area Network Multi-Dwelling Units)",null,75000,"2.18.1",1900,"aab405111b7ab8d006242062f54bcb2a"]
[109683,"Distribution Layer","LAN MDUs (Local Area Network Multi-Dwelling Units)",null,150000,"2.18.2",69366,"22b405111b7ab8d006242062f54bcb2b"]
[194850,"Distribution Layer","LAN MDUs (Local Area Network Multi-Dwelling Units)",null,250000,"2.18.3",139700,"a6b405111b7ab8d006242062f54bcb2b"]
[18500,"Distribution Layer","Bearer - 5G Transport connects all categories of the mobile network infrastructure, including fronthaul, midhaul, and backhaul",null,20000,"2.19.1",17000,"2eb405111b7ab8d006242062f54bcb2b"]
[28500,"Distribution Layer","Bearer - 5G Transport connects all categories of the mobile network infrastructure, including fronthaul, midhaul, and backhaul",null,34000,"2.19.2",23000,"a2b405111b7ab8d006242062f54bcb2c"]
[9436,"Distribution Layer","LTE FDD (Frequency Division Duplex)",null,14872,"2.21.1",4000,"a6b405111b7ab8d006242062f54bcb2c"]
[17010.5,"Distribution Layer","LTE FDD (Frequency Division Duplex)",null,22496,"2.21.2",11525,"aab405111b7ab8d006242062f54bcb2c"]
[3726.5,"Distribution Layer","LTE FDD (Frequency Division Duplex)",null,5844,"2.21.3",1609,"aeb405111b7ab8d006242062f54bcb2c"]
[4789.5,"Distribution Layer","LTE FDD (Frequency Division Duplex)",null,7844,"2.21.4",1735,"a2b405111b7ab8d006242062f54bcb2d"]
[12921,"Distribution Layer","LTE TDD (Time Division Duplex)",null,21842,"2.22.1",4000,"a6b405111b7ab8d006242062f54bcb2d"]
[24917.5,"Distribution Layer","LTE TDD (Time Division Duplex)",null,28517,"2.22.2",21318,"aab405111b7ab8d006242062f54bcb2d"]
[8000,"Distribution Layer","LTE TDD (Time Division Duplex)",null,13000,"2.22.3",3000,"aeb405111b7ab8d006242062f54bcb2d"]
[31117,"Distribution Layer","LTE BBU (Baseband Units)",null,54773,"2.23.1",7461,"a2b405111b7ab8d006242062f54bcb2e"]
[616098,"Distribution Layer","LTE BBU (Baseband Units)",null,840918,"2.23.2",391278,"a6b405111b7ab8d006242062f54bcb2e"]
[955582,"Distribution Layer","LTE BBU (Baseband Units)",null,1070246,"2.23.3",840918,"aab405111b7ab8d006242062f54bcb2e"]
[1672552.5,"Distribution Layer","LTE BBU (Baseband Units)",null,2274859,"2.23.4",1070246,"aeb405111b7ab8d006242062f54bcb2e"]
[17021,"Distribution Layer","1 Sector Bundle - 10/20MHz channels - RU (Radio Unit), CDU (Cabinet Distributed Unit), shelf, cables, SFP's, and antennas",null,17504,"2.24.1",16538,"26b405111b7ab8d006242062f54bcb2f"]
[29602,"Distribution Layer","1 Sector Bundle - 10/20MHz channels - RU (Radio Unit), CDU (Cabinet Distributed Unit), shelf, cables, SFP's, and antennas",null,30412,"2.24.2",28792,"aab405111b7ab8d006242062f54bcb2f"]
[17021,"Distribution Layer","1 Sector Bundle - 40MHz channels - RU, CDU, DU shelf, cables, SFP's, and antennas",null,17504,"2.25.1",16538,"22b405111b7ab8d006242062f54bcb30"]
[35340,"Distribution Layer","1 Sector Bundle - 40MHz channels - RU, CDU, DU shelf, cables, SFP's, and antennas",null,36315,"2.25.2",34365,"a6b405111b7ab8d006242062f54bcb30"]
[17297.5,"Distribution Layer","1 Sector Bundle - 60MHz channels - RU, CDU, DU shelf, cables, SFP's, and antennas",null,17788,"2.26.1",16807,"22b405111b7ab8d006242062f54bcb31"]
[41078.5,"Distribution Layer","1 Sector Bundle - 60MHz channels - RU, CDU, DU shelf, cables, SFP's, and antennas",null,42217,"2.26.2",39940,"a6b405111b7ab8d006242062f54bcb32"]
[4989.5,"Distribution Layer","1 Sector Bundle - 60MHz channels - RU, CDU, DU shelf, cables, SFP's, and antennas",null,5137,"2.26.3",4842,"2eb405111b7ab8d006242062f54bcb32"]
[16432.5,"Distribution Layer","1 Sector Bundle - 60MHz channels - RU, CDU, DU shelf, cables, SFP's, and antennas",null,16902,"2.26.4",15963,"a2b405111b7ab8d006242062f54bcb33"]
[1100000,"Distribution Layer","Rapid Deployed, Self-contained 5G cell site with attached Core",null,1400000,"2.27.1",800000,"2ab405111b7ab8d006242062f54bcb33"]
[649500,"Distribution Layer","Rapid Deployed, Self-contained 5G cell site with attached Core",null,799000,"2.27.2",500000,"aeb405111b7ab8d006242062f54bcb33"]
[375000,"Distribution Layer","Rapid Deployed, Self-contained 5G cell site with attached Core",null,500000,"2.27.3",250000,"26b405111b7ab8d006242062f54bcb34"]
[75000,"Distribution Layer","Rapid Deployed, Self-contained 5G cell site with attached Core",null,100000,"2.27.4",50000,"aab405111b7ab8d006242062f54bcb34"]
[200500,"Distribution Layer","Rapid Deployed, Self-contained 5G cell site with attached Core",null,300000,"2.27.5",101000,"22b405111b7ab8d006242062f54bcb35"]
[112500,"Distribution Layer","Rapid Deployed, Self-contained 5G cell site with attached Core",null,150000,"2.27.6",75000,"a6b405111b7ab8d006242062f54bcb35"]
[350,"Distribution Layer","Rapid Deployed, Self-contained 5G cell site with attached Core",null,500,"2.27.7",200,"2eb405111b7ab8d006242062f54bcb35"]
[41500,"Distribution Layer","Bundled BBU/RRH (Base Band Unit/Remote Radio Head) Fixed Wireless",null,56000,"2.28.1",27000,"a2b405111b7ab8d006242062f54bcb36"]
[100000,"Distribution Layer","Bundled BBU/RRH (Base Band Unit/Remote Radio Head) Fixed Wireless",null,115000,"2.28.2",85000,"2ab405111b7ab8d006242062f54bcb36"]
[57000,"Distribution Layer","Bundled BBU/RRH (Base Band Unit/Remote Radio Head) Mobility Wireless - nonMIMO",null,69000,"2.28.3",45000,"aeb405111b7ab8d006242062f54bcb36"]
[226586,"Distribution Layer","Bundled BBU/RRH (Base Band Unit/Remote Radio Head) Mobility Wireless - mMIMO",null,368172,"2.28.4",85000,"26b405111b7ab8d006242062f54bcb37"]
[45500,"Distribution Layer","Bundled Open-RAN",null,52000,"2.29.1",39000,"2ab405111b7ab8d006242062f54bcb37"]
[108000,"Distribution Layer","Bundled Open-RAN",null,125000,"2.29.2",91000,"2eb405111b7ab8d006242062f54bcb37"]
[52500,"Distribution Layer","Bundled Open-RAN",null,60000,"2.29.3",45000,"22b405111b7ab8d006242062f54bcb38"]
[93,"Distribution Layer","SAS Integration Costs (per Radio)",null,124,"2.30.0",62,"26b405111b7ab8d006242062f54bcb38"]
[45927,"Distribution Layer","Open vRAN eNodeB\nModel is based on single band 50 site cluster. It includes RRU (Remote Radio Unit)/CU (Control Unit)/DU (Distributed Unit)/SW (Software)/NFVi (Network Functions Virtualization infrastructure). SW include all features, power licenses, optional features ",null,64838,"2.31.1",27016,"aab405111b7ab8d006242062f54bcb38"]
[47933,"Distribution Layer","Open vRAN eNodeB\nModel is based on single band 50 site cluster. It includes RRU (Remote Radio Unit)/CU (Control Unit)/DU (Distributed Unit)/SW (Software)/NFVi (Network Functions Virtualization infrastructure). SW include all features, power licenses, optional features ",null,67670,"2.31.2",28196,"22b405111b7ab8d006242062f54bcb39"]
[51248,"Distribution Layer","Open vRAN eNodeB\nModel is based on single band 50 site cluster. It includes RRU (Remote Radio Unit)/CU (Control Unit)/DU (Distributed Unit)/SW (Software)/NFVi (Network Functions Virtualization infrastructure). SW include all features, power licenses, optional features ",null,72350,"2.31.3",30146,"a6b405111b7ab8d006242062f54bcb39"]
[51248,"Distribution Layer","Open vRAN eNodeB\nModel is based on single band 50 site cluster. It includes RRU (Remote Radio Unit)/CU (Control Unit)/DU (Distributed Unit)/SW (Software)/NFVi (Network Functions Virtualization infrastructure). SW include all features, power licenses, optional features ",null,72350,"2.31.4",30146,"2eb405111b7ab8d006242062f54bcb39"]
[47550.5,"Distribution Layer","Open vRAN eNodeB\nModel is based on single band 50 site cluster. It includes RRU (Remote Radio Unit)/CU (Control Unit)/DU (Distributed Unit)/SW (Software)/NFVi (Network Functions Virtualization infrastructure). SW include all features, power licenses, optional features ",null,67130,"2.31.5",27971,"a2b405111b7ab8d006242062f54bcb3a"]
[73365,"Distribution Layer","Open vRAN eNodeB\nModel is based on single band 50 site cluster. It includes RRU (Remote Radio Unit)/CU (Control Unit)/DU (Distributed Unit)/SW (Software)/NFVi (Network Functions Virtualization infrastructure). SW include all features, power licenses, optional features ",null,103574,"2.31.6",43156,"2ab405111b7ab8d006242062f54bcb3a"]
[107489,"Distribution Layer","Open vRAN eNodeB\nModel is based on single band 50 site cluster. It includes RRU (Remote Radio Unit)/CU (Control Unit)/DU (Distributed Unit)/SW (Software)/NFVi (Network Functions Virtualization infrastructure). SW include all features, power licenses, optional features ",null,151749,"2.31.7",63229,"aeb405111b7ab8d006242062f54bcb3a"]
[9231,"Distribution Layer","RAN (Open RAN/ vRAN) Components",null,13032,"2.32.1",5430,"a2b405111b7ab8d006242062f54bcb3b"]
[9673,"Distribution Layer","RAN (Open RAN/ vRAN) Components",null,13656,"2.32.2",5690,"a6b405111b7ab8d006242062f54bcb3b"]
[10778,"Distribution Layer","RAN (Open RAN/ vRAN) Components",null,15216,"2.32.3",6340,"aab405111b7ab8d006242062f54bcb3b"]
[10778,"Distribution Layer","RAN (Open RAN/ vRAN) Components",null,15216,"2.32.4",6340,"aeb405111b7ab8d006242062f54bcb3b"]
[{"$f":"(E131+G131)/2","v":10778},"Distribution Layer","RAN (Open RAN/ vRAN) Components",null,15216,"2.32.5",6340,"a2b405111b7ab8d006242062f54bcb3c"]
[10778,"Distribution Layer","RAN (Open RAN/ vRAN) Components",null,15216,"2.32.6",6340,"a6b405111b7ab8d006242062f54bcb3c"]
[10778,"Distribution Layer","RAN (Open RAN/ vRAN) Components",null,15216,"2.32.7",6340,"aab405111b7ab8d006242062f54bcb3c"]
[10778,"Distribution Layer","RAN (Open RAN/ vRAN) Components",null,15216,"2.32.8",6340,"aeb405111b7ab8d006242062f54bcb3c"]
[6426,"Distribution Layer","RAN (Open RAN/ vRAN) Components",null,9072,"2.32.9",3780,"a2b405111b7ab8d006242062f54bcb3d"]
[4600,"Distribution Layer","DU",null,5520,"2.33.1",3680,"a6b405111b7ab8d006242062f54bcb3d"]
[12053,"Distribution Layer","DU",null,14463.6,"2.33.2",9642.4,"aab405111b7ab8d006242062f54bcb3d"]
[9000,"Distribution Layer","DU",null,10000,"2.33.3",8000,"aeb405111b7ab8d006242062f54bcb3d"]
[14969,"Distribution Layer","CU (Control Unit)",null,17962.8,"2.34.1",11975.2,"a2b405111b7ab8d006242062f54bcb3e"]
[11000,"Distribution Layer","CU (Control Unit)",null,12000,"2.34.2",10000,"a6b405111b7ab8d006242062f54bcb3e"]
[175,"Distribution Layer","SPF - Small form-factor pluggable transceiver",null,175,"2.35.1",175,"2eb405111b7ab8d006242062f54bcb3e"]
[1627,"Distribution Layer","GPS",null,1694,"2.36.1",1560,"22b405111b7ab8d006242062f54bcb3f"]
[525000,"Distribution Layer","GSM&UMTS (Universal Mobile Telecommunications System)",null,750000,"2.37.1",300000,"a6b405111b7ab8d006242062f54bcb3f"]
[12000,"Distribution Layer","GSM&UMTS (Universal Mobile Telecommunications System)",null,13000,"2.37.2",11000,"2eb405111b7ab8d006242062f54bcb3f"]
[12000,"Distribution Layer","Small Cell",null,20000,"2.38.1",4000,"22b405111b7ab8d006242062f54bcb40"]
[80000,"Distribution Layer","Tower Shelter",null,85000,"2.39.1",75000,"26b405111b7ab8d006242062f54bcb40"]
[21906.5,"Distribution Layer","Outdoor Cabinets",null,33813,"2.40.1",10000,"2ab405111b7ab8d006242062f54bcb40"]
[5775,"Distribution Layer","Outdoor Cabinets",null,6300,"2.40.2",5250,"2eb405111b7ab8d006242062f54bcb40"]
[2150,"Distribution Layer","Outdoor Cabinets",null,2350,"2.40.3",1950,"22b405111b7ab8d006242062f54bcb41"]
[1675,"Distribution Layer","Outdoor Cabinets",null,1850,"2.40.4",1500,"26b405111b7ab8d006242062f54bcb41"]
[825,"Distribution Layer","Outdoor Cabinets",null,900,"2.40.5",750,"2ab405111b7ab8d006242062f54bcb41"]
[19663.5,"Distribution Layer","Indoor Cabinets",null,29561,"2.41.1",9766,"2eb405111b7ab8d006242062f54bcb41"]
[22000,"Distribution Layer","Indoor Cabinets",null,38000,"2.41.2",6000,"22b405111b7ab8d006242062f54bcb42"]
[725000,"Core Layer","EPC",null,1200000,"3.1.1",250000,"26b405111b7ab8d006242062f54bcb42"]
[1325000,"Core Layer","EPC",null,2550000,"3.1.2",100000,"2ab405111b7ab8d006242062f54bcb42"]
[2750000,"Core Layer","EPC",null,4250000,"3.1.3",1250000,"2eb405111b7ab8d006242062f54bcb42"]
[6361199,"Core Layer","EPC",null,8320688,"3.1.4",4401710,"22b405111b7ab8d006242062f54bcb43"]
[525000,"Core Layer","EPC",null,650000,"3.1.5",400000,"26b405111b7ab8d006242062f54bcb43"]
[1750000,"Core Layer","EPC",null,2250000,"3.1.6",1250000,"2ab405111b7ab8d006242062f54bcb43"]
[4250000,"Core Layer","EPC",null,6000000,"3.1.7",2500000,"2eb405111b7ab8d006242062f54bcb43"]
[816000,"Core Layer","EPC",null,1071000,"3.1.8",561000,"22b405111b7ab8d006242062f54bcb44"]
[325000,"Core Layer","EPC",null,500000,"3.1.9",150000,"26b405111b7ab8d006242062f54bcb44"]
[160000,"Core Layer","EPC",null,250000,"3.1.10",70000,"2ab405111b7ab8d006242062f54bcb44"]
[375000,"Core Layer","EPC",null,500000,"3.1.11",250000,"2eb405111b7ab8d006242062f54bcb44"]
[750000,"Core Layer","EPC",null,1000000,"3.1.12",500000,"22b405111b7ab8d006242062f54bcb45"]
[1750000,"Core Layer","EPC",null,2500000,"3.1.13",1000000,"26b405111b7ab8d006242062f54bcb45"]
[500000,"Core Layer","EPC",null,500000,"3.1.14",500000,"2ab405111b7ab8d006242062f54bcb45"]
[150000,"Core Layer","EPC",null,150000,"3.1.15",150000,"2eb405111b7ab8d006242062f54bcb45"]
[75000,"Core Layer","EPC",null,80000,"3.1.16",70000,"22b405111b7ab8d006242062f54bcb46"]
[325000,"Core Layer","EPC",null,400000,"3.1.17",250000,"26b405111b7ab8d006242062f54bcb46"]
[600000,"Core Layer","EPC",null,800000,"3.1.18",400000,"2ab405111b7ab8d006242062f54bcb46"]
[400000,"Core Layer","EPC",null,425000,"3.1.19",375000,"2eb405111b7ab8d006242062f54bcb46"]
[500000,"Core Layer","EPC",null,525000,"3.1.20",475000,"22b405111b7ab8d006242062f54bcb47"]
[6250000,"Core Layer","EPC",null,6250000,"3.1.21",6250000,"26b405111b7ab8d006242062f54bcb47"]
[10000000,"Core Layer","EPC",null,10000000,"3.1.22",10000000,"2ab405111b7ab8d006242062f54bcb47"]
[1079973.5,"Core Layer","EPC",null,1409947,"3.1.23",750000,"2eb405111b7ab8d006242062f54bcb47"]
[600000,"Core Layer","EPC",null,650000,"3.1.24",550000,"22b405111b7ab8d006242062f54bcb48"]
[825000,"Core Layer","EPC",null,1000000,"3.1.25",650000,"26b405111b7ab8d006242062f54bcb48"]
[760000,"Core Layer","Cloud Core",null,1200000,"3.2.1",320000,"3ab405111b7ab8d006242062f54bcb48"]
[4910344,"Core Layer","Cloud Core",null,8320688,"3.2.2",1500000,"3eb405111b7ab8d006242062f54bcb48"]
[13190844,"Core Layer","Cloud Core",null,24381688,"3.2.3",2000000,"32b405111b7ab8d006242062f54bcb49"]
[949230,"Core Layer","Cloud Core",null,1049230,"3.2.4",849230,"36b405111b7ab8d006242062f54bcb49"]
[776712.5,"Core Layer","RAN Core / EMS ",null,1103425,"3.3.1",450000,"3ab405111b7ab8d006242062f54bcb49"]
[4910344,"Core Layer","RAN Core / EMS ",null,8320688,"3.3.2",1500000,"3eb405111b7ab8d006242062f54bcb49"]
[15438575,"Core Layer","RAN Core / EMS ",null,15888492,"3.3.3",14988658,"32b405111b7ab8d006242062f54bcb4a"]
[360000,"Core Layer","RAN Core / EMS ",null,470000,"3.3.4",250000,"36b405111b7ab8d006242062f54bcb4a"]
[225000,"Core Layer","RAN Core / EMS ",null,300000,"3.3.5",150000,"3ab405111b7ab8d006242062f54bcb4a"]
[325000,"Core Layer","RAN Core / EMS ",null,500000,"3.3.6",150000,"3eb405111b7ab8d006242062f54bcb4a"]
[1118000,"Core Layer","WDM & OTN – Core Equipment\n(Wavelength Division Multiplexing & Optical Transport Network",null,2100000,"3.4.1",136000,"b2b405111b7ab8d006242062f54bcb4b"]
[17750,"Core Layer","Core Server Hardware",null,18000,"3.5.1",17500,"b6b405111b7ab8d006242062f54bcb4b"]
[19750,"Core Layer","Core Server Hardware",null,20000,"3.5.2",19500,"bab405111b7ab8d006242062f54bcb4b"]
[14000,"Core Layer","Core Server Hardware",null,15000,"3.5.3",13000,"beb405111b7ab8d006242062f54bcb4b"]
[130000,"Core Layer","Core Server Hardware",null,250000,"3.5.4",10000,"b2b405111b7ab8d006242062f54bcb4c"]
[208333.5,"Core Layer","Core Server Hardware",null,391667,"3.5.5",25000,"b6b405111b7ab8d006242062f54bcb4c"]
[{"$f":"(E195+G195)/2","v":587500},"Core Layer","Core Server Hardware",null,783333,"3.5.6",391667,"bab405111b7ab8d006242062f54bcb4c"]
[991666.5,"Core Layer","Core Server Hardware",null,1200000,"3.5.7",783333,"beb405111b7ab8d006242062f54bcb4c"]
[175000,"Core Layer","Core Server Hardware",null,325000,"3.5.8",25000,"b2b405111b7ab8d006242062f54bcb4d"]
[487500,"Core Layer","Core Server Hardware",null,650000,"3.5.9",325000,"b6b405111b7ab8d006242062f54bcb4d"]
[825000,"Core Layer","Core Server Hardware",null,1000000,"3.5.10",650000,"bab405111b7ab8d006242062f54bcb4d"]
[525000,"Core Layer","Operation Support Systems (OSS)",null,550000,"3.6.1",500000,"beb405111b7ab8d006242062f54bcb4d"]
[725000,"Core Layer","Operation Support Systems (OSS)",null,750000,"3.6.2",700000,"76b405111b7ab8d006242062f54bcb4e"]
[225000,"Core Layer","Operation Support Systems (OSS)",null,250000,"3.6.3",200000,"72b405111b7ab8d006242062f54bcb4f"]
[725000,"Core Layer","Operation Support Systems (OSS)",null,750000,"3.6.4",700000,"76b405111b7ab8d006242062f54bcb4f"]
[575000,"Core Layer","Orchestration",null,600000,"3.7.1",550000,"7ab405111b7ab8d006242062f54bcb4f"]
[1250000,"Core Layer","Orchestration",null,1300000,"3.7.2",1200000,"7eb405111b7ab8d006242062f54bcb4f"]
[925000,"Core Layer","Orchestration",null,950000,"3.7.3",900000,"72b405111b7ab8d006242062f54bcb50"]
[192500,"Core Layer","Cloud Computing",null,330000,"3.8.0",55000,"76b405111b7ab8d006242062f54bcb50"]
[115000,"Core Layer","Optical Transmission",null,170000,"3.9.1",60000,"7ab405111b7ab8d006242062f54bcb50"]
[205000,"Core Layer","Optical Transmission",null,240000,"3.9.2",170000,"7eb405111b7ab8d006242062f54bcb50"]
[22500,"Core Layer","Data Transmission",null,26000,"3.10.1",19000,"72b405111b7ab8d006242062f54bcb51"]
[32000,"Core Layer","Data Transmission",null,38000,"3.10.2",26000,"76b405111b7ab8d006242062f54bcb51"]
[5900,"Software","Software",null,7300,"4.1.1",4500,"7ab405111b7ab8d006242062f54bcb51"]
[750000,"Software","Software",null,1000000,"4.1.2",500000,"7eb405111b7ab8d006242062f54bcb51"]
[1125000,"Software","Software",null,1300000,"4.1.3",950000,"72b405111b7ab8d006242062f54bcb52"]
[107500,"Software","Software",null,115000,"4.1.4",100000,"76b405111b7ab8d006242062f54bcb52"]
[53500,"Software","Software",null,105000,"4.1.5",2000,"7ab405111b7ab8d006242062f54bcb52"]
[725000,"Software","Software",null,1000000,"4.1.6",450000,"7eb405111b7ab8d006242062f54bcb52"]
[345000,"Software","Software",null,540000,"4.1.7",150000,"72b405111b7ab8d006242062f54bcb53"]
[300000,"Software","Software",null,500000,"4.1.8",100000,"76b405111b7ab8d006242062f54bcb53"]
[7991.5,"Software","Software",null,9133,"4.1.9",6850,"7ab405111b7ab8d006242062f54bcb53"]
[0.53,"Software","Licenses",null,1.04,"4.2.1",0.02,"7eb405111b7ab8d006242062f54bcb53"]
[2.415,"Software","Licenses",null,4.74,"4.2.2",0.09,"72b405111b7ab8d006242062f54bcb54"]
[2.9350000000000001,"Software","Licenses",null,5.76,"4.2.3",0.11,"76b405111b7ab8d006242062f54bcb54"]
[0.64500000000000002,"Software","Licenses",null,1.18,"4.2.4",0.11,"32b405111b7ab8d006242062f54bcb61"]
[3.37,"Software","Licenses",null,6.62,"4.2.5",0.12,"36b405111b7ab8d006242062f54bcb61"]
[3.0900000000000003,"Software","Licenses",null,6.07,"4.2.6",0.11,"3ab405111b7ab8d006242062f54bcb61"]
[0.88,"Software","Licenses",null,1.73,"4.2.7",0.03,"3eb405111b7ab8d006242062f54bcb61"]
[4.0949999999999998,"Software","Licenses",null,8.0399999999999991,"4.2.8",0.15,"32b405111b7ab8d006242062f54bcb62"]
[3.6349999999999998,"Software","Licenses",null,7.14,"4.2.9",0.13,"36b405111b7ab8d006242062f54bcb62"]
[5500,"Software","Licenses",null,10000,"4.2.10",1000,"3ab405111b7ab8d006242062f54bcb62"]
[5500,"Software","Licenses",null,10000,"4.2.11",1000,"3eb405111b7ab8d006242062f54bcb62"]
[5500,"Software","Licenses",null,10000,"4.2.12",1000,"32b405111b7ab8d006242062f54bcb63"]
[11000,"Software","Licenses",null,20000,"4.2.13",2000,"36b405111b7ab8d006242062f54bcb63"]
[11000,"Software","Licenses",null,20000,"4.2.14",2000,"3ab405111b7ab8d006242062f54bcb63"]
[2550,"Software","Licenses",null,5000,"4.2.15",100,"3eb405111b7ab8d006242062f54bcb63"]
[925,"Services","Preplanning",null,1000,"5.1.1",850,"32b405111b7ab8d006242062f54bcb64"]
[4325,"Services","Preplanning",null,5500,"5.1.2",3150,"36b405111b7ab8d006242062f54bcb64"]
[1497.085,"Services","Preplanning",null,2744.17,"5.1.3",250,"3ab405111b7ab8d006242062f54bcb64"]
[5750,"Services","Preplanning",null,7500,"5.1.4",4000,"3eb405111b7ab8d006242062f54bcb64"]
[3250,"Services","Preplanning",null,5000,"5.1.5",1500,"32b405111b7ab8d006242062f54bcb65"]
[16450,"Services","Site Acquisition ",null,30000,"5.2.1",2900,"36b405111b7ab8d006242062f54bcb65"]
[1491.5650000000001,"Services","Site Surveys",null,2058.13,"5.3.1",925,"3ab405111b7ab8d006242062f54bcb65"]
[7500,"Services","Site Surveys",null,10000,"5.3.2",5000,"3eb405111b7ab8d006242062f54bcb65"]
[1750,"Services","Site Surveys",null,2000,"5.3.3",1500,"32b405111b7ab8d006242062f54bcb66"]
[12972.5,"Services","Site Surveys",null,25000,"5.3.4",945,"36b405111b7ab8d006242062f54bcb66"]
[3682.165,"Services","RF Engineering",null,5333.33,"5.4.1",2031,"3ab405111b7ab8d006242062f54bcb66"]
[1459.62,"Services","RF Engineering",null,1700,"5.4.2",1219.24,"3eb405111b7ab8d006242062f54bcb66"]
[4319.1000000000004,"Services","RF Engineering",null,5053,"5.4.3",3585.2,"32b405111b7ab8d006242062f54bcb67"]
[109961.5,"Services","RF Engineering",null,140000,"5.4.4",79923,"36b405111b7ab8d006242062f54bcb67"]
[22500,"Services","RF Engineering",null,30000,"5.4.5",15000,"3ab405111b7ab8d006242062f54bcb67"]
[48855.264999999999,"Services","Interim Facility Requirement",null,60000,"5.5.1",37710.53,"3eb405111b7ab8d006242062f54bcb67"]
[1500,"Services","Leasing",null,2000,"5.6.1",1000,"32b405111b7ab8d006242062f54bcb68"]
[636.625,"Services","Leasing",null,823.25,"5.6.2",450,"36b405111b7ab8d006242062f54bcb68"]
[343,"Services","Leasing",null,450,"5.6.3",236,"3ab405111b7ab8d006242062f54bcb68"]
[762.5,"Services","Leasing",null,1125,"5.6.4",400,"3eb405111b7ab8d006242062f54bcb68"]
[1700,"Services","Leasing",null,2150,"5.6.5",1250,"32b405111b7ab8d006242062f54bcb69"]
[639.63499999999999,"Services","Leasing",null,800,"5.6.6",479.27,"36b405111b7ab8d006242062f54bcb69"]
[10380,"Services","Project Management",null,12975,"5.7.1",7785,"3ab405111b7ab8d006242062f54bcb69"]
[{"$f":"(E259+G259)/2","v":1250},"Services","Project Management",null,2000,"5.7.2",500,"3eb405111b7ab8d006242062f54bcb69"]
[38925,"Services","Project Management",null,51900,"5.7.3",25950,"32b405111b7ab8d006242062f54bcb6a"]
[23808,"Services","Project Management",null,25950,"5.7.4",21666,"36b405111b7ab8d006242062f54bcb6a"]
[16002.5,"Services","Project Management",null,17300,"5.7.5",14705,"3ab405111b7ab8d006242062f54bcb6a"]
[10000,"Services","Project Management",null,15000,"5.7.6",5000,"3eb405111b7ab8d006242062f54bcb6a"]
[7250,"Services","Project Management",null,11000,"5.7.7",3500,"32b405111b7ab8d006242062f54bcb6b"]
[3500,"Services","Project Management",null,4000,"5.7.8",3000,"36b405111b7ab8d006242062f54bcb6b"]
[4500,"Services","Spectrum Planning and Management",null,5000,"5.8.1",4000,"3ab405111b7ab8d006242062f54bcb6b"]
[2000,"Services","Spectrum Planning and Management",null,2500,"5.8.2",1500,"3eb405111b7ab8d006242062f54bcb6b"]
[1500,"Services","Spectrum Planning and Management",null,2000,"5.8.3",1000,"32b405111b7ab8d006242062f54bcb6c"]
[1187.5,"Services","Training",null,1625,"5.9.1",750,"36b405111b7ab8d006242062f54bcb6c"]
[9500,"Services","Training",null,12000,"5.9.2",7000,"3ab405111b7ab8d006242062f54bcb6c"]
[25100,"Services","Training",null,32900,"5.9.3",17300,"3eb405111b7ab8d006242062f54bcb6c"]
[14367,"Services","Training",null,15704,"5.9.4",13030,"32b405111b7ab8d006242062f54bcb6d"]
[12500,"Services","Training",null,15000,"5.9.5",10000,"36b405111b7ab8d006242062f54bcb6d"]
[75000,"Services","Resident Engineer/Staff",null,100000,"5.10.1",50000,"3ab405111b7ab8d006242062f54bcb6d"]
[124800,"Services","Resident Engineer/Staff",null,156000,"5.10.2",93600,"3eb405111b7ab8d006242062f54bcb6d"]
[4301.5,"Services","VoLTE voice coordination with providers",null,4928,"5.11.1",3675,"32b405111b7ab8d006242062f54bcb6e"]
[3405.5699999999997,"Services","Structural Engineering / Tower studies",null,4550,"5.12.1",2261.14,"36b405111b7ab8d006242062f54bcb6e"]
[4625,"Services","Structural Engineering / Tower studies",null,8000,"5.12.2",1250,"3ab405111b7ab8d006242062f54bcb6e"]
[12402.445,"Services","Structural Engineering / Tower studies",null,13720.86,"5.12.3",11084.03,"3eb405111b7ab8d006242062f54bcb6e"]
[1250,"Services","Structural Engineering / Tower studies",null,1500,"5.12.4",1000,"32b405111b7ab8d006242062f54bcb6f"]
[4444.38,"Services","Negotiating with tower owners",null,5200,"5.13.1",3688.76,"36b405111b7ab8d006242062f54bcb6f"]
[3820.34,"Services","Negotiating with tower owners",null,4390.68,"5.13.2",3250,"3ab405111b7ab8d006242062f54bcb6f"]
[3969.7550000000001,"Services","Negotiating with tower owners",null,4939.51,"5.13.3",3000,"3eb405111b7ab8d006242062f54bcb6f"]
[4500,"Services","Negotiating with tower owners",null,5000,"5.13.4",4000,"32b405111b7ab8d006242062f54bcb70"]
[612.30999999999995,"Services","Network Engineering Services",null,840,"5.14.1",384.62,"36b405111b7ab8d006242062f54bcb70"]
[1900,"Services","Network Engineering Services",null,3200,"5.14.2",600,"3ab405111b7ab8d006242062f54bcb70"]
[375,"Services","Network Engineering Services",null,500,"5.14.3",250,"3eb405111b7ab8d006242062f54bcb70"]
[27500,"Services","Network Engineering Services",null,50000,"5.14.4",5000,"32b405111b7ab8d006242062f54bcb71"]
[625,"Services","Network Engineering Services",null,1000,"5.14.5",250,"36b405111b7ab8d006242062f54bcb71"]
[450,"Services","Network Engineering Services",null,650,"5.14.6",250,"3ab405111b7ab8d006242062f54bcb71"]
[2500,"Services","Network Engineering Services",null,2500,"5.14.7",2500,"3eb405111b7ab8d006242062f54bcb71"]
[1250,"Services","Network Engineering Services",null,1500,"5.14.8",1000,"32b405111b7ab8d006242062f54bcb72"]
[300,"Services","Network Engineering Services",null,500,"5.14.9",100,"36b405111b7ab8d006242062f54bcb72"]
[300,"Services","Network Engineering Services",null,500,"5.14.10",100,"3ab405111b7ab8d006242062f54bcb72"]
[2425,"Services","Tower/Water Tower/Barn/Rooftop Preparation",null,3000,"5.15.1",1850,"beb405111b7ab8d006242062f54bcb72"]
[3475,"Services","Tower/Water Tower/Barn/Rooftop Preparation",null,3700,"5.15.2",3250,"36b405111b7ab8d006242062f54bcb73"]
[600,"Services","Tower/Water Tower/Barn/Rooftop Preparation",null,700,"5.15.3",500,"bab405111b7ab8d006242062f54bcb73"]
[2850,"Services","Tower/Water Tower/Barn/Rooftop Preparation",null,3200,"5.15.4",2500,"32b405111b7ab8d006242062f54bcb74"]
[6250,"Services","Tower/Water Tower/Barn/Rooftop Preparation",null,6850,"5.15.5",5650,"b6b405111b7ab8d006242062f54bcb74"]
[2250,"Services","Tower/Water Tower/Barn/Rooftop Preparation",null,3500,"5.15.6",1000,"3eb405111b7ab8d006242062f54bcb74"]
[4250,"Services","Tower/Water Tower/Barn/Rooftop Preparation",null,4650,"5.15.7",3850,"76b405111b7ab8d006242062f54bcb75"]
[4650,"Services","Tower/Water Tower/Barn/Rooftop Preparation",null,5100,"5.15.8",4200,"f2b405111b7ab8d006242062f54bcb76"]
[4412.1750000000002,"Services","Tower/Water Tower/Barn/Rooftop Preparation",null,7625,"5.15.9",1199.3499999999999,"7ab405111b7ab8d006242062f54bcb76"]
[3211.8249999999998,"Services","Tower/Water Tower/Barn/Rooftop Preparation",null,4423.6499999999996,"5.15.10",2000,"feb405111b7ab8d006242062f54bcb76"]
[783.33500000000004,"Services","Tower/Water Tower/Barn/Rooftop Preparation",null,916.67,"5.15.11",650,"76b405111b7ab8d006242062f54bcb77"]
[6711.13,"Services","Tower/Water Tower/Barn/Rooftop Preparation",null,8572.26,"5.15.12",4850,"fab405111b7ab8d006242062f54bcb77"]
[5005.5450000000001,"Services","Tower/Water Tower/Barn/Rooftop Preparation",null,5898.45,"5.15.13",4112.6400000000003,"72b405111b7ab8d006242062f54bcb78"]
[7159.335,"Services","Tower/Water Tower/Barn/Rooftop Preparation",null,8572,"5.15.14",5746.67,"f6b405111b7ab8d006242062f54bcb78"]
[632.81500000000005,"Services","Tower/Water Tower/Barn/Rooftop Preparation",null,875,"5.15.15",390.63,"7eb405111b7ab8d006242062f54bcb78"]
[2969.125,"Services","Tower/Water Tower/Barn/Rooftop Preparation",null,5157,"5.15.16",781.25,"f2b405111b7ab8d006242062f54bcb79"]
[1419.6399999999999,"Services","Tower/Water Tower/Barn/Rooftop Preparation",null,1586.95,"5.15.17",1252.33,"7ab405111b7ab8d006242062f54bcb79"]
[2112.5,"Services","Tower/Water Tower/Barn/Rooftop Preparation",null,2975,"5.15.18",1250,"feb405111b7ab8d006242062f54bcb79"]
[10445.195,"Services","Antenna/Radio R&R - Tower up to 200', not water tank",null,13240.39,"5.16.1",7650,"76b405111b7ab8d006242062f54bcb7a"]
[17485.71,"Services","Antenna/Radio R&R - Tower up to 200', not water tank",null,23293.97,"5.16.2",11677.45,"fab405111b7ab8d006242062f54bcb7a"]
[13150.56,"Services","Antenna/Radio R&R - Tower up to 200', not water tank",null,19301.12,"5.16.3",7000,"72b405111b7ab8d006242062f54bcb7b"]
[16494.195,"Services","Antenna/Radio R&R - Tower up to 200', not water tank",null,21888.39,"5.16.4",11100,"f6b405111b7ab8d006242062f54bcb7b"]
[23231.629999999997,"Services","Antenna/Radio R&R - Tower up to 200', not water tank",null,28776.09,"5.16.5",17687.169999999998,"7eb405111b7ab8d006242062f54bcb7b"]
[25875,"Services","Antenna/Radio R&R - Tower up to 200', not water tank",null,32250,"5.16.6",19500,"f2b405111b7ab8d006242062f54bcb7c"]
[39407.479999999996,"Services","Antenna/Radio R&R - Tower up to 200', not water tank",null,49602.02,"5.16.7",29212.94,"7ab405111b7ab8d006242062f54bcb7c"]
[43474.514999999999,"Services","Antenna/Radio R&R - Tower up to 200', not water tank",null,48747.17,"5.16.8",38201.86,"feb405111b7ab8d006242062f54bcb7c"]
[7939.5149999999994,"Services","Antenna/Radio R&R - Non-penetrating Roof Mounted",null,9073.73,"5.17.1",6805.3,"76b405111b7ab8d006242062f54bcb7d"]
[14548.895,"Services","Antenna/Radio R&R - Non-penetrating Roof Mounted",null,16627.310000000001,"5.17.2",12470.48,"fab405111b7ab8d006242062f54bcb7d"]
[{"$f":"(E323+G323)/2","v":11055.15},"Services","Antenna/Radio R&R - Non-penetrating Roof Mounted",null,12634.46,"5.17.3",9475.84,"72b405111b7ab8d006242062f54bcb7e"]
[15506.514999999999,"Services","Antenna/Radio R&R - Non-penetrating Roof Mounted",null,17721.73,"5.17.4",13291.3,"f6b405111b7ab8d006242062f54bcb7e"]
[19345.744999999999,"Services","Antenna/Radio R&R - Non-penetrating Roof Mounted",null,22109.42,"5.17.5",16582.07,"7eb405111b7ab8d006242062f54bcb7e"]
[21074.215,"Services","Antenna/Radio R&R - Non-penetrating Roof Mounted",null,24084.82,"5.17.6",18063.61,"f2b405111b7ab8d006242062f54bcb7f"]
[37568.43,"Services","Antenna/Radio R&R - Non-penetrating Roof Mounted",null,42935.35,"5.17.7",32201.51,"7ab405111b7ab8d006242062f54bcb7f"]
[1219.405,"Services","Shelter Cable Entry Port Additions",null,2032.56,"5.18.1",406.25,"7eb405111b7ab8d006242062f54bcb7f"]
[375.98500000000001,"Services","Ground Buss Bars",null,520.72,"5.19.1",231.25,"72b405111b7ab8d006242062f54bcb80"]
[3129.52,"Services","Tower Modifications",null,5159.04,"5.20.1",1100,"76b405111b7ab8d006242062f54bcb80"]
[8186.2350000000006,"Services","Tower Modifications",null,9514.2800000000007,"5.20.2",6858.19,"7ab405111b7ab8d006242062f54bcb80"]
[85362.955000000002,"Services","Tower Modifications",null,130999.37,"5.20.3",39726.54,"7eb405111b7ab8d006242062f54bcb80"]
[184351.935,"Services","Tower Modifications",null,282909.46000000002,"5.20.4",85794.41,"72b405111b7ab8d006242062f54bcb81"]
[19054.5,"Services","Tower Modifications",null,25000,"5.20.5",13109,"76b405111b7ab8d006242062f54bcb81"]
[5500,"Services","Tower Modifications",null,10000,"5.20.6",1000,"7ab405111b7ab8d006242062f54bcb81"]
[21577,"Services","Tower Modifications",null,29000,"5.20.7",14154,"7eb405111b7ab8d006242062f54bcb81"]
[76857.024999999994,"Services","Tower Modifications",null,117651.05,"5.20.8",36063,"72b405111b7ab8d006242062f54bcb82"]
[29416,"Services","Tower Modifications",null,42500,"5.20.9",16332,"76b405111b7ab8d006242062f54bcb82"]
[63257.49,"Services","Tower Modifications",null,93514.98,"5.20.10",33000,"7ab405111b7ab8d006242062f54bcb82"]
[55000,"Services","Tower Modifications",null,100000,"5.20.11",10000,"7eb405111b7ab8d006242062f54bcb82"]
[175000,"Services","Tower Modifications",null,250000,"5.20.12",100000,"72b405111b7ab8d006242062f54bcb83"]
[7719.9949999999999,"Services","Tower Modifications",null,14789.99,"5.20.13",650,"76b405111b7ab8d006242062f54bcb83"]
[17071.43,"Services","Tower Modifications",null,32357.15,"5.20.14",1785.71,"7ab405111b7ab8d006242062f54bcb83"]
[44361.864999999998,"Services","Tower Modifications",null,65391.43,"5.20.15",23332.3,"7eb405111b7ab8d006242062f54bcb83"]
[6500,"Services","Site Work",null,10000,"5.21.0",3000,"72b405111b7ab8d006242062f54bcb84"]
[1560.595,"Services","Site Work",null,2150,"5.21.1",971.19,"76b405111b7ab8d006242062f54bcb84"]
[18256.895,"Services","Site Work",null,27721.79,"5.21.2",8792,"7ab405111b7ab8d006242062f54bcb84"]
[6500,"Services","Site Work",null,7000,"5.21.3",6000,"7eb405111b7ab8d006242062f54bcb84"]
[1950,"Services","Site Work",null,2150,"5.21.4",1750,"72b405111b7ab8d006242062f54bcb85"]
[2237.23,"Services","Site Work",null,2750,"5.21.5",1724.46,"76b405111b7ab8d006242062f54bcb85"]
[16750,"Services","Site Work",null,18350,"5.21.6",15150,"7ab405111b7ab8d006242062f54bcb85"]
[1600,"Services","Site Work",null,1750,"5.21.7",1450,"7eb405111b7ab8d006242062f54bcb85"]
[5565,"Services","Site Work",null,6450,"5.21.8",4680,"72b405111b7ab8d006242062f54bcb86"]
[5967.9850000000006,"Services","Site Work",null,8252.0300000000007,"5.21.9",3683.94,"76b405111b7ab8d006242062f54bcb86"]
[2896.73,"Services","Site Work",null,3893.46,"5.21.10",1900,"7ab405111b7ab8d006242062f54bcb86"]
[3059,"Services","Site Work",null,3322,"5.21.11",2796,"7eb405111b7ab8d006242062f54bcb86"]
[1222.7349999999999,"Services","Site Work",null,2075.4699999999998,"5.21.12",370,"72b405111b7ab8d006242062f54bcb87"]
[5835,"Services","Site Work",null,8042,"5.21.13",3628,"76b405111b7ab8d006242062f54bcb87"]
[31100,"Services","Site Work",null,33600,"5.21.14",28600,"7ab405111b7ab8d006242062f54bcb87"]
[625,"Services","Site Work",null,700,"5.21.15",550,"7eb405111b7ab8d006242062f54bcb87"]
[3760.5,"Services","Site Work",null,4084,"5.21.16",3437,"72b405111b7ab8d006242062f54bcb88"]
[18900,"Services","Site Work",null,20700,"5.21.17",17100,"76b405111b7ab8d006242062f54bcb88"]
[49250,"Services","Site Work",null,75000,"5.21.18",23500,"7ab405111b7ab8d006242062f54bcb88"]
[12900,"Services","Site Work",null,25000,"5.21.19",800,"7eb405111b7ab8d006242062f54bcb88"]
[6500,"Services","Site Work",null,7000,"5.21.20",6000,"72b405111b7ab8d006242062f54bcb89"]
[17500,"Services","Site Work",null,20000,"5.21.21",15000,"76b405111b7ab8d006242062f54bcb89"]
[112500,"Services","Site Work",null,162500,"5.21.22",62500,"7ab405111b7ab8d006242062f54bcb89"]
[256250,"Services","Site Work",null,325000,"5.21.23",187500,"7eb405111b7ab8d006242062f54bcb89"]
[2207.7550000000001,"Services","Site Work",null,2630.51,"5.21.24",1785,"72b405111b7ab8d006242062f54bcb8a"]
[2000,"Services","Site Work",null,2500,"5.21.25",1500,"76b405111b7ab8d006242062f54bcb8a"]
[1500,"Services","Site Work",null,2000,"5.21.26",1000,"7ab405111b7ab8d006242062f54bcb8a"]
[5032.125,"Services","Cable Sweep & PIM Testing",null,9014.25,"5.22.1",1050,"7eb405111b7ab8d006242062f54bcb8a"]
[4200,"Services","Cable Sweep & PIM Testing",null,5450,"5.22.2",2950,"72b405111b7ab8d006242062f54bcb8b"]
[5375,"Services","Cable Sweep & PIM Testing",null,6250,"5.22.3",4500,"76b405111b7ab8d006242062f54bcb8b"]
[535.5,"Services","Cable Sweep & PIM Testing",null,900,"5.22.4",171,"7ab405111b7ab8d006242062f54bcb8b"]
[1750,"Services","Connectivity Upgrades or Extensions",null,2500,"5.23.1",1000,"7eb405111b7ab8d006242062f54bcb8b"]
[3900,"Services","Tower/Installation Crews",null,6000,"5.24.1",1800,"72b405111b7ab8d006242062f54bcb8c"]
[2835,"Services","Tower/Installation Crews",null,4050,"5.24.2",1620,"76b405111b7ab8d006242062f54bcb8c"]
[5077.25,"Services","Tower/Installation Crews",null,7967.5,"5.24.3",2187,"7ab405111b7ab8d006242062f54bcb8c"]
[6467.3050000000003,"Services","Tower/Installation Crews",null,8571,"5.24.4",4363.6099999999997,"7eb405111b7ab8d006242062f54bcb8c"]
[14285.5,"Services","Tower/Installation Crews",null,17142,"5.24.5",11429,"72b405111b7ab8d006242062f54bcb8d"]
[989.31500000000005,"Services","Tower/Installation Crews",null,1105.9100000000001,"5.24.6",872.72,"76b405111b7ab8d006242062f54bcb8d"]
[989.31500000000005,"Services","Tower/Installation Crews",null,1105.9100000000001,"5.24.7",872.72,"7ab405111b7ab8d006242062f54bcb8d"]
[3957.2699999999995,"Services","Tower/Installation Crews",null,4423.6499999999996,"5.24.8",3490.89,"7eb405111b7ab8d006242062f54bcb8d"]
[7914.5349999999999,"Services","Tower/Installation Crews",null,8847.2999999999993,"5.24.9",6981.77,"72b405111b7ab8d006242062f54bcb8e"]
[3229.0699999999997,"Services","Tower/Installation Crews",null,4887.24,"5.24.10",1570.9,"76b405111b7ab8d006242062f54bcb8e"]
[{"$f":"(E387+G387)/2","v":3229.0699999999997},"Services","Tower/Installation Crews",null,4887.24,"5.24.11",1570.9,"7ab405111b7ab8d006242062f54bcb8e"]
[6977.41,"Services","Tower/Installation Crews",null,8063.95,"5.24.12",5890.87,"7eb405111b7ab8d006242062f54bcb8e"]
[2625,"Services","Tower/Installation Crews",null,3000,"5.24.13",2250,"72b405111b7ab8d006242062f54bcb8f"]
[4083.335,"Services","Tower/Installation Crews",null,4666.67,"5.24.14",3500,"76b405111b7ab8d006242062f54bcb8f"]
[2546.5,"Services","Tower/Installation Crews",null,3000,"5.24.15",2093,"7ab405111b7ab8d006242062f54bcb8f"]
[21717.424999999999,"Services","Tower/Installation Crews",null,26742.85,"5.24.16",16692,"7eb405111b7ab8d006242062f54bcb8f"]
[22000,"Services","Helicopter Lift\n(e.g., for a rooftop tower, complex tower, tall structure, or terrain constrained location requiring helicopter lift)",null,30000,"5.25.1",14000,"f2b405111b7ab8d006242062f54bcb90"]
[56000,"Services","Helicopter Lift\n(e.g., for a rooftop tower, complex tower, tall structure, or terrain constrained location requiring helicopter lift)",null,76000,"5.25.2",36000,"7ab405111b7ab8d006242062f54bcb90"]
[34500,"Services","Helicopter Lift\n(e.g., for a rooftop tower, complex tower, tall structure, or terrain constrained location requiring helicopter lift)",null,54000,"5.25.3",15000,"feb405111b7ab8d006242062f54bcb90"]
[15950,"Services","Equipment Rental",null,30450,"5.26.1",1450,"f2b405111b7ab8d006242062f54bcb91"]
[1093.75,"Services","Equipment Rental",null,1250,"5.26.2",937.5,"f6b405111b7ab8d006242062f54bcb91"]
[1377.2349999999999,"Services","Equipment Rental",null,2359.4699999999998,"5.26.3",395,"fab405111b7ab8d006242062f54bcb91"]
[4196.7700000000004,"Services","Equipment Rental",null,7524.54,"5.26.4",869,"feb405111b7ab8d006242062f54bcb91"]
[6305,"Services","Equipment Rental",null,10833,"5.26.5",1777,"f2b405111b7ab8d006242062f54bcb92"]
[20086.28,"Services","Equipment Rental",null,32447.07,"5.26.6",7725.49,"bab405111b7ab8d006242062f54bcb92"]
[5000,"Services","Equipment Rental",null,7500,"5.26.7",2500,"b6b405111b7ab8d006242062f54bcb93"]
[1000,"Services","Equipment Rental",null,1500,"5.26.8",500,"bab405111b7ab8d006242062f54bcb93"]
[6250,"Services","Equipment Rental",null,10000,"5.26.9",2500,"beb405111b7ab8d006242062f54bcb93"]
[1250,"Services","Equipment Rental",null,2000,"5.26.10",500,"b2b405111b7ab8d006242062f54bcb94"]
[1250,"Services","Equipment Rental",null,2000,"5.26.11",500,"b6b405111b7ab8d006242062f54bcb94"]
[737446.5,"Services","Virtual/Cloud Core Deployment",null,1324893,"5.28.1",150000,"bab405111b7ab8d006242062f54bcb94"]
[1588571.5,"Services","Virtual/Cloud Core Deployment",null,1852250,"5.28.2",1324893,"beb405111b7ab8d006242062f54bcb94"]
[2126709,"Services","Virtual/Cloud Core Deployment",null,2401168,"5.28.3",1852250,"b2b405111b7ab8d006242062f54bcb95"]
[998615,"Services","Virtual/Cloud Core Deployment",null,1497230,"5.28.4",500000,"b6b405111b7ab8d006242062f54bcb95"]
[1839815,"Services","Virtual/Cloud Core Deployment",null,2354630,"5.28.5",1325000,"bab405111b7ab8d006242062f54bcb95"]
[2575000,"Services","Virtual/Cloud Core Deployment",null,3000000,"5.28.6",2150000,"beb405111b7ab8d006242062f54bcb95"]
[187500,"Services","GPON/XGS (FTTH) Deployments",null,300000,"5.29.1",75000,"b2b405111b7ab8d006242062f54bcb96"]
[10025000,"Services","GPON/XGS (FTTH) Deployments",null,20000000,"5.29.2",50000,"b6b405111b7ab8d006242062f54bcb96"]
[10025000,"Services","GPON/XGS (FTTH) Deployments",null,20000000,"5.29.3",50000,"bab405111b7ab8d006242062f54bcb96"]
[5007500,"Services","GPON/XGS (FTTH) Deployments",null,10000000,"5.29.4",15000,"beb405111b7ab8d006242062f54bcb96"]
[55000,"Services","GPON/XGS (FTTH) Deployments",null,100000,"5.29.5",10000,"83b405111b7ab8d006242062f54bcb97"]
[475000,"Services","GPON/XGS (FTTH) Deployments",null,750000,"5.29.6",200000,"87b405111b7ab8d006242062f54bcb97"]
[2000,"Services","Location (Facility) Upgrades for New Equipment",null,2500,"5.30.1",1500,"0fb405111b7ab8d006242062f54bcb97"]
[2000,"Services","Location (Facility) Upgrades for New Equipment",null,2500,"5.30.2",1500,"83b405111b7ab8d006242062f54bcb98"]
[1500,"Services","Location (Facility) Upgrades for New Equipment",null,2000,"5.30.3",1000,"0bb405111b7ab8d006242062f54bcb98"]
[1500,"Services","Location (Facility) Upgrades for New Equipment",null,2000,"5.30.4",1000,"8fb405111b7ab8d006242062f54bcb98"]
[6634,"Services","Field Engineering",null,6634,"5.31.1",6634,"83b405111b7ab8d006242062f54bcb99"]
[19049,"Services","Field Engineering",null,19049,"5.31.2",19049,"87b405111b7ab8d006242062f54bcb99"]
[12536,"Services","Field Engineering",null,12536,"5.31.3",12536,"8bb405111b7ab8d006242062f54bcb99"]
[4593,"Services","Off-site Integration & Staging",null,6051,"5.32.1",3135,"8fb405111b7ab8d006242062f54bcb99"]
[4173.5,"Services","Off-site Integration & Staging",null,4683,"5.32.2",3664,"83b405111b7ab8d006242062f54bcb9a"]
[5275,"Services","Off-site Integration & Staging",null,5283,"5.32.3",5267,"87b405111b7ab8d006242062f54bcb9a"]
[19051.5,"Services","Lab Testing - Interoperability Testing and Compliance for New Equipment ",null,22862,"5.33.1",15241,"0fb405111b7ab8d006242062f54bcb9a"]
[208000,"Services","Lab Testing - Interoperability Testing and Compliance for New Equipment ",null,336000,"5.33.2",80000,"83b405111b7ab8d006242062f54bcb9b"]
[208000,"Services","Lab Testing - Interoperability Testing and Compliance for New Equipment ",null,336000,"5.33.3",80000,"0bb405111b7ab8d006242062f54bcb9b"]
[1500,"Services","Lab Testing - Interoperability Testing and Compliance for New Equipment ",null,2000,"5.33.4",1000,"8fb405111b7ab8d006242062f54bcb9b"]
[1425,"Services","National Environmental Policy Act (NEPA) & National Historic Preservation Act (NHPA)",null,1550,"5.34.0",1300,"07b405111b7ab8d006242062f54bcb9c"]
[2000,"Services","National Environmental Policy Act (NEPA) & National Historic Preservation Act (NHPA)",null,2500,"5.34.1",1500,"8bb405111b7ab8d006242062f54bcb9c"]
[1250,"Services","National Environmental Policy Act (NEPA) & National Historic Preservation Act (NHPA)",null,1500,"5.34.2",1000,"03b405111b7ab8d006242062f54bcb9d"]
[1100,"Services","National Environmental Policy Act (NEPA) & National Historic Preservation Act (NHPA)",null,1200,"5.34.3",1000,"87b405111b7ab8d006242062f54bcb9d"]
[4500,"Services","Attorney",null,6000,"5.35.1",3000,"8bb405111b7ab8d006242062f54bcb9d"]
[1000,"Services","Attorney",null,1500,"5.35.2",500,"8fb405111b7ab8d006242062f54bcb9d"]
[3250,"Services","Attorney",null,4000,"5.35.3",2500,"83b405111b7ab8d006242062f54bcb9e"]
[1750,"Services","Attorney",null,2000,"5.35.4",1500,"87b405111b7ab8d006242062f54bcb9e"]
[2250,"Services","Attorney",null,3000,"5.35.5",1500,"8bb405111b7ab8d006242062f54bcb9e"]
[3000,"Services","Attorney",null,4000,"5.35.6",2000,"8fb405111b7ab8d006242062f54bcb9e"]
[1500,"Services","Attorney",null,2000,"5.35.7",1000,"83b405111b7ab8d006242062f54bcb9f"]
[1500,"Services","Attorney",null,2000,"5.35.8",1000,"87b405111b7ab8d006242062f54bcb9f"]
[1500,"Services","Attorney",null,2000,"5.35.9",1000,"8bb405111b7ab8d006242062f54bcb9f"]
[661.625,"Services","Legal Fees Zoning/Permitting issues",null,823.25,"5.36.1",500,"8fb405111b7ab8d006242062f54bcb9f"]
[2303.48,"Services","Legal Fees Zoning/Permitting issues",null,2606.96,"5.36.2",2000,"83b405111b7ab8d006242062f54bcba0"]
[2340.69,"Services","Legal Fees Zoning/Permitting issues",null,2881.38,"5.36.3",1800,"87b405111b7ab8d006242062f54bcba0"]
[1275,"Services","Legal Fees Zoning/Permitting issues",null,1400,"5.36.4",1150,"8bb405111b7ab8d006242062f54bcba0"]
[5091.8050000000003,"Services","Legal Fees Zoning/Permitting issues",null,5750,"5.36.5",4433.6099999999997,"8fb405111b7ab8d006242062f54bcba0"]
[{"$f":"(E451+G451)/2","v":1490.04},"Services","Legal Fees Zoning/Permitting issues",null,1650,"5.36.6",1330.08,"83b405111b7ab8d006242062f54bcba1"]
[782.52,"Services","Legal Fees Zoning/Permitting issues",null,900,"5.36.7",665.04,"87b405111b7ab8d006242062f54bcba1"]
[1750,"Services","Legal Fees Zoning/Permitting issues",null,2000,"5.36.8",1500,"8bb405111b7ab8d006242062f54bcba1"]
[3875,"Services","Legal Fees Zoning/Permitting issues",null,4250,"5.36.9",3500,"8fb405111b7ab8d006242062f54bcba1"]
[3232.5450000000001,"Services","Legal Fees Zoning/Permitting issues",null,4665.09,"5.36.10",1800,"83b405111b7ab8d006242062f54bcba2"]
[466.33,"Services","Legal Fees Zoning/Permitting issues",null,515.9,"5.36.11",416.76,"87b405111b7ab8d006242062f54bcba2"]
[1500,"Services","Legal Fees Zoning/Permitting issues",null,1650,"5.36.12",1350,"8bb405111b7ab8d006242062f54bcba2"]
[1500,"Services","Legal Fees Zoning/Permitting issues",null,2000,"5.36.13",1000,"8fb405111b7ab8d006242062f54bcba2"]
[750,"Services","Legal Fees Zoning/Permitting issues - Microwave",null,1000,"5.37.1",500,"07b405111b7ab8d006242062f54bcba3"]
[750,"Services","Legal Fees Zoning/Permitting issues - Microwave",null,1000,"5.37.2",500,"8bb405111b7ab8d006242062f54bcba3"]
[2500,"Services","Legal Fees Zoning/Permitting issues - Microwave",null,3000,"5.37.3",2000,"03b405111b7ab8d006242062f54bcba4"]
[3500,"Services","Legal Fees Zoning/Permitting issues - Microwave",null,4000,"5.37.4",3000,"87b405111b7ab8d006242062f54bcba4"]
[2500,"Services","Legal Fees Zoning/Permitting issues - Microwave",null,3000,"5.37.5",2000,"0fb405111b7ab8d006242062f54bcba4"]
[1500,"Services","Legal Fees Zoning/Permitting issues - Microwave",null,2000,"5.37.6",1000,"83b405111b7ab8d006242062f54bcba5"]
[1500,"Services","Legal Fees Zoning/Permitting issues - Microwave",null,2000,"5.37.7",1000,"0bb405111b7ab8d006242062f54bcba5"]
[3496,"Services","Disposal costs/Logistics",null,5000,"5.38.1",1992,"0fb405111b7ab8d006242062f54bcba5"]
[6147.36,"Services","Disposal costs/Logistics",null,9169.7199999999993,"5.38.2",3125,"03b405111b7ab8d006242062f54bcba6"]
[13437.264999999999,"Services","Disposal costs/Logistics",null,21249.53,"5.38.3",5625,"07b405111b7ab8d006242062f54bcba6"]
[531.72500000000002,"Services","Disposal costs/Logistics",null,625,"5.38.4",438.45,"0bb405111b7ab8d006242062f54bcba6"]
[3872.81,"Services","Disposal costs/Logistics",null,6058.12,"5.38.5",1687.5,"0fb405111b7ab8d006242062f54bcba6"]
[2865.74,"Services","Disposal costs/Logistics",null,4293.9799999999996,"5.38.6",1437.5,"03b405111b7ab8d006242062f54bcba7"]
[3036.5550000000003,"Services","Disposal costs/Logistics",null,5174.72,"5.38.7",898.39,"07b405111b7ab8d006242062f54bcba7"]
[3.895,"Services","Disposal costs/Logistics",null,6.75,"5.38.8",1.04,"0bb405111b7ab8d006242062f54bcba7"]
[2755.4849999999997,"Services","Disposal costs/Logistics",null,3619.97,"5.38.9",1891,"0fb405111b7ab8d006242062f54bcba7"]
[5202.665,"Services","Disposal costs/Logistics",null,6333.68,"5.38.10",4071.65,"03b405111b7ab8d006242062f54bcba8"]
[5515.5049999999992,"Services","Disposal costs/Logistics",null,6714.53,"5.38.11",4316.4799999999996,"07b405111b7ab8d006242062f54bcba8"]
[359.55500000000001,"Services","Disposal costs/Logistics",null,401.93,"5.38.12",317.18,"0bb405111b7ab8d006242062f54bcba8"]
[1950,"Services","Compliant Disposal",null,3000,"5.39.1",900,"0fb405111b7ab8d006242062f54bcba8"]
[555,"Services","FCC filing fees",null,555,"5.40.1",555,"03b405111b7ab8d006242062f54bcba9"]
[222.5,"Services","FCC filing fees",null,305,"5.40.2",140,"07b405111b7ab8d006242062f54bcba9"]
[110,"Services","FCC filing fees",null,110,"5.40.3",110,"0bb405111b7ab8d006242062f54bcba9"]
[70,"Services","FCC filing fees",null,70,"5.40.4",70,"0fb405111b7ab8d006242062f54bcba9"]
[140,"Services","FCC filing fees",null,140,"5.40.5",140,"03b405111b7ab8d006242062f54bcbaa"]
[110,"Services","FCC filing fees",null,110,"5.40.6",110,"07b405111b7ab8d006242062f54bcbaa"]
[305,"Services","FCC filing fees",null,305,"5.40.7",305,"0bb405111b7ab8d006242062f54bcbaa"]
[305,"Services","FCC filing fees",null,305,"5.40.8",305,"0fb405111b7ab8d006242062f54bcbaa"]
[895,"Services","FCC filing fees",null,895,"5.40.9",895,"03b405111b7ab8d006242062f54bcbab"]
[305,"Services","FCC filing fees",null,305,"5.40.10",305,"07b405111b7ab8d006242062f54bcbab"]
[140,"Services","FCC filing fees",null,140,"5.40.11",140,"0bb405111b7ab8d006242062f54bcbab"]
[450,"Services","FCC filing fees",null,450,"5.40.12",450,"0fb405111b7ab8d006242062f54bcbab"]
[120,"Services","FCC filing fees",null,120,"5.40.13",120,"03b405111b7ab8d006242062f54bcbac"]
[395,"Services","FCC filing fees",null,395,"5.40.14",395,"07b405111b7ab8d006242062f54bcbac"]
[450,"Services","FCC filing fees",null,450,"5.40.15",450,"0bb405111b7ab8d006242062f54bcbac"]
[120,"Services","FCC filing fees",null,120,"5.40.16",120,"0fb405111b7ab8d006242062f54bcbac"]
[1155,"Services","FCC filing fees",null,1155,"5.40.17",1155,"03b405111b7ab8d006242062f54bcbad"]
[925,"Services","Tariff Filings",null,925,"5.41.1",925,"07b405111b7ab8d006242062f54bcbad"]
[925,"Services","Tariff Filings",null,925,"5.41.2",925,"0bb405111b7ab8d006242062f54bcbad"]
[925,"Services","Tariff Filings",null,925,"5.41.3",925,"0fb405111b7ab8d006242062f54bcbad"]
[37500,"Services","Accounting",null,40000,"5.42.1",35000,"03b405111b7ab8d006242062f54bcbae"]
[1285,"Services","Accounting",null,1285,"5.42.2",1285,"07b405111b7ab8d006242062f54bcbae"]
[8500,"Services","Accounting",null,9000,"5.42.3",8000,"cbb405111b7ab8d006242062f54bcbae"]
[8500,"Services","Accounting",null,9000,"5.42.4",8000,"c7b405111b7ab8d006242062f54bcbaf"]
[12501.6,"Services","Security - onsite",null,19003.2,"5.43.1",6000,"cbb405111b7ab8d006242062f54bcbaf"]
[35,"Services","Security - onsite",null,45,"5.43.2",25,"cfb405111b7ab8d006242062f54bcbaf"]
[1950,"Services","Snow Cat Usage (8-12 hours day, plus operator expense)",null,2310,"5.44.0",1590,"47b405111b7ab8d006242062f54bcbb0"]
[1500,"Services","Storage, Warehousing, Material Handling",null,2000,"5.45.1",1000,"4bb405111b7ab8d006242062f54bcbb0"]
[10964.5,"Services","Storage, Warehousing, Material Handling",null,21429,"5.45.2",500,"4fb405111b7ab8d006242062f54bcbb0"]
[662.5,"Services","Storage, Warehousing, Material Handling",null,1200,"5.45.3",125,"43b405111b7ab8d006242062f54bcbb1"]
[5000,"Services","Storage, Warehousing, Material Handling",null,6000,"5.45.4",4000,"47b405111b7ab8d006242062f54bcbb1"]
[2326,"Services","KPIs Pre & Post Installation Support",null,3000,"5.46.1",1652,"4bb405111b7ab8d006242062f54bcbb1"]
[3970.5,"Services","Drive Testing - Signal Strength Verification",null,5264,"5.47.1",2677,"cfb405111b7ab8d006242062f54bcbb1"]
[2213,"Services","Drive Testing - Signal Strength Verification",null,2856,"5.47.2",1570,"47b405111b7ab8d006242062f54bcbb2"]
[246,"Services","Drive Testing - Signal Strength Verification",null,392,"5.47.3",100,"cbb405111b7ab8d006242062f54bcbb2"]
[4156,"Services","Drive Testing - Signal Strength Verification",null,5712,"5.47.4",2600,"43b405111b7ab8d006242062f54bcbb3"]
[{"$f":"(E515+G515)/2","v":9000},"Services","Drive Testing - Signal Strength Verification",null,10500,"5.47.5",7500,"c7b405111b7ab8d006242062f54bcbb3"]
[74900,"Services","Drive Testing - Signal Strength Verification",null,77900,"5.47.6",71900,"4fb405111b7ab8d006242062f54bcbb3"]
[6000,"Services","Drive Testing - Signal Strength Verification",null,8000,"5.47.7",4000,"c3b405111b7ab8d006242062f54bcbb4"]
[471.5,"Services","911 & E911 Services and Drive Test Services (47 CFR § 9.10(i)(2)(i)(B)(4)) (50m x/y)",null,568,"5.48.1",375,"4bb405111b7ab8d006242062f54bcbb4"]
[287.5,"Services","911 & E911 Services and Drive Test Services (47 CFR § 9.10(i)(2)(i)(B)(4)) (50m x/y)",null,300,"5.48.2",275,"cfb405111b7ab8d006242062f54bcbb4"]
[325,"Services","911 & E911 Services and Drive Test Services (47 CFR § 9.10(i)(2)(i)(B)(4)) (50m x/y)",null,350,"5.48.3",300,"47b405111b7ab8d006242062f54bcbb5"]
[2500,"Services","911 & E911 Services and Drive Test Services (47 CFR § 9.10(i)(2)(i)(B)(4)) (50m x/y)",null,3000,"5.48.4",2000,"cbb405111b7ab8d006242062f54bcbb5"]
[5000,"Services","911 & E911 Services and Drive Test Services (47 CFR § 9.10(i)(2)(i)(B)(4)) (50m x/y)",null,5500,"5.48.5",4500,"43b405111b7ab8d006242062f54bcbb6"]
[1000,"Services","911 & E911 Services and Drive Test Services (47 CFR § 9.10(i)(2)(i)(B)(4)) (50m x/y)",null,1000,"5.48.6",1000,"c7b405111b7ab8d006242062f54bcbb6"]
[1200,"Services","911 & E911 Services and Drive Test Services (47 CFR § 9.10(i)(2)(i)(B)(4)) (50m x/y)",null,1400,"5.48.7",1000,"4fb405111b7ab8d006242062f54bcbb6"]
[40000,"Services","911 & E911 Services and Drive Test Services (47 CFR § 9.10(i)(2)(i)(B)(4)) (50m x/y)",null,40000,"5.48.8",40000,"c3b405111b7ab8d006242062f54bcbb7"]
[25,"Services","911 & E911 Services and Drive Test Services (47 CFR § 9.10(i)(2)(i)(B)(4)) (50m x/y)",null,30,"5.48.9",20,"4bb405111b7ab8d006242062f54bcbb7"]
[7500,"Services","911 & E911 Services and Drive Test Services (47 CFR § 9.10(i)(2)(i)(B)(4)) (50m x/y)",null,10000,"5.48.10",5000,"cfb405111b7ab8d006242062f54bcbb7"]
[5000,"Services","911 & E911 Services and Drive Test Services (47 CFR § 9.10(i)(2)(i)(B)(4)) (50m x/y)",null,5500,"5.48.11",4500,"47b405111b7ab8d006242062f54bcbb8"]
[7500,"Services","End-User Location - Truck roll or self-install (per end-user)",null,12500,"5.49.0",2500,"cbb405111b7ab8d006242062f54bcbb8"]
[1500,"Services","End-User Location - Truck roll or self-install (per end-user)",null,2000,"5.49.1",1000,"43b405111b7ab8d006242062f54bcbb9"]
[15800,"Services","Services Specific to: Alaska, American Samoa, Hawaii, Puerto Rico and Virgin Islands Plus 30-50% additional costs for the service items listed in the conterminous (contiguous) United States.  Additional taxes, duties and/or custom fees will be required",null,17250,"5.51.1",14350,"c7b405111b7ab8d006242062f54bcbb9"]

{"sheet":"choice_values","index":6,"n_rows":7,"n_cols":9,"rows_kept":7,"cut":false,"hidden":true,"merged":[]}
[null,null,null,null,null,null,null,null,"-- None --"]
[null,null,null,null,null,null,null,null,"Cell site"]
[null,null,null,null,null,null,null,null,"Mobile switching center"]
[null,null,null,null,null,null,null,null,"Central office"]
[null,null,null,null,null,null,null,null,"Network operations center"]
[null,null,null,null,null,null,null,null,"Headquarters"]
[null,null,null,null,null,null,null,null,"Other"]